body_name,organisational_unit,expenditure_category,expenditure_code,paid_date,trans_no,amount,caporrev,supplier_id,supplier_name
Oxford City Council,"Policy, Culture and Communication",Pitch & Site Rents,K9534,21/01/2014,46279931_1,500.00,Revenue,20000000_46279931,NIRA EVENTS
Oxford City Council,General Fund,AR Refunds (Sundries & Periodics),Z400404,28/01/2014,46279973_1,100565.40,Revenue,20000000_46279973,CgMs Ltd. 
Oxford City Council,HRA,Special Events,D3807,11/02/2014,46280236_1,552.00,Revenue,20000000_46280236,Redacted personal data
Oxford City Council,Human Resources & Facilities,Hire of Rooms & Buildings,K9540,11/02/2014,46280252_1,2280.00,Revenue,20000000_46280252,SARA BIRD & ADRIAN LONSDALE
Oxford City Council,Human Resources & Facilities,Hire of Rooms & Buildings,K9540,11/02/2014,46280252_2,345.00,Revenue,20000000_46280252,SARA BIRD & ADRIAN LONSDALE
Oxford City Council,Human Resources & Facilities,Hire of Rooms & Buildings,K9540,11/02/2014,46280252_3,400.00,Revenue,20000000_46280252,SARA BIRD & ADRIAN LONSDALE
Oxford City Council,Suspense,Creditors - BACS,J8810,04/03/2014,46280522_1,555.00,Revenue,20000000_46280522,SARAH SIMMONDS
Oxford City Council,"Policy, Culture and Communication",Pitch & Site Rents,K9534,04/03/2014,46280548_1,500.00,Revenue,20000000_46280548,BIG CHOICE GROUP LTD
Oxford City Council,"Policy, Culture and Communication",Pitch & Site Rents,K9534,04/03/2014,46280550_1,500.00,Revenue,20000000_46280550,RMP ENTERPRISE LTD
Oxford City Council,Suspense,Property Rents/Income,K9550,11/03/2014,46280601_1,7000.00,Revenue,20000000_46280601,Redacted personal data
Oxford City Council,"Leisure, Parks & Communities",Grants,D3701,28/03/2014,46281188_1,750.00,Revenue,20000000_46281188,UPPER WOLVERCOTE ALLOTMENT ASSOCIATION
Oxford City Council,HRA,Special Events,D3807,14/01/2014,46279745_1,2000.00,Revenue,20000010_46279745,Redacted personal data
Oxford City Council,HRA,Special Events,D3807,14/01/2014,46279746_1,1000.00,Revenue,20000010_46279746,Redacted personal data
Oxford City Council,Housing and Property,Rent Allowance Cheques (Home Choice),F5033,14/01/2014,46279779_1,1590.00,Revenue,20000010_46279779,Redacted personal data
Oxford City Council,Housing and Property,Rent Allowance Cheques (Home Choice),F5033,14/01/2014,46279780_1,795.00,Revenue,20000010_46279780,Redacted personal data
Oxford City Council,Housing and Property,DAAT,F5031,14/01/2014,46279782_1,1275.00,Revenue,20000010_46279782,Redacted personal data
Oxford City Council,Housing and Property,Rent Allowance Cheques (Home Choice),F5033,14/01/2014,46279784_1,688.68,Revenue,20000010_46279784,Redacted personal data
Oxford City Council,Holding Accounts & Other Funds,Rent Allowance Cheques (Home Choice),F5033,21/01/2014,46279839_1,1193.99,Revenue,20000010_46279839,Redacted personal data
Oxford City Council,HRA,Special Events,D3807,21/01/2014,46279861_1,3418.48,Revenue,20000010_46279861,Redacted personal data
Oxford City Council,Housing and Property,Rent Allowance Cheques (Home Choice),F5033,21/01/2014,46279916_1,1075.00,Revenue,20000010_46279916,Redacted personal data
Oxford City Council,Housing and Property,Rent Allowance Cheques (Home Choice),F5033,21/01/2014,46279917_1,875.00,Revenue,20000010_46279917,Redacted personal data
Oxford City Council,Housing and Property,Rent Allowance Cheques (Home Choice),F5033,21/01/2014,46279932_1,795.00,Revenue,20000010_46279932,Redacted personal data
Oxford City Council,Housing and Property,Rent Allowance Cheques (Home Choice),F5033,21/01/2014,46279933_1,795.00,Revenue,20000010_46279933,Redacted personal data
Oxford City Council,Housing and Property,Homeless Prevention,D3426,21/01/2014,46279938_1,950.00,Revenue,20000010_46279938,Redacted personal data
Oxford City Council,Housing and Property,Homeless Prevention,D3426,28/01/2014,46279995_1,500.00,Revenue,20000010_46279995,Redacted personal data
Oxford City Council,HRA,Special Events,D3807,28/01/2014,46280025_1,3586.00,Revenue,20000010_46280025,Redacted personal data
Oxford City Council,Housing and Property,Board & Lodging Payments,D3604,28/01/2014,46280055_1,1160.00,Revenue,20000010_46280055,NEIL & MRS S J CUTHBERT
Oxford City Council,HRA,Special Events,D3807,04/02/2014,46280099_1,2131.95,Revenue,20000010_46280099,MR PATRICK J WOLLANDS
Oxford City Council,Housing and Property,Homeless Prevention,D3426,04/02/2014,46280108_1,950.00,Revenue,20000010_46280108,DARREN EVANS
Oxford City Council,Housing and Property,Homeless Prevention,D3426,04/02/2014,46280120_1,600.00,Revenue,20000010_46280120,Aida Porter (Organisation)
Oxford City Council,Housing and Property,Homeless Prevention,D3426,04/02/2014,46280121_1,600.00,Revenue,20000010_46280121,Mr Peter Bennett
Oxford City Council,Housing and Property,Rent Allowance Cheques (Home Choice),F5033,04/02/2014,46280126_1,1192.50,Revenue,20000010_46280126,Savills
Oxford City Council,Housing and Property,Rent Allowance Cheques (Home Choice),F5033,04/02/2014,46280127_1,795.00,Revenue,20000010_46280127,Savills
Oxford City Council,Housing and Property,Rent Allowance Cheques (Home Choice),F5033,04/02/2014,46280130_1,1900.00,Revenue,20000010_46280130,Redacted personal data
Oxford City Council,Housing and Property,Rent Allowance Cheques (Home Choice),F5033,04/02/2014,46280132_1,1000.00,Revenue,20000010_46280132,Redacted personal data
Oxford City Council,Housing and Property,Rent Allowance Cheques (Home Choice),F5033,04/02/2014,46280133_1,950.00,Revenue,20000010_46280133,Redacted personal data
Oxford City Council,Housing and Property,Rent Allowance Cheques (Home Choice),F5033,04/02/2014,46280135_1,935.00,Revenue,20000010_46280135,Redacted personal data
Oxford City Council,Housing and Property,Homeless Prevention,D3426,04/02/2014,46280136_1,935.00,Revenue,20000010_46280136,Redacted personal data
Oxford City Council,Housing and Property,Rent Allowance Cheques (Home Choice),F5033,04/02/2014,46280137_1,900.00,Revenue,20000010_46280137,JOHNSONS CHARTERED SURVEYORS
Oxford City Council,Housing and Property,Rent Allowance Cheques (Home Choice),F5033,04/02/2014,46280139_1,500.00,Revenue,20000010_46280139,Redacted personal data
Oxford City Council,Housing and Property,Homeless Prevention,D3426,04/02/2014,46280141_1,2979.35,Revenue,20000010_46280141,Redacted personal data
Oxford City Council,Housing and Property,Homeless Prevention,D3426,04/02/2014,46280143_1,500.00,Revenue,20000010_46280143,Redacted personal data
Oxford City Council,Housing and Property,Rent Allowance Cheques (Home Choice),F5033,04/02/2014,46280146_1,1000.00,Revenue,20000010_46280146,As Howse
Oxford City Council,Housing and Property,Rent Allowance Cheques (Home Choice),F5033,04/02/2014,46280147_1,1100.00,Revenue,20000010_46280147,As Howse
Oxford City Council,Housing and Property,Rent Allowance Cheques (Home Choice),F5033,04/02/2014,46280148_1,1100.00,Revenue,20000010_46280148,As Howse
Oxford City Council,Housing and Property,Rent Allowance Cheques (Home Choice),F5033,11/02/2014,46280220_1,500.00,Revenue,20000010_46280220,SPRINGERS
Oxford City Council,Housing and Property,Rent Allowance Cheques (Home Choice),F5033,11/02/2014,46280220_2,126.95,Revenue,20000010_46280220,SPRINGERS
Oxford City Council,Housing and Property,Rent Allowance Cheques (Home Choice),F5033,11/02/2014,46280262_1,500.00,Revenue,20000010_46280262,ACE PROPERTY SERVICES UK LTD
Oxford City Council,Housing and Property,Rent Allowance Cheques (Home Choice),F5033,11/02/2014,46280263_1,900.00,Revenue,20000010_46280263,ACE PROPERTY SERVICES UK LTD
Oxford City Council,Housing and Property,Rent Allowance Cheques (Home Choice),F5033,11/02/2014,46280264_1,500.00,Revenue,20000010_46280264,ACE PROPERTY SERVICES UK LTD
Oxford City Council,Housing and Property,Homeless Prevention,D3426,11/02/2014,46280273_1,500.00,Revenue,20000010_46280273,Redacted personal data
Oxford City Council,Housing and Property,Homeless Prevention,D3426,11/02/2014,46280282_1,1000.00,Revenue,20000010_46280282,Redacted personal data
Oxford City Council,Housing and Property,Rent Allowance Cheques (Home Choice),F5033,11/02/2014,46280286_1,700.00,Revenue,20000010_46280286,Redacted personal data
Oxford City Council,Housing and Property,Rent Allowance Cheques (Home Choice),F5033,11/02/2014,46280287_1,969.23,Revenue,20000010_46280287,Redacted personal data
Oxford City Council,Housing and Property,Rent Allowance Cheques (Home Choice),F5033,11/02/2014,46280288_1,750.00,Revenue,20000010_46280288,Redacted personal data
Oxford City Council,Housing and Property,Rent Allowance Cheques (Home Choice),F5033,11/02/2014,46280290_1,911.68,Revenue,20000010_46280290,Redacted personal data
Oxford City Council,Housing and Property,Rent Allowance Cheques (Home Choice),F5033,11/02/2014,46280291_1,1700.00,Revenue,20000010_46280291,Redacted personal data
Oxford City Council,Housing and Property,Rent Allowance Cheques (Home Choice),F5033,11/02/2014,46280292_1,1800.00,Revenue,20000010_46280292,Redacted personal data
Oxford City Council,Housing and Property,Rent Allowance Cheques (Home Choice),F5033,18/02/2014,46280339_1,862.33,Revenue,20000010_46280339,Redacted personal data
Oxford City Council,Housing and Property,Rent Allowance Cheques (Home Choice),F5033,18/02/2014,46280340_1,1726.66,Revenue,20000010_46280340,Redacted personal data
Oxford City Council,Housing and Property,Rent Allowance Cheques (Home Choice),F5033,18/02/2014,46280341_1,862.33,Revenue,20000010_46280341,Redacted personal data
Oxford City Council,Housing and Property,Homeless Prevention,D3426,18/02/2014,46280342_1,500.00,Revenue,20000010_46280342,Redacted personal data
Oxford City Council,Housing and Property,Rent Allowance Cheques (Home Choice),F5033,18/02/2014,46280345_1,1000.00,Revenue,20000010_46280345,Redacted personal data
Oxford City Council,Housing and Property,Rent Allowance Cheques (Home Choice),F5033,18/02/2014,46280346_1,1100.00,Revenue,20000010_46280346,Redacted personal data
Oxford City Council,Housing and Property,Rent Allowance Cheques (Home Choice),F5033,18/02/2014,46280347_1,1100.00,Revenue,20000010_46280347,Redacted personal data
Oxford City Council,Housing and Property,Homeless Prevention,D3426,18/02/2014,46280350_1,1000.00,Revenue,20000010_46280350,Redacted personal data
Oxford City Council,Housing and Property,Rent Allowance Cheques (Home Choice),F5033,25/02/2014,46280419_1,975.00,Revenue,20000010_46280419,Redacted personal data
Oxford City Council,Housing and Property,Homeless Prevention,D3426,25/02/2014,46280420_1,1000.00,Revenue,20000010_46280420,Redacted personal data
Oxford City Council,Housing and Property,Homeless Prevention,D3426,25/02/2014,46280422_1,850.00,Revenue,20000010_46280422,Redacted personal data
Oxford City Council,HRA,Special Events,D3807,25/02/2014,46280423_1,1500.00,Revenue,20000010_46280423,Redacted personal data
Oxford City Council,Housing and Property,Homeless Prevention,D3426,25/02/2014,46280424_1,1800.00,Revenue,20000010_46280424,Redacted personal data
Oxford City Council,Housing and Property,Rent Allowance Cheques (Home Choice),F5033,25/02/2014,46280425_1,950.00,Revenue,20000010_46280425,Redacted personal data
Oxford City Council,Housing and Property,Rent Allowance Cheques (Home Choice),F5033,25/02/2014,46280432_1,1237.50,Revenue,20000010_46280432,GRIFFITH & PARTNERS
Oxford City Council,Housing and Property,Rent Allowance Cheques (Home Choice),F5033,25/02/2014,46280433_1,825.00,Revenue,20000010_46280433,GRIFFITH & PARTNERS
Oxford City Council,HRA,Special Events,D3807,25/02/2014,46280435_1,1580.79,Revenue,20000010_46280435,Redacted personal data
Oxford City Council,Housing and Property,Rent Allowance Cheques (Home Choice),F5033,25/02/2014,46280436_1,850.00,Revenue,20000010_46280436,Redacted personal data
Oxford City Council,Housing and Property,Homeless Prevention,D3426,25/02/2014,46280437_1,950.00,Revenue,20000010_46280437,Redacted personal data
Oxford City Council,Housing and Property,Rent Allowance Cheques (Home Choice),F5033,04/03/2014,46280541_1,1000.00,Revenue,20000010_46280541,Redacted personal data
Oxford City Council,Housing and Property,Rent Allowance Cheques (Home Choice),F5033,11/03/2014,46280677_1,895.00,Revenue,20000010_46280677,Redacted personal data
Oxford City Council,Housing and Property,Homeless Prevention,D3426,11/03/2014,46280678_1,840.00,Revenue,20000010_46280678,Redacted personal data
Oxford City Council,Housing and Property,DAAT,F5031,11/03/2014,46280680_1,1350.00,Revenue,20000010_46280680,Redacted personal data
Oxford City Council,HRA,Special Events,D3807,18/03/2014,46280803_1,662.40,Revenue,20000010_46280803,Redacted personal data
Oxford City Council,Housing and Property,Rent Allowance Cheques (Home Choice),F5033,18/03/2014,46280836_1,500.00,Revenue,20000010_46280836,Redacted personal data
Oxford City Council,Housing and Property,Rent Allowance Cheques (Home Choice),F5033,18/03/2014,46280838_1,1100.00,Revenue,20000010_46280838,Redacted personal data
Oxford City Council,Housing and Property,Rent Allowance Cheques (Home Choice),F5033,18/03/2014,46280839_1,1650.00,Revenue,20000010_46280839,Redacted personal data
Oxford City Council,Housing and Property,Rent Allowance Cheques (Home Choice),F5033,25/03/2014,46280943_1,850.00,Revenue,20000010_46280943,Redacted personal data
Oxford City Council,Housing and Property,Rent Allowance Cheques (Home Choice),F5033,25/03/2014,46280973_1,950.00,Revenue,20000010_46280973,Redacted personal data
Oxford City Council,Housing and Property,Rent Allowance Cheques (Home Choice),F5033,25/03/2014,46280990_1,725.00,Revenue,20000010_46280990,LANSBOROUGH LETTINGS
Oxford City Council,Housing and Property,Rent Allowance Cheques (Home Choice),F5033,25/03/2014,46280991_1,1087.50,Revenue,20000010_46280991,LANSBOROUGH LETTINGS
Oxford City Council,Housing and Property,Rent Allowance Cheques (Home Choice),F5033,25/03/2014,46280992_1,712.00,Revenue,20000010_46280992,Redacted personal data
Oxford City Council,Housing and Property,Rent Allowance Cheques (Home Choice),F5033,28/01/2014,46280053_1,600.00,Revenue,20000018_46280053,ACE PROPERTY SERVICES
Oxford City Council,Housing and Property,Rent Allowance Cheques (Home Choice),F5033,28/01/2014,46280054_1,600.00,Revenue,20000018_46280054,ACE PROPERTY SERVICES
Oxford City Council,Housing and Property,Rent Allowance Cheques (Home Choice),F5033,25/02/2014,46280396_1,625.00,Revenue,20000018_46280396,CLEEVE RESIDENTIAL LETTING
Oxford City Council,Housing and Property,Rent Allowance Cheques (Home Choice),F5033,04/03/2014,46280502_1,500.00,Revenue,20000018_46280502,ACE PROPERTY SERVICES
Oxford City Council,Housing and Property,Rent Allowance Cheques (Home Choice),F5033,04/03/2014,46280502_2,100.00,Revenue,20000018_46280502,ACE PROPERTY SERVICES
Oxford City Council,Housing and Property,Rent Allowance Cheques (Home Choice),F5033,04/03/2014,46280503_1,500.00,Revenue,20000018_46280503,AHMED ESTATES
Oxford City Council,Housing and Property,Rent Allowance Cheques (Home Choice),F5033,04/03/2014,46280503_2,70.50,Revenue,20000018_46280503,AHMED ESTATES
Oxford City Council,Housing and Property,Rent Allowance Cheques (Home Choice),F5033,04/03/2014,46280534_1,550.00,Revenue,20000018_46280534,SAMUEL & CO ASSOCIATES LTD
Oxford City Council,Housing and Property,Rent Allowance Cheques (Home Choice),F5033,11/03/2014,46280605_1,651.95,Revenue,20000018_46280605,SPRINGERS (GREAT BARR) LTD
Oxford City Council,City Development,Staff Advertising,A0702,14/01/2014,1002756_1,1675.35,Revenue,20000200,CHAMPION EMPLOYMENT LTD
Oxford City Council,Business Improvement & Technology,Commission/Discount,K9472,14/01/2014,46279694_1,-856.74,Revenue,20000200,CHAMPION EMPLOYMENT LTD
Oxford City Council,Transformation,Temporary Bureau Staffing,A0108,14/01/2014,46279694_10,1620.39,Revenue,20000200,CHAMPION EMPLOYMENT LTD
Oxford City Council,Finance,Temporary Bureau Staffing,A0108,14/01/2014,46279694_11,2749.30,Revenue,20000200,CHAMPION EMPLOYMENT LTD
Oxford City Council,Finance,Temporary Bureau Staffing,A0108,14/01/2014,46279694_12,2664.25,Revenue,20000200,CHAMPION EMPLOYMENT LTD
Oxford City Council,Finance,Temporary Bureau Staffing,A0108,14/01/2014,46279694_13,5085.31,Revenue,20000200,CHAMPION EMPLOYMENT LTD
Oxford City Council,Customer Services,Temporary Bureau Staffing,A0108,14/01/2014,46279694_14,1343.28,Revenue,20000200,CHAMPION EMPLOYMENT LTD
Oxford City Council,Customer Services,Temporary Bureau Staffing,A0108,14/01/2014,46279694_15,4144.00,Revenue,20000200,CHAMPION EMPLOYMENT LTD
Oxford City Council,Customer Services,Temporary Bureau Staffing,A0108,14/01/2014,46279694_16,23569.06,Revenue,20000200,CHAMPION EMPLOYMENT LTD
Oxford City Council,Customer Services,Temporary Bureau Staffing,A0108,14/01/2014,46279694_17,4266.08,Revenue,20000200,CHAMPION EMPLOYMENT LTD
Oxford City Council,Transformation,Temporary Bureau Staffing,A0108,14/01/2014,46279694_18,1591.92,Revenue,20000200,CHAMPION EMPLOYMENT LTD
Oxford City Council,Human Resources & Facilities,Temporary Bureau Staffing,A0108,14/01/2014,46279694_19,472.45,Revenue,20000200,CHAMPION EMPLOYMENT LTD
Oxford City Council,Holding Accounts & Other Funds,Difference A/c,Z910198,14/01/2014,46279694_2,0.01,Revenue,20000200,CHAMPION EMPLOYMENT LTD
Oxford City Council,Environmental Development,Temporary Bureau Staffing,A0108,14/01/2014,46279694_20,8718.24,Revenue,20000200,CHAMPION EMPLOYMENT LTD
Oxford City Council,Environmental Development,Temporary Bureau Staffing,A0108,14/01/2014,46279694_21,8098.49,Revenue,20000200,CHAMPION EMPLOYMENT LTD
Oxford City Council,Environmental Development,Temporary Bureau Staffing,A0108,14/01/2014,46279694_22,13424.63,Revenue,20000200,CHAMPION EMPLOYMENT LTD
Oxford City Council,Environmental Development,Temporary Bureau Staffing,A0108,14/01/2014,46279694_23,4352.14,Revenue,20000200,CHAMPION EMPLOYMENT LTD
Oxford City Council,Environmental Development,Temporary Bureau Staffing,A0108,14/01/2014,46279694_24,2879.26,Revenue,20000200,CHAMPION EMPLOYMENT LTD
Oxford City Council,Housing and Property,Temporary Bureau Staffing,A0108,14/01/2014,46279694_25,2408.00,Revenue,20000200,CHAMPION EMPLOYMENT LTD
Oxford City Council,Housing and Property,Temporary Bureau Staffing,A0108,14/01/2014,46279694_26,1816.97,Revenue,20000200,CHAMPION EMPLOYMENT LTD
Oxford City Council,Housing and Property,Temporary Bureau Staffing,A0108,14/01/2014,46279694_27,1433.43,Revenue,20000200,CHAMPION EMPLOYMENT LTD
Oxford City Council,Direct Services,Temporary Bureau Staffing,A0108,14/01/2014,46279694_28,2620.05,Revenue,20000200,CHAMPION EMPLOYMENT LTD
Oxford City Council,"Leisure, Parks & Communities",Temporary Bureau Staffing,A0108,14/01/2014,46279694_29,7076.87,Revenue,20000200,CHAMPION EMPLOYMENT LTD
Oxford City Council,Human Resources & Facilities,Temporary Bureau Staffing,A0108,14/01/2014,46279694_3,727.85,Revenue,20000200,CHAMPION EMPLOYMENT LTD
Oxford City Council,Law and Governance,Temporary Bureau Staffing,A0108,14/01/2014,46279694_30,1352.06,Revenue,20000200,CHAMPION EMPLOYMENT LTD
Oxford City Council,"Policy, Culture and Communication",Temporary Bureau Staffing,A0108,14/01/2014,46279694_31,1133.11,Revenue,20000200,CHAMPION EMPLOYMENT LTD
Oxford City Council,HRA,Temporary Bureau Staffing,A0108,14/01/2014,46279694_32,3356.51,Revenue,20000200,CHAMPION EMPLOYMENT LTD
Oxford City Council,HRA,Temporary Bureau Staffing,A0108,14/01/2014,46279694_33,10487.04,Revenue,20000200,CHAMPION EMPLOYMENT LTD
Oxford City Council,HRA,Temporary Bureau Staffing,A0108,14/01/2014,46279694_34,6258.75,Revenue,20000200,CHAMPION EMPLOYMENT LTD
Oxford City Council,Direct Services,Temporary Bureau Staffing,A0108,14/01/2014,46279694_35,1790.24,Revenue,20000200,CHAMPION EMPLOYMENT LTD
Oxford City Council,Direct Services,Temporary Bureau Staffing,A0108,14/01/2014,46279694_36,1767.11,Revenue,20000200,CHAMPION EMPLOYMENT LTD
Oxford City Council,Direct Services,Temporary Bureau Staffing,A0108,14/01/2014,46279694_37,919.30,Revenue,20000200,CHAMPION EMPLOYMENT LTD
Oxford City Council,Direct Services,Temporary Bureau Staffing,A0108,14/01/2014,46279694_38,800.46,Revenue,20000200,CHAMPION EMPLOYMENT LTD
Oxford City Council,Regeneration and Major Projects Team,Temporary Bureau Staffing,A0108,14/01/2014,46279694_39,774.47,Revenue,20000200,CHAMPION EMPLOYMENT LTD
Oxford City Council,Human Resources & Facilities,Temporary Bureau Staffing,A0108,14/01/2014,46279694_4,6816.37,Revenue,20000200,CHAMPION EMPLOYMENT LTD
Oxford City Council,Direct Services,Temporary Bureau Staffing,A0108,14/01/2014,46279694_40,1324.73,Revenue,20000200,CHAMPION EMPLOYMENT LTD
Oxford City Council,Direct Services,Temporary Bureau Staffing,A0108,14/01/2014,46279694_41,15207.59,Revenue,20000200,CHAMPION EMPLOYMENT LTD
Oxford City Council,Direct Services,Temporary Bureau Staffing,A0108,14/01/2014,46279694_42,2642.19,Revenue,20000200,CHAMPION EMPLOYMENT LTD
Oxford City Council,Direct Services,Temporary Bureau Staffing,A0108,14/01/2014,46279694_43,8182.47,Revenue,20000200,CHAMPION EMPLOYMENT LTD
Oxford City Council,Direct Services,Temporary Bureau Staffing,A0108,14/01/2014,46279694_44,478.17,Revenue,20000200,CHAMPION EMPLOYMENT LTD
Oxford City Council,Direct Services,Temporary Bureau Staffing,A0108,14/01/2014,46279694_45,752.58,Revenue,20000200,CHAMPION EMPLOYMENT LTD
Oxford City Council,Direct Services,Temporary Bureau Staffing,A0108,14/01/2014,46279694_46,1573.23,Revenue,20000200,CHAMPION EMPLOYMENT LTD
Oxford City Council,Regeneration and Major Projects Team,Temporary Bureau Staffing,A0108,14/01/2014,46279694_47,50.45,Revenue,20000200,CHAMPION EMPLOYMENT LTD
Oxford City Council,Regeneration and Major Projects Team,Temporary Bureau Staffing,A0108,14/01/2014,46279694_5,6742.05,Revenue,20000200,CHAMPION EMPLOYMENT LTD
Oxford City Council,Housing and Property,Temporary Bureau Staffing,A0108,14/01/2014,46279694_6,5827.50,Revenue,20000200,CHAMPION EMPLOYMENT LTD
Oxford City Council,City Development,Temporary Bureau Staffing,A0108,14/01/2014,46279694_7,3420.62,Revenue,20000200,CHAMPION EMPLOYMENT LTD
Oxford City Council,Business Improvement & Technology,Temporary Bureau Staffing,A0108,14/01/2014,46279694_8,1596.45,Revenue,20000200,CHAMPION EMPLOYMENT LTD
Oxford City Council,Business Improvement & Technology,Temporary Bureau Staffing,A0108,14/01/2014,46279694_9,29400.70,Revenue,20000200,CHAMPION EMPLOYMENT LTD
Oxford City Council,Business Improvement & Technology,Commission/Discount,K9472,18/02/2014,46280378_1,-1253.97,Revenue,20000200,CHAMPION EMPLOYMENT LTD
Oxford City Council,Business Improvement & Technology,Temporary Bureau Staffing,A0108,18/02/2014,46280378_10,6696.86,Revenue,20000200,CHAMPION EMPLOYMENT LTD
Oxford City Council,Business Improvement & Technology,Temporary Bureau Staffing,A0108,18/02/2014,46280378_11,8926.71,Revenue,20000200,CHAMPION EMPLOYMENT LTD
Oxford City Council,Business Improvement & Technology,Temporary Bureau Staffing,A0108,18/02/2014,46280378_12,7920.00,Revenue,20000200,CHAMPION EMPLOYMENT LTD
Oxford City Council,Finance,Temporary Bureau Staffing,A0108,18/02/2014,46280378_13,4803.28,Revenue,20000200,CHAMPION EMPLOYMENT LTD
Oxford City Council,Finance,Temporary Bureau Staffing,A0108,18/02/2014,46280378_14,514.42,Revenue,20000200,CHAMPION EMPLOYMENT LTD
Oxford City Council,Finance,Temporary Bureau Staffing,A0108,18/02/2014,46280378_15,3187.81,Revenue,20000200,CHAMPION EMPLOYMENT LTD
Oxford City Council,Customer Services,Temporary Bureau Staffing,A0108,18/02/2014,46280378_16,2366.40,Revenue,20000200,CHAMPION EMPLOYMENT LTD
Oxford City Council,Customer Services,Temporary Bureau Staffing,A0108,18/02/2014,46280378_17,15643.60,Revenue,20000200,CHAMPION EMPLOYMENT LTD
Oxford City Council,Customer Services,Temporary Bureau Staffing,A0108,18/02/2014,46280378_18,10321.38,Revenue,20000200,CHAMPION EMPLOYMENT LTD
Oxford City Council,Customer Services,Temporary Bureau Staffing,A0108,18/02/2014,46280378_19,359.06,Revenue,20000200,CHAMPION EMPLOYMENT LTD
Oxford City Council,"Policy, Culture and Communication",Temporary Bureau Staffing,A0108,18/02/2014,46280378_2,116.68,Revenue,20000200,CHAMPION EMPLOYMENT LTD
Oxford City Council,Customer Services,Temporary Bureau Staffing,A0108,18/02/2014,46280378_20,4611.50,Revenue,20000200,CHAMPION EMPLOYMENT LTD
Oxford City Council,Transformation,Temporary Bureau Staffing,A0108,18/02/2014,46280378_21,3018.79,Revenue,20000200,CHAMPION EMPLOYMENT LTD
Oxford City Council,Transformation,Temporary Bureau Staffing,A0108,18/02/2014,46280378_22,2179.13,Revenue,20000200,CHAMPION EMPLOYMENT LTD
Oxford City Council,Environmental Development,Temporary Bureau Staffing,A0108,18/02/2014,46280378_23,1754.57,Revenue,20000200,CHAMPION EMPLOYMENT LTD
Oxford City Council,Environmental Development,Temporary Bureau Staffing,A0108,18/02/2014,46280378_24,10987.42,Revenue,20000200,CHAMPION EMPLOYMENT LTD
Oxford City Council,Environmental Development,Temporary Bureau Staffing,A0108,18/02/2014,46280378_25,2351.48,Revenue,20000200,CHAMPION EMPLOYMENT LTD
Oxford City Council,Environmental Development,Temporary Bureau Staffing,A0108,18/02/2014,46280378_26,7008.02,Revenue,20000200,CHAMPION EMPLOYMENT LTD
Oxford City Council,Environmental Development,Temporary Bureau Staffing,A0108,18/02/2014,46280378_27,2777.23,Revenue,20000200,CHAMPION EMPLOYMENT LTD
Oxford City Council,Environmental Development,Temporary Bureau Staffing,A0108,18/02/2014,46280378_28,19511.88,Revenue,20000200,CHAMPION EMPLOYMENT LTD
Oxford City Council,Environmental Development,Temporary Bureau Staffing,A0108,18/02/2014,46280378_29,9271.82,Revenue,20000200,CHAMPION EMPLOYMENT LTD
Oxford City Council,Human Resources & Facilities,Temporary Bureau Staffing,A0108,18/02/2014,46280378_3,9435.55,Revenue,20000200,CHAMPION EMPLOYMENT LTD
Oxford City Council,Environmental Development,Temporary Bureau Staffing,A0108,18/02/2014,46280378_30,3159.63,Revenue,20000200,CHAMPION EMPLOYMENT LTD
Oxford City Council,Housing and Property,Temporary Bureau Staffing,A0108,18/02/2014,46280378_31,1154.61,Revenue,20000200,CHAMPION EMPLOYMENT LTD
Oxford City Council,Housing and Property,Temporary Bureau Staffing,A0108,18/02/2014,46280378_32,14201.30,Revenue,20000200,CHAMPION EMPLOYMENT LTD
Oxford City Council,Housing and Property,Temporary Bureau Staffing,A0108,18/02/2014,46280378_33,2305.11,Revenue,20000200,CHAMPION EMPLOYMENT LTD
Oxford City Council,Housing and Property,Temporary Bureau Staffing,A0108,18/02/2014,46280378_34,1665.88,Revenue,20000200,CHAMPION EMPLOYMENT LTD
Oxford City Council,City Development,Temporary Bureau Staffing,A0108,18/02/2014,46280378_35,4924.46,Revenue,20000200,CHAMPION EMPLOYMENT LTD
Oxford City Council,City Development,Temporary Bureau Staffing,A0108,18/02/2014,46280378_36,2870.00,Revenue,20000200,CHAMPION EMPLOYMENT LTD
Oxford City Council,"Leisure, Parks & Communities",Temporary Bureau Staffing,A0108,18/02/2014,46280378_37,1725.51,Revenue,20000200,CHAMPION EMPLOYMENT LTD
Oxford City Council,"Leisure, Parks & Communities",Temporary Bureau Staffing,A0108,18/02/2014,46280378_38,3634.79,Revenue,20000200,CHAMPION EMPLOYMENT LTD
Oxford City Council,Law and Governance,Temporary Bureau Staffing,A0108,18/02/2014,46280378_39,1693.91,Revenue,20000200,CHAMPION EMPLOYMENT LTD
Oxford City Council,Regeneration and Major Projects Team,Temporary Bureau Staffing,A0108,18/02/2014,46280378_4,3.30,Revenue,20000200,CHAMPION EMPLOYMENT LTD
Oxford City Council,"Policy, Culture and Communication",Temporary Bureau Staffing,A0108,18/02/2014,46280378_40,1308.26,Revenue,20000200,CHAMPION EMPLOYMENT LTD
Oxford City Council,HRA,Temporary Bureau Staffing,A0108,18/02/2014,46280378_41,2621.25,Revenue,20000200,CHAMPION EMPLOYMENT LTD
Oxford City Council,HRA,Temporary Bureau Staffing,A0108,18/02/2014,46280378_42,3875.50,Revenue,20000200,CHAMPION EMPLOYMENT LTD
Oxford City Council,HRA,Temporary Bureau Staffing,A0108,18/02/2014,46280378_43,6782.42,Revenue,20000200,CHAMPION EMPLOYMENT LTD
Oxford City Council,HRA,Temporary Bureau Staffing,A0108,18/02/2014,46280378_44,11004.88,Revenue,20000200,CHAMPION EMPLOYMENT LTD
Oxford City Council,Direct Services,Temporary Bureau Staffing,A0108,18/02/2014,46280378_45,2014.28,Revenue,20000200,CHAMPION EMPLOYMENT LTD
Oxford City Council,Direct Services,Temporary Bureau Staffing,A0108,18/02/2014,46280378_46,2442.07,Revenue,20000200,CHAMPION EMPLOYMENT LTD
Oxford City Council,Direct Services,Temporary Bureau Staffing,A0108,18/02/2014,46280378_47,161.23,Revenue,20000200,CHAMPION EMPLOYMENT LTD
Oxford City Council,Direct Services,Temporary Bureau Staffing,A0108,18/02/2014,46280378_48,2145.06,Revenue,20000200,CHAMPION EMPLOYMENT LTD
Oxford City Council,Direct Services,Temporary Bureau Staffing,A0108,18/02/2014,46280378_49,1145.54,Revenue,20000200,CHAMPION EMPLOYMENT LTD
Oxford City Council,Regeneration and Major Projects Team,Temporary Bureau Staffing,A0108,18/02/2014,46280378_5,4161.75,Revenue,20000200,CHAMPION EMPLOYMENT LTD
Oxford City Council,Direct Services,Temporary Bureau Staffing,A0108,18/02/2014,46280378_50,23778.80,Revenue,20000200,CHAMPION EMPLOYMENT LTD
Oxford City Council,Direct Services,Temporary Bureau Staffing,A0108,18/02/2014,46280378_51,3004.77,Revenue,20000200,CHAMPION EMPLOYMENT LTD
Oxford City Council,Direct Services,Temporary Bureau Staffing,A0108,18/02/2014,46280378_52,11393.88,Revenue,20000200,CHAMPION EMPLOYMENT LTD
Oxford City Council,Direct Services,Temporary Bureau Staffing,A0108,18/02/2014,46280378_53,216.30,Revenue,20000200,CHAMPION EMPLOYMENT LTD
Oxford City Council,Direct Services,Temporary Bureau Staffing,A0108,18/02/2014,46280378_54,2029.46,Revenue,20000200,CHAMPION EMPLOYMENT LTD
Oxford City Council,Direct Services,Temporary Bureau Staffing,A0108,18/02/2014,46280378_55,1909.25,Revenue,20000200,CHAMPION EMPLOYMENT LTD
Oxford City Council,Direct Services,Temporary Bureau Staffing,A0108,18/02/2014,46280378_56,3909.79,Revenue,20000200,CHAMPION EMPLOYMENT LTD
Oxford City Council,Business Improvement & Technology,Temporary Bureau Staffing,A0108,18/02/2014,46280378_57,62.10,Revenue,20000200,CHAMPION EMPLOYMENT LTD
Oxford City Council,Regeneration and Major Projects Team,Temporary Bureau Staffing,A0108,18/02/2014,46280378_6,9362.23,Revenue,20000200,CHAMPION EMPLOYMENT LTD
Oxford City Council,Housing and Property,Temporary Bureau Staffing,A0108,18/02/2014,46280378_7,8610.30,Revenue,20000200,CHAMPION EMPLOYMENT LTD
Oxford City Council,City Development,Temporary Bureau Staffing,A0108,18/02/2014,46280378_8,166.50,Revenue,20000200,CHAMPION EMPLOYMENT LTD
Oxford City Council,City Development,Temporary Bureau Staffing,A0108,18/02/2014,46280378_9,5301.45,Revenue,20000200,CHAMPION EMPLOYMENT LTD
Oxford City Council,Business Improvement & Technology,Commission/Discount,K9472,18/03/2014,46280789_1,-1263.97,Revenue,20000200,CHAMPION EMPLOYMENT LTD
Oxford City Council,Business Improvement & Technology,Temporary Bureau Staffing,A0108,18/03/2014,46280789_10,28480.82,Revenue,20000200,CHAMPION EMPLOYMENT LTD
Oxford City Council,Finance,Temporary Bureau Staffing,A0108,18/03/2014,46280789_11,3603.95,Revenue,20000200,CHAMPION EMPLOYMENT LTD
Oxford City Council,Finance,Temporary Bureau Staffing,A0108,18/03/2014,46280789_12,4326.86,Revenue,20000200,CHAMPION EMPLOYMENT LTD
Oxford City Council,Customer Services,Temporary Bureau Staffing,A0108,18/03/2014,46280789_13,1955.76,Revenue,20000200,CHAMPION EMPLOYMENT LTD
Oxford City Council,Customer Services,Temporary Bureau Staffing,A0108,18/03/2014,46280789_14,19256.30,Revenue,20000200,CHAMPION EMPLOYMENT LTD
Oxford City Council,Customer Services,Temporary Bureau Staffing,A0108,18/03/2014,46280789_15,14651.75,Revenue,20000200,CHAMPION EMPLOYMENT LTD
Oxford City Council,Customer Services,Temporary Bureau Staffing,A0108,18/03/2014,46280789_16,3529.05,Revenue,20000200,CHAMPION EMPLOYMENT LTD
Oxford City Council,Transformation,Temporary Bureau Staffing,A0108,18/03/2014,46280789_17,1663.20,Revenue,20000200,CHAMPION EMPLOYMENT LTD
Oxford City Council,Transformation,Temporary Bureau Staffing,A0108,18/03/2014,46280789_18,1805.76,Revenue,20000200,CHAMPION EMPLOYMENT LTD
Oxford City Council,Environmental Development,Temporary Bureau Staffing,A0108,18/03/2014,46280789_19,13223.48,Revenue,20000200,CHAMPION EMPLOYMENT LTD
Oxford City Council,Holding Accounts & Other Funds,Difference A/c,Z910198,18/03/2014,46280789_2,-0.01,Revenue,20000200,CHAMPION EMPLOYMENT LTD
Oxford City Council,Environmental Development,Temporary Bureau Staffing,A0108,18/03/2014,46280789_20,11366.69,Revenue,20000200,CHAMPION EMPLOYMENT LTD
Oxford City Council,Environmental Development,Temporary Bureau Staffing,A0108,18/03/2014,46280789_21,30680.82,Revenue,20000200,CHAMPION EMPLOYMENT LTD
Oxford City Council,Environmental Development,Temporary Bureau Staffing,A0108,18/03/2014,46280789_22,8951.81,Revenue,20000200,CHAMPION EMPLOYMENT LTD
Oxford City Council,Environmental Development,Temporary Bureau Staffing,A0108,18/03/2014,46280789_23,3373.43,Revenue,20000200,CHAMPION EMPLOYMENT LTD
Oxford City Council,Housing and Property,Temporary Bureau Staffing,A0108,18/03/2014,46280789_24,16384.01,Revenue,20000200,CHAMPION EMPLOYMENT LTD
Oxford City Council,Housing and Property,Temporary Bureau Staffing,A0108,18/03/2014,46280789_25,2146.27,Revenue,20000200,CHAMPION EMPLOYMENT LTD
Oxford City Council,City Development,Temporary Bureau Staffing,A0108,18/03/2014,46280789_26,7421.99,Revenue,20000200,CHAMPION EMPLOYMENT LTD
Oxford City Council,City Development,Temporary Bureau Staffing,A0108,18/03/2014,46280789_27,8245.00,Revenue,20000200,CHAMPION EMPLOYMENT LTD
Oxford City Council,"Leisure, Parks & Communities",Temporary Bureau Staffing,A0108,18/03/2014,46280789_28,5068.45,Revenue,20000200,CHAMPION EMPLOYMENT LTD
Oxford City Council,Law and Governance,Temporary Bureau Staffing,A0108,18/03/2014,46280789_29,1342.20,Revenue,20000200,CHAMPION EMPLOYMENT LTD
Oxford City Council,Human Resources & Facilities,Temporary Bureau Staffing,A0108,18/03/2014,46280789_3,8281.81,Revenue,20000200,CHAMPION EMPLOYMENT LTD
Oxford City Council,"Policy, Culture and Communication",Temporary Bureau Staffing,A0108,18/03/2014,46280789_30,1483.61,Revenue,20000200,CHAMPION EMPLOYMENT LTD
Oxford City Council,HRA,Temporary Bureau Staffing,A0108,18/03/2014,46280789_31,469.00,Revenue,20000200,CHAMPION EMPLOYMENT LTD
Oxford City Council,HRA,Temporary Bureau Staffing,A0108,18/03/2014,46280789_32,8352.96,Revenue,20000200,CHAMPION EMPLOYMENT LTD
Oxford City Council,HRA,Temporary Bureau Staffing,A0108,18/03/2014,46280789_33,8504.75,Revenue,20000200,CHAMPION EMPLOYMENT LTD
Oxford City Council,Direct Services,Temporary Bureau Staffing,A0108,18/03/2014,46280789_34,1799.00,Revenue,20000200,CHAMPION EMPLOYMENT LTD
Oxford City Council,Direct Services,Temporary Bureau Staffing,A0108,18/03/2014,46280789_35,2018.41,Revenue,20000200,CHAMPION EMPLOYMENT LTD
Oxford City Council,Direct Services,Temporary Bureau Staffing,A0108,18/03/2014,46280789_36,758.41,Revenue,20000200,CHAMPION EMPLOYMENT LTD
Oxford City Council,Direct Services,Temporary Bureau Staffing,A0108,18/03/2014,46280789_37,1896.05,Revenue,20000200,CHAMPION EMPLOYMENT LTD
Oxford City Council,Direct Services,Temporary Bureau Staffing,A0108,18/03/2014,46280789_38,1791.59,Revenue,20000200,CHAMPION EMPLOYMENT LTD
Oxford City Council,Direct Services,Temporary Bureau Staffing,A0108,18/03/2014,46280789_39,14570.64,Revenue,20000200,CHAMPION EMPLOYMENT LTD
Oxford City Council,Regeneration and Major Projects Team,Temporary Bureau Staffing,A0108,18/03/2014,46280789_4,4371.00,Revenue,20000200,CHAMPION EMPLOYMENT LTD
Oxford City Council,Direct Services,Temporary Bureau Staffing,A0108,18/03/2014,46280789_40,3113.99,Revenue,20000200,CHAMPION EMPLOYMENT LTD
Oxford City Council,Direct Services,Temporary Bureau Staffing,A0108,18/03/2014,46280789_41,7624.56,Revenue,20000200,CHAMPION EMPLOYMENT LTD
Oxford City Council,Direct Services,Temporary Bureau Staffing,A0108,18/03/2014,46280789_42,1373.45,Revenue,20000200,CHAMPION EMPLOYMENT LTD
Oxford City Council,Direct Services,Temporary Bureau Staffing,A0108,18/03/2014,46280789_43,1486.31,Revenue,20000200,CHAMPION EMPLOYMENT LTD
Oxford City Council,Direct Services,Temporary Bureau Staffing,A0108,18/03/2014,46280789_44,1648.62,Revenue,20000200,CHAMPION EMPLOYMENT LTD
Oxford City Council,Direct Services,Temporary Bureau Staffing,A0108,18/03/2014,46280789_45,3008.70,Revenue,20000200,CHAMPION EMPLOYMENT LTD
Oxford City Council,Regeneration and Major Projects Team,Temporary Bureau Staffing,A0108,18/03/2014,46280789_46,755.87,Revenue,20000200,CHAMPION EMPLOYMENT LTD
Oxford City Council,Regeneration and Major Projects Team,Temporary Bureau Staffing,A0108,18/03/2014,46280789_5,7152.04,Revenue,20000200,CHAMPION EMPLOYMENT LTD
Oxford City Council,Housing and Property,Temporary Bureau Staffing,A0108,18/03/2014,46280789_6,7770.00,Revenue,20000200,CHAMPION EMPLOYMENT LTD
Oxford City Council,City Development,Temporary Bureau Staffing,A0108,18/03/2014,46280789_7,5656.50,Revenue,20000200,CHAMPION EMPLOYMENT LTD
Oxford City Council,Business Improvement & Technology,Temporary Bureau Staffing,A0108,18/03/2014,46280789_8,4038.07,Revenue,20000200,CHAMPION EMPLOYMENT LTD
Oxford City Council,Business Improvement & Technology,Temporary Bureau Staffing,A0108,18/03/2014,46280789_9,1931.99,Revenue,20000200,CHAMPION EMPLOYMENT LTD
Oxford City Council,Direct Services,Contract Plant Hire,C2402,11/02/2014,1003503_1,1826.28,Revenue,20000203,KONE PLC
Oxford City Council,Direct Services,General Contracted Services,D3401,18/03/2014,1004186_1,3869.28,Revenue,20000203,KONE PLC
Oxford City Council,Regeneration and Major Projects Team,Services Maintenance (Planned),B1103,14/01/2014,46279700_1,1250.64,Revenue,20000203,KONE PLC
Oxford City Council,Direct Services,Direct Services Supplies & Services,D3311,14/01/2014,60014683_0,4522.00,Revenue,20000209,AMITY INSULATION SERVICES LTD
Oxford City Council,Direct Services,Direct Services Supplies & Services,D3311   ,11/02/2014,60015792_1,1385.00,Revenue,20000209,AMITY INSULATION SERVICES LTD
Oxford City Council,Direct Services,Direct Services Supplies & Services,D3311,04/03/2014,60016920_0,1948.00,Revenue,20000209,AMITY INSULATION SERVICES LTD
Oxford City Council,Direct Services,Direct Services Supplies & Services,D3311,04/03/2014,60016921_2,4748.00,Revenue,20000209,AMITY INSULATION SERVICES LTD
Oxford City Council,Direct Services,Services Maintenance (Planned),B1103,21/01/2014,46279951_1,108.05,Revenue,20000210,BARKER & EVANS LTD
Oxford City Council,"Leisure, Parks & Communities",Services Maintenance (Planned),B1103,21/01/2014,46279951_2,2860.66,Revenue,20000210,BARKER & EVANS LTD
Oxford City Council,Housing and Property,Services Maintenance (Planned),B1103,21/01/2014,46279951_3,2609.16,Revenue,20000210,BARKER & EVANS LTD
Oxford City Council,Regeneration and Major Projects Team,Services Maintenance (Planned),B1103,21/01/2014,46279951_4,507.50,Revenue,20000210,BARKER & EVANS LTD
Oxford City Council,Regeneration and Major Projects Team,Services Maintenance (Planned),B1103,21/01/2014,46279951_5,527.50,Revenue,20000210,BARKER & EVANS LTD
Oxford City Council,Regeneration and Major Projects Team,Services Maintenance (Planned),B1103,21/01/2014,46279952_1,315.00,Revenue,20000210,BARKER & EVANS LTD
Oxford City Council,Housing and Property,Services Maintenance (Planned),B1103,21/01/2014,46279952_2,6623.57,Revenue,20000210,BARKER & EVANS LTD
Oxford City Council,"Leisure, Parks & Communities",Services Maintenance (Planned),B1103,21/01/2014,46279952_3,969.69,Revenue,20000210,BARKER & EVANS LTD
Oxford City Council,Regeneration and Major Projects Team,Services Maintenance (Planned),B1103,21/01/2014,46279952_4,2362.73,Revenue,20000210,BARKER & EVANS LTD
Oxford City Council,Regeneration and Major Projects Team,Main Contractor,Y021,21/01/2014,48020572_1,14362.00,Capital,20000210,BARKER & EVANS LTD
Oxford City Council,Regeneration and Major Projects Team,Main Contractor,Y021,28/01/2014,48020586_1,4860.00,Capital,20000210,BARKER & EVANS LTD
Oxford City Council,Regeneration and Major Projects Team,Main Contractor,Y021,28/01/2014,48020587_1,3972.92,Capital,20000210,BARKER & EVANS LTD
Oxford City Council,HRA,Main Contractor,Y021,25/03/2014,48020772_1,2004.00,Capital,20000210,BARKER & EVANS LTD
Oxford City Council,Direct Services,Direct Services Supplies & Services,D3311   ,18/03/2014,60017341_1,40139.00,Revenue,20000210,BARKER & EVANS LTD
Oxford City Council,"Leisure, Parks & Communities",Services Maintenance (Planned),B1103,21/01/2014,46279799_1,2956.80,Revenue,20000216,CHRISTY LIGHTING LTD
Oxford City Council,General Fund,VAT Pro Forma Invoices,Z110205,21/01/2014,46279799_2,591.36,Revenue,20000216,CHRISTY LIGHTING LTD
Oxford City Council,Environmental Development,Grants-Private Persons,Y005,04/03/2014,1004016_1,3323.00,Capital,20000222,ELLIOTT & JORDAN LTD
Oxford City Council,Environmental Development,Grants-Private Persons,Y005,04/02/2014,48020644_1,3904.27,Capital,20000222,ELLIOTT & JORDAN LTD
Oxford City Council,Environmental Development,Grants-Private Persons,Y005,04/02/2014,48020645_1,3334.52,Capital,20000222,ELLIOTT & JORDAN LTD
Oxford City Council,Environmental Development,Grants-Private Persons,Y005,04/02/2014,48020646_1,3189.00,Capital,20000222,ELLIOTT & JORDAN LTD
Oxford City Council,Environmental Development,Grants-Private Persons,Y005,18/02/2014,48020676_1,5246.26,Capital,20000222,ELLIOTT & JORDAN LTD
Oxford City Council,Environmental Development,Grants-Private Persons,Y005,04/03/2014,48020713_1,3449.15,Capital,20000222,ELLIOTT & JORDAN LTD
Oxford City Council,Environmental Development,Grants-Private Persons,Y005,04/03/2014,48020714_1,4494.23,Capital,20000222,ELLIOTT & JORDAN LTD
Oxford City Council,Environmental Development,Grants-Private Persons,Y005,25/03/2014,48020777_1,815.00,Capital,20000222,ELLIOTT & JORDAN LTD
Oxford City Council,Environmental Development,Grants-Private Persons,Y005,25/03/2014,48020778_1,3790.00,Capital,20000222,ELLIOTT & JORDAN LTD
Oxford City Council,Environmental Development,Grants-Private Persons,Y005,25/03/2014,48020779_1,3775.90,Capital,20000222,ELLIOTT & JORDAN LTD
Oxford City Council,HRA,Fire Damage & Other Equipment Repairs,B1305,04/02/2014,46280084_1,18847.78,Revenue,20000225,FERGAL CONTRACTING CO LTD
Oxford City Council,Direct Services,Direct Services Supplies & Services,D3311   ,18/03/2014,60017380_0,21930.25,Revenue,20000225,FERGAL CONTRACTING CO LTD
Oxford City Council,Direct Services,Direct Services Supplies & Services,D3311,11/03/2014,60017028_1,510.97,Revenue,20000227,GEORGE HENRY & CO RELAY LTD
Oxford City Council,HRA,Paint & Repair External Joinery,B1184,07/01/2014,46279666_1,62277.16,Revenue,20000233,JONES & REEVES
Oxford City Council,Direct Services,Direct Services Supplies & Services,D3311   ,04/02/2014,60015632_1,3686.40,Revenue,20000233,JONES & REEVES
Oxford City Council,Direct Services,Direct Services Supplies & Services,D3311   ,04/02/2014,60015633_1,3600.00,Revenue,20000233,JONES & REEVES
Oxford City Council,Direct Services,Direct Services Supplies & Services,D3311   ,04/02/2014,60015670_0,3600.00,Revenue,20000233,JONES & REEVES
Oxford City Council,Direct Services,Direct Services Supplies & Services,D3311   ,04/02/2014,60015671_2,3600.00,Revenue,20000233,JONES & REEVES
Oxford City Council,Direct Services,Direct Services Supplies & Services,D3311   ,04/02/2014,60015672_0,3600.00,Revenue,20000233,JONES & REEVES
Oxford City Council,Direct Services,Direct Services Supplies & Services,D3311   ,04/02/2014,60015673_2,3600.00,Revenue,20000233,JONES & REEVES
Oxford City Council,Direct Services,Direct Services Supplies & Services,D3311,04/03/2014,60016929_2,3600.00,Revenue,20000233,JONES & REEVES
Oxford City Council,Direct Services,Direct Services Supplies & Services,D3311,11/03/2014,60017078_1,3772.80,Revenue,20000233,JONES & REEVES
Oxford City Council,Direct Services,Direct Services Supplies & Services,D3311,11/03/2014,60017080_1,3729.60,Revenue,20000233,JONES & REEVES
Oxford City Council,Direct Services,Direct Services Supplies & Services,D3311,11/03/2014,60017082_1,3600.00,Revenue,20000233,JONES & REEVES
Oxford City Council,Direct Services,Direct Services Supplies & Services,D3311,11/03/2014,60017083_2,3600.00,Revenue,20000233,JONES & REEVES
Oxford City Council,Direct Services,Direct Services Supplies & Services,D3311,11/03/2014,60017084_0,3600.00,Revenue,20000233,JONES & REEVES
Oxford City Council,Direct Services,Direct Services Supplies & Services,D3311,11/03/2014,60017085_2,3600.00,Revenue,20000233,JONES & REEVES
Oxford City Council,Direct Services,Direct Services Supplies & Services,D3311   ,18/03/2014,60017527_0,500.00,Revenue,20000233,JONES & REEVES
Oxford City Council,Direct Services,Direct Services Supplies & Services,D3311   ,18/03/2014,60017528_2,500.00,Revenue,20000233,JONES & REEVES
Oxford City Council,Direct Services,Direct Services Supplies & Services,D3311   ,18/03/2014,60017529_0,500.00,Revenue,20000233,JONES & REEVES
Oxford City Council,Direct Services,Direct Services Supplies & Services,D3311   ,18/03/2014,60017530_2,500.00,Revenue,20000233,JONES & REEVES
Oxford City Council,Direct Services,Direct Services Supplies & Services,D3311   ,18/03/2014,60017531_0,500.00,Revenue,20000233,JONES & REEVES
Oxford City Council,Direct Services,Direct Services Supplies & Services,D3311   ,18/03/2014,60017532_2,500.00,Revenue,20000233,JONES & REEVES
Oxford City Council,Direct Services,Direct Services Supplies & Services,D3311   ,18/03/2014,60017533_0,500.00,Revenue,20000233,JONES & REEVES
Oxford City Council,Direct Services,Direct Services Supplies & Services,D3311   ,18/03/2014,60017534_2,500.00,Revenue,20000233,JONES & REEVES
Oxford City Council,Direct Services,Direct Services Supplies & Services,D3311   ,18/03/2014,60017535_0,500.00,Revenue,20000233,JONES & REEVES
Oxford City Council,Direct Services,Direct Services Supplies & Services,D3311   ,18/03/2014,60017536_2,800.00,Revenue,20000233,JONES & REEVES
Oxford City Council,Direct Services,Direct Services Supplies & Services,D3311   ,18/03/2014,60017544_2,900.00,Revenue,20000233,JONES & REEVES
Oxford City Council,Direct Services,Direct Services Supplies & Services,D3311   ,18/03/2014,60017545_0,500.00,Revenue,20000233,JONES & REEVES
Oxford City Council,Direct Services,Direct Services Supplies & Services,D3311   ,18/03/2014,60017546_2,500.00,Revenue,20000233,JONES & REEVES
Oxford City Council,Direct Services,Direct Services Supplies & Services,D3311   ,18/03/2014,60017547_0,500.00,Revenue,20000233,JONES & REEVES
Oxford City Council,Direct Services,Direct Services Supplies & Services,D3311   ,25/03/2014,60018050_1,500.00,Revenue,20000233,JONES & REEVES
Oxford City Council,HRA,Main Contractor,Y021,04/02/2014,48020589_1,3982.00,Capital,20000236,J B LEADBITTER & CO LTD
Oxford City Council,HRA,Main Contractor,Y021,04/02/2014,48020589_2,141662.54,Capital,20000236,J B LEADBITTER & CO LTD
Oxford City Council,HRA,Main Contractor,Y021,04/03/2014,48020727_1,125578.62,Capital,20000236,J B LEADBITTER & CO LTD
Oxford City Council,Regeneration and Major Projects Team,Main Contractor,Y021,25/03/2014,48020771_1,1269.50,Capital,20000244,OXFORD REFRIGERATION LTD
Oxford City Council,Direct Services,Health & Safety,B1309,14/01/2014,46279733_1,274.63,Revenue,20000249,SSE CONTRACTING LTD
Oxford City Council,Direct Services,Reactive Maintenance & Minor Repairs,B1101,14/01/2014,46279733_2,1686.40,Revenue,20000249,SSE CONTRACTING LTD
Oxford City Council,Housing and Property,Services Maintenance (Planned),B1103,14/01/2014,46279733_3,553.50,Revenue,20000249,SSE CONTRACTING LTD
Oxford City Council,Direct Services,Health & Safety,B1309,14/01/2014,46279733_4,226.16,Revenue,20000249,SSE CONTRACTING LTD
Oxford City Council,Direct Services,Health & Safety,B1309,14/01/2014,46279733_5,760.10,Revenue,20000249,SSE CONTRACTING LTD
Oxford City Council,Direct Services,Health & Safety,B1309,14/01/2014,46279733_6,174.00,Revenue,20000249,SSE CONTRACTING LTD
Oxford City Council,Direct Services,Health & Safety,B1309,11/02/2014,46280249_1,2596.62,Revenue,20000249,SSE CONTRACTING LTD
Oxford City Council,Direct Services,Health & Safety,B1309,11/02/2014,46280249_2,70.00,Revenue,20000249,SSE CONTRACTING LTD
Oxford City Council,Direct Services,Health & Safety,B1309,04/03/2014,46280554_1,712.00,Revenue,20000249,SSE CONTRACTING LTD
Oxford City Council,Housing and Property,Health & Safety,B1309,04/03/2014,46280554_2,1861.48,Revenue,20000249,SSE CONTRACTING LTD
Oxford City Council,"Leisure, Parks & Communities",Materials,D3021,11/03/2014,1004117_1,2846.66,Revenue,20000253,S. J.  MCBRIDE  LTD.  T/A  WAREFENCE
Oxford City Council,"Leisure, Parks & Communities",Materials,D3021,18/03/2014,1004259_1,13224.00,Revenue,20000253,S. J.  MCBRIDE  LTD.  T/A  WAREFENCE
Oxford City Council,Direct Services,Direct Services Supplies & Services,D3311,07/01/2014,60014391_1,894.58,Revenue,20000258,L A WOOD (OXON) LTD
Oxford City Council,Direct Services,Direct Services Supplies & Services,D3311,07/01/2014,60014392_1,595.42,Revenue,20000258,L A WOOD (OXON) LTD
Oxford City Council,Direct Services,Direct Services Supplies & Services,D3311,07/01/2014,60014393_1,1230.00,Revenue,20000258,L A WOOD (OXON) LTD
Oxford City Council,Direct Services,Direct Services Supplies & Services,D3311,07/01/2014,60014394_1,554.76,Revenue,20000258,L A WOOD (OXON) LTD
Oxford City Council,Direct Services,Direct Services Supplies & Services,D3311   ,11/02/2014,60015791_1,1446.50,Revenue,20000258,L A WOOD (OXON) LTD
Oxford City Council,Direct Services,Direct Services Supplies & Services,D3311   ,18/02/2014,60016082_0,789.04,Revenue,20000258,L A WOOD (OXON) LTD
Oxford City Council,Direct Services,Direct Services Supplies & Services,D3311   ,18/02/2014,60016083_1,1119.11,Revenue,20000258,L A WOOD (OXON) LTD
Oxford City Council,Direct Services,Direct Services Supplies & Services,D3311   ,18/02/2014,60016084_1,543.92,Revenue,20000258,L A WOOD (OXON) LTD
Oxford City Council,Direct Services,Direct Services Supplies & Services,D3311,11/03/2014,60017103_1,18900.00,Revenue,20000258,L A WOOD (OXON) LTD
Oxford City Council,Direct Services,Direct Services Supplies & Services,D3311   ,25/03/2014,60017773_0,1127.22,Revenue,20000258,L A WOOD (OXON) LTD
Oxford City Council,Direct Services,General Contracted Services,D3401,07/01/2014,60014195_1,1462.79,Revenue,20000263,SHEEHAN HAULAGE & PLANT HIRE LTD
Oxford City Council,Direct Services,Materials,D3021,07/01/2014,60014336_2,1486.14,Revenue,20000263,SHEEHAN HAULAGE & PLANT HIRE LTD
Oxford City Council,Direct Services,Materials,D3021,07/01/2014,60014338_2,587.76,Revenue,20000263,SHEEHAN HAULAGE & PLANT HIRE LTD
Oxford City Council,Direct Services,General Contracted Services,D3401,14/01/2014,60014691_1,4304.96,Revenue,20000263,SHEEHAN HAULAGE & PLANT HIRE LTD
Oxford City Council,Direct Services,General Contracted Services,D3401,14/01/2014,60014693_1,7320.72,Revenue,20000263,SHEEHAN HAULAGE & PLANT HIRE LTD
Oxford City Council,Direct Services,Materials,D3021,14/01/2014,60014694_1,643.28,Revenue,20000263,SHEEHAN HAULAGE & PLANT HIRE LTD
Oxford City Council,Direct Services,Materials,D3021,21/01/2014,60014890_1,2409.16,Revenue,20000263,SHEEHAN HAULAGE & PLANT HIRE LTD
Oxford City Council,Direct Services,General Contracted Services,D3401,21/01/2014,60014892_1,4880.48,Revenue,20000263,SHEEHAN HAULAGE & PLANT HIRE LTD
Oxford City Council,Direct Services,General Contracted Services,D3401,21/01/2014,60014893_1,887.36,Revenue,20000263,SHEEHAN HAULAGE & PLANT HIRE LTD
Oxford City Council,Direct Services,Materials,D3021,21/01/2014,60014894_1,2294.25,Revenue,20000263,SHEEHAN HAULAGE & PLANT HIRE LTD
Oxford City Council,Direct Services,Materials,D3021,21/01/2014,60014904_1,1192.88,Revenue,20000263,SHEEHAN HAULAGE & PLANT HIRE LTD
Oxford City Council,HRA,Asbestos Work,B1106   ,04/02/2014,60015553_0,606.00,Revenue,20000263,SHEEHAN HAULAGE & PLANT HIRE LTD
Oxford City Council,Direct Services,Waste Disposal & Skip Hire,D3420   ,11/02/2014,60015992_0,574.97,Revenue,20000263,SHEEHAN HAULAGE & PLANT HIRE LTD
Oxford City Council,Direct Services,General Contracted Services,D3401   ,11/02/2014,60015994_0,3387.60,Revenue,20000263,SHEEHAN HAULAGE & PLANT HIRE LTD
Oxford City Council,Direct Services,General Contracted Services,D3401   ,18/02/2014,60016129_2,1564.42,Revenue,20000263,SHEEHAN HAULAGE & PLANT HIRE LTD
Oxford City Council,Direct Services,General Contracted Services,D3401   ,18/02/2014,60016131_1,1986.76,Revenue,20000263,SHEEHAN HAULAGE & PLANT HIRE LTD
Oxford City Council,Direct Services,Materials,D3021,11/03/2014,60017173_1,827.66,Revenue,20000263,SHEEHAN HAULAGE & PLANT HIRE LTD
Oxford City Council,Direct Services,Materials,D3021,11/03/2014,60017181_1,1377.24,Revenue,20000263,SHEEHAN HAULAGE & PLANT HIRE LTD
Oxford City Council,Direct Services,Materials,D3021,11/03/2014,60017185_1,1709.01,Revenue,20000263,SHEEHAN HAULAGE & PLANT HIRE LTD
Oxford City Council,Direct Services,Materials,D3021,11/03/2014,60017186_1,1308.72,Revenue,20000263,SHEEHAN HAULAGE & PLANT HIRE LTD
Oxford City Council,Direct Services,General Contracted Services,D3401,11/03/2014,60017189_1,830.05,Revenue,20000263,SHEEHAN HAULAGE & PLANT HIRE LTD
Oxford City Council,Direct Services,General Contracted Services,D3401,11/03/2014,60017190_1,733.49,Revenue,20000263,SHEEHAN HAULAGE & PLANT HIRE LTD
Oxford City Council,Direct Services,General Contracted Services,D3401,11/03/2014,60017191_1,2170.97,Revenue,20000263,SHEEHAN HAULAGE & PLANT HIRE LTD
Oxford City Council,Direct Services,Materials,D3021,11/03/2014,60017192_1,1985.87,Revenue,20000263,SHEEHAN HAULAGE & PLANT HIRE LTD
Oxford City Council,Direct Services,General Contracted Services,D3401,11/03/2014,60017193_1,4774.40,Revenue,20000263,SHEEHAN HAULAGE & PLANT HIRE LTD
Oxford City Council,Direct Services,General Contracted Services,D3401   ,18/03/2014,60017416_1,2143.68,Revenue,20000263,SHEEHAN HAULAGE & PLANT HIRE LTD
Oxford City Council,Direct Services,General Contracted Services,D3401   ,25/03/2014,60017802_2,6963.28,Revenue,20000263,SHEEHAN HAULAGE & PLANT HIRE LTD
Oxford City Council,Direct Services,General Contracted Services,D3401   ,25/03/2014,60017806_2,2319.91,Revenue,20000263,SHEEHAN HAULAGE & PLANT HIRE LTD
Oxford City Council,Direct Services,General Contracted Services,D3401   ,25/03/2014,60017807_0,1423.69,Revenue,20000263,SHEEHAN HAULAGE & PLANT HIRE LTD
Oxford City Council,Direct Services,General Contracted Services,D3401   ,25/03/2014,60018059_1,765.60,Revenue,20000263,SHEEHAN HAULAGE & PLANT HIRE LTD
Oxford City Council,Direct Services,Direct Services Supplies & Services,D3311,21/01/2014,60014907_1,34134.25,Revenue,20000267,JOHN SHEEHAN (OXFORD) LTD
Oxford City Council,Direct Services,Direct Services Supplies & Services,D3311   ,25/02/2014,60016558_1,1455.00,Revenue,20000278,B & M ENGINEERS LIMITED
Oxford City Council,Direct Services,Sign Shop Materials,D3018,04/03/2014,60016855_2,1437.54,Revenue,20000278,B & M ENGINEERS LIMITED
Oxford City Council,Direct Services,Sign Shop Materials,D3018   ,25/03/2014,60017839_0,3492.00,Revenue,20000278,B & M ENGINEERS LIMITED
Oxford City Council,Environmental Development,Grants-Private Persons,Y005,04/02/2014,48020647_1,4056.00,Capital,20000281,STANNAH LIFT SERVICES LTD
Oxford City Council,Environmental Development,Grants-Private Persons,Y005,18/02/2014,48020677_1,3993.00,Capital,20000281,STANNAH LIFT SERVICES LTD
Oxford City Council,Environmental Development,Grants-Private Persons,Y005,25/03/2014,48020769_1,5617.00,Capital,20000281,STANNAH LIFT SERVICES LTD
Oxford City Council,Regeneration and Major Projects Team,Reactive Maintenance & Minor Repairs,B1101,21/01/2014,46279802_1,563.00,Revenue,20000286,D E & H V HUSSEY
Oxford City Council,Regeneration and Major Projects Team,Reactive Maintenance & Minor Repairs,B1101,21/01/2014,46279805_1,950.00,Revenue,20000286,D E & H V HUSSEY
Oxford City Council,Housing and Property,Reactive Maintenance & Minor Repairs,B1101,18/02/2014,46280308_1,935.00,Revenue,20000286,D E & H V HUSSEY
Oxford City Council,Housing and Property,Reactive Maintenance & Minor Repairs,B1101,25/02/2014,46280379_1,748.00,Revenue,20000286,D E & H V HUSSEY
Oxford City Council,Housing and Property,Reactive Maintenance & Minor Repairs,B1101,04/03/2014,46280526_1,777.36,Revenue,20000286,D E & H V HUSSEY
Oxford City Council,Housing and Property,Reactive Maintenance & Minor Repairs,B1101,11/03/2014,46280602_1,585.00,Revenue,20000286,D E & H V HUSSEY
Oxford City Council,Regeneration and Major Projects Team,Reactive Maintenance & Minor Repairs,B1101,18/03/2014,46280723_1,800.00,Revenue,20000286,D E & H V HUSSEY
Oxford City Council,Regeneration and Major Projects Team,Main Contractor,Y021,04/02/2014,48020612_1,884.00,Capital,20000286,D E & H V HUSSEY
Oxford City Council,Regeneration and Major Projects Team,Main Contractor,Y021,18/02/2014,48020673_1,978.00,Capital,20000286,D E & H V HUSSEY
Oxford City Council,Regeneration and Major Projects Team,Main Contractor,Y021,04/03/2014,48020715_1,897.00,Capital,20000286,D E & H V HUSSEY
Oxford City Council,Regeneration and Major Projects Team,Reactive Maintenance & Minor Repairs,B1101,21/01/2014,60014847_1,2601.00,Revenue,20000286,D E & H V HUSSEY
Oxford City Council,Regeneration and Major Projects Team,Reactive Maintenance & Minor Repairs,B1101,21/01/2014,60014848_1,645.00,Revenue,20000286,D E & H V HUSSEY
Oxford City Council,Regeneration and Major Projects Team,Reactive Maintenance & Minor Repairs,B1101,21/01/2014,60014849_1,1188.00,Revenue,20000286,D E & H V HUSSEY
Oxford City Council,Direct Services,General Contracted Services,D3401   ,04/02/2014,60015333_1,1235.10,Revenue,20000289,THOMAS RAFFERTY & CO
Oxford City Council,Direct Services,Street Furniture,B1014   ,11/02/2014,60015996_0,1288.80,Revenue,20000289,THOMAS RAFFERTY & CO
Oxford City Council,Direct Services,General Contracted Services,D3401,04/03/2014,60016790_1,1825.00,Revenue,20000289,THOMAS RAFFERTY & CO
Oxford City Council,Direct Services,Materials,D3021,11/03/2014,60017165_2,1008.00,Revenue,20000289,THOMAS RAFFERTY & CO
Oxford City Council,HRA,Warden Control Centre,B1244,07/01/2014,46279590_1,1412.28,Revenue,20000293,TUNSTALL TELECOM LIMITED
Oxford City Council,HRA,Warden Control Centre,B1244,07/01/2014,46279590_2,92.64,Revenue,20000293,TUNSTALL TELECOM LIMITED
Oxford City Council,HRA,Warden Control Centre,B1244,04/02/2014,46280085_1,1412.28,Revenue,20000293,TUNSTALL TELECOM LIMITED
Oxford City Council,HRA,Warden Control Centre,B1244,04/02/2014,46280085_2,92.64,Revenue,20000293,TUNSTALL TELECOM LIMITED
Oxford City Council,HRA,Warden Control Centre,B1244,11/03/2014,46280607_1,1412.28,Revenue,20000293,TUNSTALL TELECOM LIMITED
Oxford City Council,HRA,Warden Control Centre,B1244,11/03/2014,46280607_2,92.64,Revenue,20000293,TUNSTALL TELECOM LIMITED
Oxford City Council,Direct Services,Direct Services Supplies & Services,D3311   ,18/03/2014,60017507_0,591.82,Revenue,20000368,ENVIROVENT LTD
Oxford City Council,Regeneration and Major Projects Team,Reactive Maintenance & Minor Repairs,B1101,14/01/2014,46279698_1,994.70,Revenue,20000397,WINDRUSH DOOR & WINDOW SERVICES LTD
Oxford City Council,Regeneration and Major Projects Team,Services Maintenance (Planned),B1103,21/01/2014,46279800_1,695.00,Revenue,20000397,WINDRUSH DOOR & WINDOW SERVICES LTD
Oxford City Council,Direct Services,Direct Services Supplies & Services,D3311,07/01/2014,60014403_1,600.60,Revenue,20000441,1ST CHOICE SCAFFOLDING (OXFORD) LTD
Oxford City Council,Direct Services,Direct Services Supplies & Services,D3311,07/01/2014,60014405_1,631.80,Revenue,20000441,1ST CHOICE SCAFFOLDING (OXFORD) LTD
Oxford City Council,Direct Services,Direct Services Supplies & Services,D3311   ,18/02/2014,60016085_1,585.00,Revenue,20000441,1ST CHOICE SCAFFOLDING (OXFORD) LTD
Oxford City Council,Direct Services,Direct Services Supplies & Services,D3311   ,25/02/2014,60016544_1,5400.00,Revenue,20000441,1ST CHOICE SCAFFOLDING (OXFORD) LTD
Oxford City Council,Direct Services,Direct Services Supplies & Services,D3311   ,25/02/2014,60016552_1,600.60,Revenue,20000441,1ST CHOICE SCAFFOLDING (OXFORD) LTD
Oxford City Council,Direct Services,Direct Services Supplies & Services,D3311   ,25/02/2014,60016556_1,702.00,Revenue,20000441,1ST CHOICE SCAFFOLDING (OXFORD) LTD
Oxford City Council,Direct Services,Direct Services Supplies & Services,D3311,04/03/2014,60016863_1,5774.00,Revenue,20000441,1ST CHOICE SCAFFOLDING (OXFORD) LTD
Oxford City Council,Direct Services,Direct Services Supplies & Services,D3311,11/03/2014,60016995_1,600.60,Revenue,20000441,1ST CHOICE SCAFFOLDING (OXFORD) LTD
Oxford City Council,Direct Services,Direct Services Supplies & Services,D3311,11/03/2014,60017003_1,546.00,Revenue,20000441,1ST CHOICE SCAFFOLDING (OXFORD) LTD
Oxford City Council,Direct Services,Direct Services Supplies & Services,D3311   ,18/03/2014,60017344_1,5400.00,Revenue,20000441,1ST CHOICE SCAFFOLDING (OXFORD) LTD
Oxford City Council,Direct Services,Direct Services Supplies & Services,D3311   ,18/03/2014,60017346_0,546.00,Revenue,20000441,1ST CHOICE SCAFFOLDING (OXFORD) LTD
Oxford City Council,Direct Services,Direct Services Supplies & Services,D3311   ,18/03/2014,60017348_0,546.00,Revenue,20000441,1ST CHOICE SCAFFOLDING (OXFORD) LTD
Oxford City Council,Direct Services,Direct Services Supplies & Services,D3311   ,18/03/2014,60017350_0,772.00,Revenue,20000441,1ST CHOICE SCAFFOLDING (OXFORD) LTD
Oxford City Council,HRA,Laundry Appliances,B1222,28/01/2014,46279985_1,1112.91,Revenue,20002002,AJB ENGINEERING SERVICES LTD
Oxford City Council,HRA,Laundry Appliances,B1222,28/01/2014,46279985_2,169.17,Revenue,20002002,AJB ENGINEERING SERVICES LTD
Oxford City Council,HRA,Laundry Appliances,B1222,28/01/2014,46280044_1,916.91,Revenue,20002002,AJB ENGINEERING SERVICES LTD
Oxford City Council,HRA,Laundry Appliances,B1222,28/01/2014,46280044_2,169.17,Revenue,20002002,AJB ENGINEERING SERVICES LTD
Oxford City Council,HRA,Laundry Appliances,B1222,25/02/2014,46280443_1,1516.91,Revenue,20002002,AJB ENGINEERING SERVICES LTD
Oxford City Council,HRA,Laundry Appliances,B1222,25/02/2014,46280443_2,169.17,Revenue,20002002,AJB ENGINEERING SERVICES LTD
Oxford City Council,Direct Services,Materials,D3021,14/01/2014,60014702_1,1317.50,Revenue,20002005,HANSON AGGREGATES
Oxford City Council,Direct Services,Materials,D3021,14/01/2014,60014710_1,1270.08,Revenue,20002005,HANSON AGGREGATES
Oxford City Council,Direct Services,Materials,D3021,14/01/2014,60014719_0,792.50,Revenue,20002005,HANSON AGGREGATES
Oxford City Council,Direct Services,Materials,D3021,14/01/2014,60014720_2,1147.61,Revenue,20002005,HANSON AGGREGATES
Oxford City Council,Direct Services,Materials,D3021,14/01/2014,60014721_2,1415.67,Revenue,20002005,HANSON AGGREGATES
Oxford City Council,Direct Services,Materials,D3021,14/01/2014,60014722_0,1580.80,Revenue,20002005,HANSON AGGREGATES
Oxford City Council,Direct Services,Materials,D3021,14/01/2014,60014723_2,1600.00,Revenue,20002005,HANSON AGGREGATES
Oxford City Council,Direct Services,Materials,D3021,21/01/2014,60014875_1,1257.86,Revenue,20002005,HANSON AGGREGATES
Oxford City Council,Direct Services,Materials,D3021,21/01/2014,60014877_1,980.10,Revenue,20002005,HANSON AGGREGATES
Oxford City Council,Direct Services,Materials,D3021,21/01/2014,60014895_1,1122.18,Revenue,20002005,HANSON AGGREGATES
Oxford City Council,Direct Services,Materials,D3021,21/01/2014,60014896_1,1351.50,Revenue,20002005,HANSON AGGREGATES
Oxford City Council,Direct Services,Materials,D3021,21/01/2014,60014897_1,952.00,Revenue,20002005,HANSON AGGREGATES
Oxford City Council,Direct Services,Materials,D3021,21/01/2014,60014898_1,1476.00,Revenue,20002005,HANSON AGGREGATES
Oxford City Council,Direct Services,Materials,D3021   ,11/02/2014,60015894_1,918.56,Revenue,20002005,HANSON AGGREGATES
Oxford City Council,Direct Services,Materials,D3021   ,11/02/2014,60015897_1,1190.00,Revenue,20002005,HANSON AGGREGATES
Oxford City Council,Direct Services,Materials,D3021   ,11/02/2014,60015901_0,822.00,Revenue,20002005,HANSON AGGREGATES
Oxford City Council,Direct Services,Materials,D3021   ,11/02/2014,60015903_0,1236.10,Revenue,20002005,HANSON AGGREGATES
Oxford City Council,Direct Services,Materials,D3021   ,11/02/2014,60015905_0,9610.92,Revenue,20002005,HANSON AGGREGATES
Oxford City Council,Direct Services,Materials,D3021   ,11/02/2014,60015906_2,672.00,Revenue,20002005,HANSON AGGREGATES
Oxford City Council,Direct Services,Materials,D3021   ,11/02/2014,60015909_1,692.16,Revenue,20002005,HANSON AGGREGATES
Oxford City Council,Direct Services,Materials,D3021,04/03/2014,60016772_1,582.19,Revenue,20002005,HANSON AGGREGATES
Oxford City Council,Direct Services,Materials,D3021,04/03/2014,60016776_1,1085.98,Revenue,20002005,HANSON AGGREGATES
Oxford City Council,Direct Services,Materials,D3021,04/03/2014,60016778_1,687.96,Revenue,20002005,HANSON AGGREGATES
Oxford City Council,Direct Services,Materials,D3021,04/03/2014,60016783_1,685.44,Revenue,20002005,HANSON AGGREGATES
Oxford City Council,Direct Services,Materials,D3021,04/03/2014,60016857_2,838.97,Revenue,20002005,HANSON AGGREGATES
Oxford City Council,Suspense,Materials,D3021,04/03/2014,60016951_1,1699.16,Revenue,20002005,HANSON AGGREGATES
Oxford City Council,Suspense,Materials,D3021,04/03/2014,60016953_1,743.63,Revenue,20002005,HANSON AGGREGATES
Oxford City Council,Suspense,Materials,D3021,04/03/2014,60016954_1,882.94,Revenue,20002005,HANSON AGGREGATES
Oxford City Council,Direct Services,Materials,D3021,11/03/2014,60017150_0,1256.50,Revenue,20002005,HANSON AGGREGATES
Oxford City Council,Direct Services,Materials,D3021,11/03/2014,60017151_2,511.32,Revenue,20002005,HANSON AGGREGATES
Oxford City Council,Direct Services,Materials,D3021,11/03/2014,60017153_2,1436.00,Revenue,20002005,HANSON AGGREGATES
Oxford City Council,Direct Services,Materials,D3021,11/03/2014,60017154_0,1410.81,Revenue,20002005,HANSON AGGREGATES
Oxford City Council,Direct Services,Materials,D3021   ,18/03/2014,60017302_1,1315.20,Revenue,20002005,HANSON AGGREGATES
Oxford City Council,Direct Services,Materials,D3021   ,18/03/2014,60017303_1,837.50,Revenue,20002005,HANSON AGGREGATES
Oxford City Council,Direct Services,Materials,D3021   ,18/03/2014,60017304_1,822.28,Revenue,20002005,HANSON AGGREGATES
Oxford City Council,Direct Services,Materials,D3021   ,18/03/2014,60017305_1,657.60,Revenue,20002005,HANSON AGGREGATES
Oxford City Council,Direct Services,Materials,D3021   ,18/03/2014,60017308_1,534.00,Revenue,20002005,HANSON AGGREGATES
Oxford City Council,Direct Services,Materials,D3021   ,25/03/2014,60017847_0,1436.00,Revenue,20002005,HANSON AGGREGATES
Oxford City Council,Direct Services,Materials,D3021   ,25/03/2014,60017848_2,834.80,Revenue,20002005,HANSON AGGREGATES
Oxford City Council,Direct Services,Materials,D3021   ,25/03/2014,60017849_0,1043.50,Revenue,20002005,HANSON AGGREGATES
Oxford City Council,Direct Services,Materials,D3021   ,25/03/2014,60017850_2,626.10,Revenue,20002005,HANSON AGGREGATES
Oxford City Council,Direct Services,Materials,D3021   ,25/03/2014,60017851_0,1306.98,Revenue,20002005,HANSON AGGREGATES
Oxford City Council,Direct Services,Materials,D3021   ,25/03/2014,60017852_2,1647.29,Revenue,20002005,HANSON AGGREGATES
Oxford City Council,Direct Services,Materials,D3021   ,25/03/2014,60017853_0,596.10,Revenue,20002005,HANSON AGGREGATES
Oxford City Council,Suspense,Materials,D3021   ,18/02/2014,47974082_0,957.07,Revenue,20002033,TENNANT UK CLEANING SOLUTIONS LTD (FORMERLY APPLIED SWEEPERS LTD)
Oxford City Council,Suspense,Materials,D3021   ,18/02/2014,47974082_1,37.70,Revenue,20002033,TENNANT UK CLEANING SOLUTIONS LTD (FORMERLY APPLIED SWEEPERS LTD)
Oxford City Council,Direct Services,Veh.maint direct purchase,D3031   ,18/03/2014,47974500_2,481.60,Revenue,20002033,TENNANT UK CLEANING SOLUTIONS LTD (FORMERLY APPLIED SWEEPERS LTD)
Oxford City Council,Suspense,Materials,D3021   ,18/03/2014,47974500_3,47.28,Revenue,20002033,TENNANT UK CLEANING SOLUTIONS LTD (FORMERLY APPLIED SWEEPERS LTD)
Oxford City Council,Suspense,Materials,D3021   ,18/03/2014,47974500_4,75.40,Revenue,20002033,TENNANT UK CLEANING SOLUTIONS LTD (FORMERLY APPLIED SWEEPERS LTD)
Oxford City Council,Direct Services,Veh.maint direct purchase,D3031   ,25/03/2014,47974595_2,1174.04,Revenue,20002033,TENNANT UK CLEANING SOLUTIONS LTD (FORMERLY APPLIED SWEEPERS LTD)
Oxford City Council,Direct Services,Direct Services Supplies & Services,D3339   ,25/03/2014,60018032_1,4999.99,Revenue,20002033,TENNANT UK CLEANING SOLUTIONS LTD (FORMERLY APPLIED SWEEPERS LTD)
Oxford City Council,"Leisure, Parks & Communities",Protective Clothing,D3201,04/03/2014,1003856_1,101.55,Revenue,20002034,ARCO LTD
Oxford City Council,"Leisure, Parks & Communities",Protective Clothing,D3201,04/03/2014,1003856_2,165.49,Revenue,20002034,ARCO LTD
Oxford City Council,"Leisure, Parks & Communities",Materials,D3021,04/03/2014,1003856_3,27.13,Revenue,20002034,ARCO LTD
Oxford City Council,"Leisure, Parks & Communities",Protective Clothing,D3201,04/03/2014,1003856_4,52.25,Revenue,20002034,ARCO LTD
Oxford City Council,"Leisure, Parks & Communities",Protective Clothing,D3201,04/03/2014,1003856_5,80.00,Revenue,20002034,ARCO LTD
Oxford City Council,"Leisure, Parks & Communities",Protective Clothing,D3201,04/03/2014,1003856_6,53.10,Revenue,20002034,ARCO LTD
Oxford City Council,"Leisure, Parks & Communities",Materials,D3021,04/03/2014,1003856_7,13.44,Revenue,20002034,ARCO LTD
Oxford City Council,"Leisure, Parks & Communities",Materials,D3021,04/03/2014,1003856_8,13.44,Revenue,20002034,ARCO LTD
Oxford City Council,"Leisure, Parks & Communities",Protective Clothing,D3201,18/03/2014,1004155_1,110.59,Revenue,20002034,ARCO LTD
Oxford City Council,"Leisure, Parks & Communities",Protective Clothing,D3201,18/03/2014,1004155_2,66.93,Revenue,20002034,ARCO LTD
Oxford City Council,"Leisure, Parks & Communities",Protective Clothing,D3201,18/03/2014,1004155_3,340.26,Revenue,20002034,ARCO LTD
Oxford City Council,"Leisure, Parks & Communities",Protective Clothing,D3201,18/03/2014,1004155_4,18.28,Revenue,20002034,ARCO LTD
Oxford City Council,"Leisure, Parks & Communities",Protective Clothing,D3201,18/03/2014,1004155_5,20.44,Revenue,20002034,ARCO LTD
Oxford City Council,Human Resources & Facilities,Temporary Bureau Staffing,A0108,11/02/2014,1003416_1,675.00,Revenue,20002063,BARTON COMMUNITY ASSOCIATION
Oxford City Council,"Leisure, Parks & Communities",Contributions,D3702,14/01/2014,46279758_1,1000.00,Revenue,20002063,BARTON COMMUNITY ASSOCIATION
Oxford City Council,"Leisure, Parks & Communities",Grants,D3701,28/01/2014,46279988_1,2000.00,Revenue,20002063,BARTON COMMUNITY ASSOCIATION
Oxford City Council,"Leisure, Parks & Communities",Grants,D3701,25/03/2014,46274967_1,7000.00,Revenue,20002085,FUSION
Oxford City Council,"Leisure, Parks & Communities",Other Miscellaneous Expenses,D3811,18/03/2014,46280770_1,691.20,Revenue,20002085,FUSION
Oxford City Council,Housing and Property,Gas,B1502,14/01/2014,1002809_1,651.64,Revenue,20002096,BRITISH GAS TRADING LTD
Oxford City Council,Direct Services,Street Furniture,B1014,11/03/2014,60017284_0,2340.00,Revenue,20002110,BROXAP LIMITED
Oxford City Council,Direct Services,Materials,D3021   ,25/03/2014,60017846_2,4151.00,Revenue,20002110,BROXAP LIMITED
Oxford City Council,Direct Services,Security Services,D3418,25/02/2014,1003475_1,4449.11,Revenue,20002120,OCS GROUP UK LTD T/A CANNON
Oxford City Council,Direct Services,Security Services,D3418,25/02/2014,1003476_1,543.13,Revenue,20002120,OCS GROUP UK LTD T/A CANNON
Oxford City Council,Direct Services,Security Services,D3418,28/01/2014,46279739_1,543.13,Revenue,20002120,OCS GROUP UK LTD T/A CANNON
Oxford City Council,Direct Services,Security Services,D3418,28/01/2014,46279740_1,4449.11,Revenue,20002120,OCS GROUP UK LTD T/A CANNON
Oxford City Council,Regeneration and Major Projects Team,General Contracted Services,D3401,28/01/2014,46279863_1,20.01,Revenue,20002120,OCS GROUP UK LTD T/A CANNON
Oxford City Council,Direct Services,Toilet Requisites,B1604,28/01/2014,46279863_10,20.79,Revenue,20002120,OCS GROUP UK LTD T/A CANNON
Oxford City Council,"Policy, Culture and Communication",Toilet Requisites,B1604,28/01/2014,46279863_11,4.56,Revenue,20002120,OCS GROUP UK LTD T/A CANNON
Oxford City Council,"Leisure, Parks & Communities",Toilet Requisites,B1604,28/01/2014,46279863_12,9.09,Revenue,20002120,OCS GROUP UK LTD T/A CANNON
Oxford City Council,Human Resources & Facilities,Toilet Requisites,B1604,28/01/2014,46279863_13,4.56,Revenue,20002120,OCS GROUP UK LTD T/A CANNON
Oxford City Council,"Leisure, Parks & Communities",Toilet Requisites,B1604,28/01/2014,46279863_14,61.74,Revenue,20002120,OCS GROUP UK LTD T/A CANNON
Oxford City Council,Regeneration and Major Projects Team,Toilet Requisites,B1604,28/01/2014,46279863_2,59.16,Revenue,20002120,OCS GROUP UK LTD T/A CANNON
Oxford City Council,Regeneration and Major Projects Team,Toilet Requisites,B1604,28/01/2014,46279863_3,13.65,Revenue,20002120,OCS GROUP UK LTD T/A CANNON
Oxford City Council,Regeneration and Major Projects Team,Toilet Requisites,B1604,28/01/2014,46279863_4,81.39,Revenue,20002120,OCS GROUP UK LTD T/A CANNON
Oxford City Council,Regeneration and Major Projects Team,Toilet Requisites,B1604,28/01/2014,46279863_5,16.38,Revenue,20002120,OCS GROUP UK LTD T/A CANNON
Oxford City Council,Housing and Property,Toilet Requisites,B1604,28/01/2014,46279863_6,9.09,Revenue,20002120,OCS GROUP UK LTD T/A CANNON
Oxford City Council,Regeneration and Major Projects Team,General Contracted Services,D3401,28/01/2014,46279863_7,76.44,Revenue,20002120,OCS GROUP UK LTD T/A CANNON
Oxford City Council,Regeneration and Major Projects Team,Toilet Requisites,B1604,28/01/2014,46279863_8,72.00,Revenue,20002120,OCS GROUP UK LTD T/A CANNON
Oxford City Council,Regeneration and Major Projects Team,Toilet Requisites,B1604,28/01/2014,46279863_9,243.36,Revenue,20002120,OCS GROUP UK LTD T/A CANNON
Oxford City Council,Human Resources & Facilities,Hardware Rental,D3521,14/01/2014,1002831_1,757.70,Revenue,20002121,CANON (UK) LTD
Oxford City Council,Human Resources & Facilities,Photocopying/Paper Supplies,D3306,21/01/2014,1002887_1,1434.55,Revenue,20002121,CANON (UK) LTD
Oxford City Council,Human Resources & Facilities,Photocopying/Paper Supplies,D3306,11/02/2014,1003248_1,1591.72,Revenue,20002121,CANON (UK) LTD
Oxford City Council,Human Resources & Facilities,Hardware Rental,D3521,25/03/2014,1004187_1,805.40,Revenue,20002121,CANON (UK) LTD
Oxford City Council,Human Resources & Facilities,Hardware Rental,D3521,25/03/2014,1004191_1,848.54,Revenue,20002121,CANON (UK) LTD
Oxford City Council,Human Resources & Facilities,Hardware Rental,D3521,25/03/2014,1004192_1,1691.03,Revenue,20002121,CANON (UK) LTD
Oxford City Council,Direct Services,Photocopying/Paper Supplies,D3306,25/03/2014,1004193_1,628.63,Revenue,20002121,CANON (UK) LTD
Oxford City Council,Direct Services,Photocopying/Paper Supplies,D3306,25/03/2014,1004196_1,930.37,Revenue,20002121,CANON (UK) LTD
Oxford City Council,Direct Services,Veh.maint direct purchase,D3031,18/03/2014,46280854_1,12356.00,Revenue,20002134,HARTWELL FORD KIDLINGTON
Oxford City Council,Direct Services,Veh.maint direct purchase,D3031,18/03/2014,46280854_2,275.00,Revenue,20002134,HARTWELL FORD KIDLINGTON
Oxford City Council,Direct Services,Veh.maint direct purchase,D3031,18/03/2014,46280855_1,275.00,Revenue,20002134,HARTWELL FORD KIDLINGTON
Oxford City Council,Direct Services,Veh.maint direct purchase,D3031,18/03/2014,46280855_2,12356.00,Revenue,20002134,HARTWELL FORD KIDLINGTON
Oxford City Council,Direct Services,Main Contractor,Y021    ,28/01/2014,47973825_1,13456.60,Capital,20002134,HARTWELL FORD KIDLINGTON
Oxford City Council,Direct Services,Main Contractor,Y021    ,28/01/2014,47973825_10,4656.58,Capital,20002134,HARTWELL FORD KIDLINGTON
Oxford City Council,Direct Services,Main Contractor,Y021    ,28/01/2014,47973825_11,275.00,Capital,20002134,HARTWELL FORD KIDLINGTON
Oxford City Council,Direct Services,Main Contractor,Y021    ,28/01/2014,47973825_2,140.00,Capital,20002134,HARTWELL FORD KIDLINGTON
Oxford City Council,Direct Services,Main Contractor,Y021    ,28/01/2014,47973825_3,200.00,Capital,20002134,HARTWELL FORD KIDLINGTON
Oxford City Council,Direct Services,Main Contractor,Y021    ,28/01/2014,47973825_4,150.00,Capital,20002134,HARTWELL FORD KIDLINGTON
Oxford City Council,Direct Services,Main Contractor,Y021    ,28/01/2014,47973825_5,70.00,Capital,20002134,HARTWELL FORD KIDLINGTON
Oxford City Council,Direct Services,Main Contractor,Y021    ,28/01/2014,47973825_6,620.83,Capital,20002134,HARTWELL FORD KIDLINGTON
Oxford City Council,Direct Services,Main Contractor,Y021    ,28/01/2014,47973825_7,197.00,Capital,20002134,HARTWELL FORD KIDLINGTON
Oxford City Council,Direct Services,Main Contractor,Y021    ,28/01/2014,47973825_8,150.00,Capital,20002134,HARTWELL FORD KIDLINGTON
Oxford City Council,Direct Services,Main Contractor,Y021    ,28/01/2014,47973825_9,195.00,Capital,20002134,HARTWELL FORD KIDLINGTON
Oxford City Council,Direct Services,Main Contractor,Y021    ,28/01/2014,47973856_1,8726.50,Capital,20002134,HARTWELL FORD KIDLINGTON
Oxford City Council,Direct Services,Main Contractor,Y021    ,28/01/2014,47973856_10,205.00,Capital,20002134,HARTWELL FORD KIDLINGTON
Oxford City Council,Direct Services,Main Contractor,Y021    ,28/01/2014,47973856_2,180.00,Capital,20002134,HARTWELL FORD KIDLINGTON
Oxford City Council,Direct Services,Main Contractor,Y021    ,28/01/2014,47973856_3,150.00,Capital,20002134,HARTWELL FORD KIDLINGTON
Oxford City Council,Direct Services,Main Contractor,Y021    ,28/01/2014,47973856_4,90.00,Capital,20002134,HARTWELL FORD KIDLINGTON
Oxford City Council,Direct Services,Main Contractor,Y021    ,28/01/2014,47973856_5,562.50,Capital,20002134,HARTWELL FORD KIDLINGTON
Oxford City Council,Direct Services,Main Contractor,Y021    ,28/01/2014,47973856_6,150.00,Capital,20002134,HARTWELL FORD KIDLINGTON
Oxford City Council,Direct Services,Main Contractor,Y021    ,28/01/2014,47973856_7,197.00,Capital,20002134,HARTWELL FORD KIDLINGTON
Oxford City Council,Direct Services,Main Contractor,Y021    ,28/01/2014,47973856_8,2095.00,Capital,20002134,HARTWELL FORD KIDLINGTON
Oxford City Council,Direct Services,Main Contractor,Y021    ,28/01/2014,47973856_9,275.00,Capital,20002134,HARTWELL FORD KIDLINGTON
Oxford City Council,Direct Services,Main Contractor,Y021    ,04/02/2014,47973989_0,8726.50,Capital,20002134,HARTWELL FORD KIDLINGTON
Oxford City Council,Direct Services,Main Contractor,Y021    ,04/02/2014,47973989_1,180.00,Capital,20002134,HARTWELL FORD KIDLINGTON
Oxford City Council,Direct Services,Main Contractor,Y021    ,04/02/2014,47973989_2,150.00,Capital,20002134,HARTWELL FORD KIDLINGTON
Oxford City Council,Direct Services,Main Contractor,Y021    ,04/02/2014,47973989_3,90.00,Capital,20002134,HARTWELL FORD KIDLINGTON
Oxford City Council,Direct Services,Main Contractor,Y021    ,04/02/2014,47973989_4,562.50,Capital,20002134,HARTWELL FORD KIDLINGTON
Oxford City Council,Direct Services,Main Contractor,Y021    ,04/02/2014,47973989_5,150.00,Capital,20002134,HARTWELL FORD KIDLINGTON
Oxford City Council,Direct Services,Main Contractor,Y021    ,04/02/2014,47973989_6,197.00,Capital,20002134,HARTWELL FORD KIDLINGTON
Oxford City Council,Direct Services,Main Contractor,Y021    ,04/02/2014,47973989_7,2095.00,Capital,20002134,HARTWELL FORD KIDLINGTON
Oxford City Council,Direct Services,Main Contractor,Y021    ,04/02/2014,47973989_8,275.00,Capital,20002134,HARTWELL FORD KIDLINGTON
Oxford City Council,Direct Services,Main Contractor,Y021    ,04/02/2014,47973989_9,205.00,Capital,20002134,HARTWELL FORD KIDLINGTON
Oxford City Council,Suspense,Materials,D3021   ,07/01/2014,47973566_0,786.75,Revenue,20002168,DENNIS EAGLE LTD
Oxford City Council,Direct Services,Veh.maint direct purchase,D3031   ,21/01/2014,47973691_0,507.06,Revenue,20002168,DENNIS EAGLE LTD
Oxford City Council,Direct Services,Veh.maint direct purchase,D3031,25/02/2014,47974173_1,1339.87,Revenue,20002168,DENNIS EAGLE LTD
Oxford City Council,Direct Services,Veh.maint direct purchase,D3031,25/02/2014,47974229_2,555.25,Revenue,20002168,DENNIS EAGLE LTD
Oxford City Council,Direct Services,Veh.maint direct purchase,D3031,25/02/2014,47974242_0,30.50,Revenue,20002168,DENNIS EAGLE LTD
Oxford City Council,Direct Services,Veh.maint direct purchase,D3031,25/02/2014,47974242_1,131.49,Revenue,20002168,DENNIS EAGLE LTD
Oxford City Council,Direct Services,Veh.maint direct purchase,D3031,25/02/2014,47974242_10,2.64,Revenue,20002168,DENNIS EAGLE LTD
Oxford City Council,Direct Services,Veh.maint direct purchase,D3031,25/02/2014,47974242_2,7.32,Revenue,20002168,DENNIS EAGLE LTD
Oxford City Council,Direct Services,Veh.maint direct purchase,D3031,25/02/2014,47974242_3,6.77,Revenue,20002168,DENNIS EAGLE LTD
Oxford City Council,Direct Services,Veh.maint direct purchase,D3031,25/02/2014,47974242_4,285.20,Revenue,20002168,DENNIS EAGLE LTD
Oxford City Council,Direct Services,Veh.maint direct purchase,D3031,25/02/2014,47974242_5,66.81,Revenue,20002168,DENNIS EAGLE LTD
Oxford City Council,Direct Services,Veh.maint direct purchase,D3031,25/02/2014,47974242_6,19.55,Revenue,20002168,DENNIS EAGLE LTD
Oxford City Council,Direct Services,Veh.maint direct purchase,D3031,25/02/2014,47974242_7,0.92,Revenue,20002168,DENNIS EAGLE LTD
Oxford City Council,Direct Services,Veh.maint direct purchase,D3031,25/02/2014,47974242_8,6.86,Revenue,20002168,DENNIS EAGLE LTD
Oxford City Council,Direct Services,Veh.maint direct purchase,D3031,25/02/2014,47974242_9,21.46,Revenue,20002168,DENNIS EAGLE LTD
Oxford City Council,Direct Services,Veh.maint direct purchase,D3031,25/02/2014,47974273_2,99.35,Revenue,20002168,DENNIS EAGLE LTD
Oxford City Council,Direct Services,Veh.maint direct purchase,D3031,25/02/2014,47974273_3,13.27,Revenue,20002168,DENNIS EAGLE LTD
Oxford City Council,Direct Services,Veh.maint direct purchase,D3031,25/02/2014,47974273_4,78.40,Revenue,20002168,DENNIS EAGLE LTD
Oxford City Council,Direct Services,Veh.maint direct purchase,D3031,25/02/2014,47974273_5,78.40,Revenue,20002168,DENNIS EAGLE LTD
Oxford City Council,Direct Services,Veh.maint direct purchase,D3031,25/02/2014,47974273_6,30.50,Revenue,20002168,DENNIS EAGLE LTD
Oxford City Council,Direct Services,Veh.maint direct purchase,D3031,25/02/2014,47974273_7,19.55,Revenue,20002168,DENNIS EAGLE LTD
Oxford City Council,Suspense,Materials,D3021,25/02/2014,47974273_8,306.59,Revenue,20002168,DENNIS EAGLE LTD
Oxford City Council,Direct Services,Main Contractor,Y021    ,25/03/2014,47974569_1,705.00,Capital,20002168,DENNIS EAGLE LTD
Oxford City Council,Direct Services,Main Contractor,Y021    ,25/03/2014,47974588_0,705.00,Capital,20002168,DENNIS EAGLE LTD
Oxford City Council,Direct Services,Main Contractor,Y021    ,25/03/2014,47974603_10,500.00,Capital,20002168,DENNIS EAGLE LTD
Oxford City Council,Direct Services,Main Contractor,Y021    ,25/03/2014,47974603_11,1281.00,Capital,20002168,DENNIS EAGLE LTD
Oxford City Council,Direct Services,Main Contractor,Y021    ,25/03/2014,47974603_12,3300.00,Capital,20002168,DENNIS EAGLE LTD
Oxford City Council,Direct Services,Main Contractor,Y021    ,25/03/2014,47974603_13,950.00,Capital,20002168,DENNIS EAGLE LTD
Oxford City Council,Direct Services,Main Contractor,Y021    ,25/03/2014,47974603_14,750.00,Capital,20002168,DENNIS EAGLE LTD
Oxford City Council,Direct Services,Main Contractor,Y021    ,25/03/2014,47974603_15,4724.00,Capital,20002168,DENNIS EAGLE LTD
Oxford City Council,Direct Services,Main Contractor,Y021    ,25/03/2014,47974603_16,485.00,Capital,20002168,DENNIS EAGLE LTD
Oxford City Council,Direct Services,Main Contractor,Y021    ,25/03/2014,47974603_17,895.00,Capital,20002168,DENNIS EAGLE LTD
Oxford City Council,Direct Services,Main Contractor,Y021    ,25/03/2014,47974603_18,300.00,Capital,20002168,DENNIS EAGLE LTD
Oxford City Council,Direct Services,Main Contractor,Y021    ,25/03/2014,47974603_2,82131.00,Capital,20002168,DENNIS EAGLE LTD
Oxford City Council,Direct Services,Main Contractor,Y021    ,25/03/2014,47974603_3,49680.00,Capital,20002168,DENNIS EAGLE LTD
Oxford City Council,Direct Services,Main Contractor,Y021    ,25/03/2014,47974603_4,15276.00,Capital,20002168,DENNIS EAGLE LTD
Oxford City Council,Direct Services,Main Contractor,Y021    ,25/03/2014,47974603_5,580.00,Capital,20002168,DENNIS EAGLE LTD
Oxford City Council,Direct Services,Main Contractor,Y021    ,25/03/2014,47974603_6,100.00,Capital,20002168,DENNIS EAGLE LTD
Oxford City Council,Direct Services,Main Contractor,Y021    ,25/03/2014,47974603_7,630.00,Capital,20002168,DENNIS EAGLE LTD
Oxford City Council,Direct Services,Main Contractor,Y021    ,25/03/2014,47974603_8,310.00,Capital,20002168,DENNIS EAGLE LTD
Oxford City Council,Direct Services,Main Contractor,Y021    ,25/03/2014,47974603_9,260.00,Capital,20002168,DENNIS EAGLE LTD
Oxford City Council,Direct Services,Main Contractor,Y021    ,25/03/2014,47974614_0,705.00,Capital,20002168,DENNIS EAGLE LTD
Oxford City Council,Direct Services,Main Contractor,Y021    ,25/03/2014,47974623_10,500.00,Capital,20002168,DENNIS EAGLE LTD
Oxford City Council,Direct Services,Main Contractor,Y021    ,25/03/2014,47974623_11,1281.00,Capital,20002168,DENNIS EAGLE LTD
Oxford City Council,Direct Services,Main Contractor,Y021    ,25/03/2014,47974623_12,3300.00,Capital,20002168,DENNIS EAGLE LTD
Oxford City Council,Direct Services,Main Contractor,Y021    ,25/03/2014,47974623_13,950.00,Capital,20002168,DENNIS EAGLE LTD
Oxford City Council,Direct Services,Main Contractor,Y021    ,25/03/2014,47974623_14,750.00,Capital,20002168,DENNIS EAGLE LTD
Oxford City Council,Direct Services,Main Contractor,Y021    ,25/03/2014,47974623_15,4724.00,Capital,20002168,DENNIS EAGLE LTD
Oxford City Council,Direct Services,Main Contractor,Y021    ,25/03/2014,47974623_16,485.00,Capital,20002168,DENNIS EAGLE LTD
Oxford City Council,Direct Services,Main Contractor,Y021    ,25/03/2014,47974623_17,895.00,Capital,20002168,DENNIS EAGLE LTD
Oxford City Council,Direct Services,Main Contractor,Y021    ,25/03/2014,47974623_18,300.00,Capital,20002168,DENNIS EAGLE LTD
Oxford City Council,Direct Services,Main Contractor,Y021    ,25/03/2014,47974623_2,82131.00,Capital,20002168,DENNIS EAGLE LTD
Oxford City Council,Direct Services,Main Contractor,Y021    ,25/03/2014,47974623_3,49680.00,Capital,20002168,DENNIS EAGLE LTD
Oxford City Council,Direct Services,Main Contractor,Y021    ,25/03/2014,47974623_4,15276.00,Capital,20002168,DENNIS EAGLE LTD
Oxford City Council,Direct Services,Main Contractor,Y021    ,25/03/2014,47974623_5,580.00,Capital,20002168,DENNIS EAGLE LTD
Oxford City Council,Direct Services,Main Contractor,Y021    ,25/03/2014,47974623_6,100.00,Capital,20002168,DENNIS EAGLE LTD
Oxford City Council,Direct Services,Main Contractor,Y021    ,25/03/2014,47974623_7,630.00,Capital,20002168,DENNIS EAGLE LTD
Oxford City Council,Direct Services,Main Contractor,Y021    ,25/03/2014,47974623_8,310.00,Capital,20002168,DENNIS EAGLE LTD
Oxford City Council,Direct Services,Main Contractor,Y021    ,25/03/2014,47974623_9,260.00,Capital,20002168,DENNIS EAGLE LTD
Oxford City Council,Direct Services,Main Contractor,Y021    ,25/03/2014,47974627_10,500.00,Capital,20002168,DENNIS EAGLE LTD
Oxford City Council,Direct Services,Main Contractor,Y021    ,25/03/2014,47974627_11,1281.00,Capital,20002168,DENNIS EAGLE LTD
Oxford City Council,Direct Services,Main Contractor,Y021    ,25/03/2014,47974627_12,3300.00,Capital,20002168,DENNIS EAGLE LTD
Oxford City Council,Direct Services,Main Contractor,Y021    ,25/03/2014,47974627_13,950.00,Capital,20002168,DENNIS EAGLE LTD
Oxford City Council,Direct Services,Main Contractor,Y021    ,25/03/2014,47974627_14,750.00,Capital,20002168,DENNIS EAGLE LTD
Oxford City Council,Direct Services,Main Contractor,Y021    ,25/03/2014,47974627_15,4724.00,Capital,20002168,DENNIS EAGLE LTD
Oxford City Council,Direct Services,Main Contractor,Y021    ,25/03/2014,47974627_16,485.00,Capital,20002168,DENNIS EAGLE LTD
Oxford City Council,Direct Services,Main Contractor,Y021    ,25/03/2014,47974627_17,895.00,Capital,20002168,DENNIS EAGLE LTD
Oxford City Council,Direct Services,Main Contractor,Y021    ,25/03/2014,47974627_18,300.00,Capital,20002168,DENNIS EAGLE LTD
Oxford City Council,Direct Services,Main Contractor,Y021    ,25/03/2014,47974627_2,82131.00,Capital,20002168,DENNIS EAGLE LTD
Oxford City Council,Direct Services,Main Contractor,Y021    ,25/03/2014,47974627_3,49680.00,Capital,20002168,DENNIS EAGLE LTD
Oxford City Council,Direct Services,Main Contractor,Y021    ,25/03/2014,47974627_4,15276.00,Capital,20002168,DENNIS EAGLE LTD
Oxford City Council,Direct Services,Main Contractor,Y021    ,25/03/2014,47974627_5,580.00,Capital,20002168,DENNIS EAGLE LTD
Oxford City Council,Direct Services,Main Contractor,Y021    ,25/03/2014,47974627_6,100.00,Capital,20002168,DENNIS EAGLE LTD
Oxford City Council,Direct Services,Main Contractor,Y021    ,25/03/2014,47974627_7,630.00,Capital,20002168,DENNIS EAGLE LTD
Oxford City Council,Direct Services,Main Contractor,Y021    ,25/03/2014,47974627_8,310.00,Capital,20002168,DENNIS EAGLE LTD
Oxford City Council,Direct Services,Main Contractor,Y021    ,25/03/2014,47974627_9,260.00,Capital,20002168,DENNIS EAGLE LTD
Oxford City Council,Direct Services,Main Contractor,Y021    ,25/03/2014,47974629_1,705.00,Capital,20002168,DENNIS EAGLE LTD
Oxford City Council,Direct Services,Main Contractor,Y021    ,25/03/2014,47974642_0,82131.00,Capital,20002168,DENNIS EAGLE LTD
Oxford City Council,Direct Services,Main Contractor,Y021    ,25/03/2014,47974642_1,49680.00,Capital,20002168,DENNIS EAGLE LTD
Oxford City Council,Direct Services,Main Contractor,Y021    ,25/03/2014,47974642_10,3300.00,Capital,20002168,DENNIS EAGLE LTD
Oxford City Council,Direct Services,Main Contractor,Y021    ,25/03/2014,47974642_11,950.00,Capital,20002168,DENNIS EAGLE LTD
Oxford City Council,Direct Services,Main Contractor,Y021    ,25/03/2014,47974642_12,750.00,Capital,20002168,DENNIS EAGLE LTD
Oxford City Council,Direct Services,Main Contractor,Y021    ,25/03/2014,47974642_13,4724.00,Capital,20002168,DENNIS EAGLE LTD
Oxford City Council,Direct Services,Main Contractor,Y021    ,25/03/2014,47974642_14,485.00,Capital,20002168,DENNIS EAGLE LTD
Oxford City Council,Direct Services,Main Contractor,Y021    ,25/03/2014,47974642_15,895.00,Capital,20002168,DENNIS EAGLE LTD
Oxford City Council,Direct Services,Main Contractor,Y021    ,25/03/2014,47974642_16,300.00,Capital,20002168,DENNIS EAGLE LTD
Oxford City Council,Direct Services,Main Contractor,Y021    ,25/03/2014,47974642_2,15276.00,Capital,20002168,DENNIS EAGLE LTD
Oxford City Council,Direct Services,Main Contractor,Y021    ,25/03/2014,47974642_3,580.00,Capital,20002168,DENNIS EAGLE LTD
Oxford City Council,Direct Services,Main Contractor,Y021    ,25/03/2014,47974642_4,100.00,Capital,20002168,DENNIS EAGLE LTD
Oxford City Council,Direct Services,Main Contractor,Y021    ,25/03/2014,47974642_5,630.00,Capital,20002168,DENNIS EAGLE LTD
Oxford City Council,Direct Services,Main Contractor,Y021    ,25/03/2014,47974642_6,310.00,Capital,20002168,DENNIS EAGLE LTD
Oxford City Council,Direct Services,Main Contractor,Y021    ,25/03/2014,47974642_7,260.00,Capital,20002168,DENNIS EAGLE LTD
Oxford City Council,Direct Services,Main Contractor,Y021    ,25/03/2014,47974642_8,500.00,Capital,20002168,DENNIS EAGLE LTD
Oxford City Council,Direct Services,Main Contractor,Y021    ,25/03/2014,47974642_9,1281.00,Capital,20002168,DENNIS EAGLE LTD
Oxford City Council,Direct Services,Main Contractor,Y021    ,25/03/2014,47974659_10,500.00,Capital,20002168,DENNIS EAGLE LTD
Oxford City Council,Direct Services,Main Contractor,Y021    ,25/03/2014,47974659_11,1281.00,Capital,20002168,DENNIS EAGLE LTD
Oxford City Council,Direct Services,Main Contractor,Y021    ,25/03/2014,47974659_12,3300.00,Capital,20002168,DENNIS EAGLE LTD
Oxford City Council,Direct Services,Main Contractor,Y021    ,25/03/2014,47974659_13,950.00,Capital,20002168,DENNIS EAGLE LTD
Oxford City Council,Direct Services,Main Contractor,Y021    ,25/03/2014,47974659_14,750.00,Capital,20002168,DENNIS EAGLE LTD
Oxford City Council,Direct Services,Main Contractor,Y021    ,25/03/2014,47974659_15,4724.00,Capital,20002168,DENNIS EAGLE LTD
Oxford City Council,Direct Services,Main Contractor,Y021    ,25/03/2014,47974659_16,485.00,Capital,20002168,DENNIS EAGLE LTD
Oxford City Council,Direct Services,Main Contractor,Y021    ,25/03/2014,47974659_17,895.00,Capital,20002168,DENNIS EAGLE LTD
Oxford City Council,Direct Services,Main Contractor,Y021    ,25/03/2014,47974659_18,300.00,Capital,20002168,DENNIS EAGLE LTD
Oxford City Council,Direct Services,Main Contractor,Y021    ,25/03/2014,47974659_2,82131.00,Capital,20002168,DENNIS EAGLE LTD
Oxford City Council,Direct Services,Main Contractor,Y021    ,25/03/2014,47974659_3,49680.00,Capital,20002168,DENNIS EAGLE LTD
Oxford City Council,Direct Services,Main Contractor,Y021    ,25/03/2014,47974659_4,15276.00,Capital,20002168,DENNIS EAGLE LTD
Oxford City Council,Direct Services,Main Contractor,Y021    ,25/03/2014,47974659_5,580.00,Capital,20002168,DENNIS EAGLE LTD
Oxford City Council,Direct Services,Main Contractor,Y021    ,25/03/2014,47974659_6,100.00,Capital,20002168,DENNIS EAGLE LTD
Oxford City Council,Direct Services,Main Contractor,Y021    ,25/03/2014,47974659_7,630.00,Capital,20002168,DENNIS EAGLE LTD
Oxford City Council,Direct Services,Main Contractor,Y021    ,25/03/2014,47974659_8,310.00,Capital,20002168,DENNIS EAGLE LTD
Oxford City Council,Direct Services,Main Contractor,Y021    ,25/03/2014,47974659_9,260.00,Capital,20002168,DENNIS EAGLE LTD
Oxford City Council,Direct Services,Main Contractor,Y021    ,25/03/2014,47974663_1,705.00,Capital,20002168,DENNIS EAGLE LTD
Oxford City Council,Direct Services,Reactive Maintenance & Minor Repairs,B1101,25/02/2014,47974255_2,100.27,Revenue,20002171,EDMUNDSON ELECTRICAL LTD
Oxford City Council,Direct Services,Reactive Maintenance & Minor Repairs,B1101,25/02/2014,47974255_3,295.00,Revenue,20002171,EDMUNDSON ELECTRICAL LTD
Oxford City Council,Direct Services,Reactive Maintenance & Minor Repairs,B1101,25/02/2014,47974255_4,49.73,Revenue,20002171,EDMUNDSON ELECTRICAL LTD
Oxford City Council,Direct Services,Reactive Maintenance & Minor Repairs,B1101,25/02/2014,47974255_5,3.97,Revenue,20002171,EDMUNDSON ELECTRICAL LTD
Oxford City Council,Direct Services,Reactive Maintenance & Minor Repairs,B1101,25/02/2014,47974255_6,1.63,Revenue,20002171,EDMUNDSON ELECTRICAL LTD
Oxford City Council,Direct Services,Reactive Maintenance & Minor Repairs,B1101,25/02/2014,47974255_7,4.71,Revenue,20002171,EDMUNDSON ELECTRICAL LTD
Oxford City Council,Direct Services,Reactive Maintenance & Minor Repairs,B1101,25/02/2014,47974255_8,29.85,Revenue,20002171,EDMUNDSON ELECTRICAL LTD
Oxford City Council,Direct Services,Reactive Maintenance & Minor Repairs,B1101,25/02/2014,47974255_9,105.20,Revenue,20002171,EDMUNDSON ELECTRICAL LTD
Oxford City Council,Direct Services,Direct Services Supplies & Services,D3311,07/01/2014,60014388_1,2761.84,Revenue,20002171,EDMUNDSON ELECTRICAL LTD
Oxford City Council,Direct Services,Direct Services Supplies & Services,D3311,21/01/2014,60014908_1,1001.64,Revenue,20002171,EDMUNDSON ELECTRICAL LTD
Oxford City Council,Direct Services,Direct Services Supplies & Services,D3311   ,04/02/2014,60015495_1,756.09,Revenue,20002171,EDMUNDSON ELECTRICAL LTD
Oxford City Council,Direct Services,Direct Services Supplies & Services,D3311   ,11/02/2014,60015708_1,781.20,Revenue,20002171,EDMUNDSON ELECTRICAL LTD
Oxford City Council,Direct Services,Furniture & Equipment Maintenance & Repairs,D3002   ,11/02/2014,60015709_1,4042.19,Revenue,20002171,EDMUNDSON ELECTRICAL LTD
Oxford City Council,Direct Services,Direct Services Supplies & Services,D3311   ,18/02/2014,60016177_1,1352.10,Revenue,20002171,EDMUNDSON ELECTRICAL LTD
Oxford City Council,Direct Services,Direct Services Supplies & Services,D3311   ,18/02/2014,60016193_1,3320.85,Revenue,20002171,EDMUNDSON ELECTRICAL LTD
Oxford City Council,Direct Services,Direct Services Supplies & Services,D3311   ,18/02/2014,60016198_1,1569.84,Revenue,20002171,EDMUNDSON ELECTRICAL LTD
Oxford City Council,Direct Services,Direct Services Supplies & Services,D3311   ,25/02/2014,60016202_1,520.80,Revenue,20002171,EDMUNDSON ELECTRICAL LTD
Oxford City Council,Direct Services,Direct Services Supplies & Services,D3311   ,25/02/2014,60016389_1,844.96,Revenue,20002171,EDMUNDSON ELECTRICAL LTD
Oxford City Council,Direct Services,Direct Services Supplies & Services,D3311   ,25/02/2014,60016390_1,903.90,Revenue,20002171,EDMUNDSON ELECTRICAL LTD
Oxford City Council,Direct Services,Direct Services Supplies & Services,D3311   ,25/02/2014,60016403_1,758.50,Revenue,20002171,EDMUNDSON ELECTRICAL LTD
Oxford City Council,Direct Services,Direct Services Supplies & Services,D3311,04/03/2014,60016584_1,1233.04,Revenue,20002171,EDMUNDSON ELECTRICAL LTD
Oxford City Council,Direct Services,Direct Services Supplies & Services,D3311,04/03/2014,60016585_1,3753.00,Revenue,20002171,EDMUNDSON ELECTRICAL LTD
Oxford City Council,Direct Services,Direct Services Supplies & Services,D3311,04/03/2014,60016587_1,520.80,Revenue,20002171,EDMUNDSON ELECTRICAL LTD
Oxford City Council,Direct Services,Direct Services Supplies & Services,D3311   ,25/03/2014,60017995_2,1340.00,Revenue,20002171,EDMUNDSON ELECTRICAL LTD
Oxford City Council,Direct Services,Direct Services Supplies & Services,D3311,07/01/2014,60014225_0,628.78,Revenue,20002183,EYRE & ELLISTON LTD
Oxford City Council,Direct Services,Materials,D3021,07/01/2014,60014226_2,849.96,Revenue,20002183,EYRE & ELLISTON LTD
Oxford City Council,Direct Services,Materials,D3021,07/01/2014,60014296_2,939.54,Revenue,20002183,EYRE & ELLISTON LTD
Oxford City Council,Direct Services,Materials,D3021,07/01/2014,60014297_0,2521.37,Revenue,20002183,EYRE & ELLISTON LTD
Oxford City Council,Direct Services,Materials,D3021,07/01/2014,60014298_2,516.90,Revenue,20002183,EYRE & ELLISTON LTD
Oxford City Council,Direct Services,Materials,D3021,07/01/2014,60014482_0,2131.41,Revenue,20002183,EYRE & ELLISTON LTD
Oxford City Council,Direct Services,Materials,D3021,14/01/2014,60014530_1,2830.57,Revenue,20002183,EYRE & ELLISTON LTD
Oxford City Council,Direct Services,Materials,D3021,14/01/2014,60014532_1,1296.50,Revenue,20002183,EYRE & ELLISTON LTD
Oxford City Council,Direct Services,Materials,D3021,14/01/2014,60014535_1,5896.91,Revenue,20002183,EYRE & ELLISTON LTD
Oxford City Council,Direct Services,Materials,D3021,14/01/2014,60014536_1,4814.69,Revenue,20002183,EYRE & ELLISTON LTD
Oxford City Council,Direct Services,Materials,D3021,14/01/2014,60014537_1,3911.36,Revenue,20002183,EYRE & ELLISTON LTD
Oxford City Council,Direct Services,Direct Services Supplies & Services,D3311,14/01/2014,60014570_1,762.08,Revenue,20002183,EYRE & ELLISTON LTD
Oxford City Council,Direct Services,Materials,D3021,28/01/2014,60014991_1,2531.17,Revenue,20002183,EYRE & ELLISTON LTD
Oxford City Council,Direct Services,Direct Services Supplies & Services,D3311,28/01/2014,60015020_1,2565.00,Revenue,20002183,EYRE & ELLISTON LTD
Oxford City Council,Direct Services,Materials,D3021   ,04/02/2014,60015307_0,1038.50,Revenue,20002183,EYRE & ELLISTON LTD
Oxford City Council,Direct Services,Materials,D3021   ,04/02/2014,60015325_0,795.18,Revenue,20002183,EYRE & ELLISTON LTD
Oxford City Council,Direct Services,Materials,D3021   ,04/02/2014,60015402_1,4722.10,Revenue,20002183,EYRE & ELLISTON LTD
Oxford City Council,Direct Services,Materials,D3021   ,04/02/2014,60015403_1,505.59,Revenue,20002183,EYRE & ELLISTON LTD
Oxford City Council,Direct Services,Materials,D3021   ,04/02/2014,60015404_1,1962.70,Revenue,20002183,EYRE & ELLISTON LTD
Oxford City Council,Direct Services,Materials,D3021   ,04/02/2014,60015410_1,2322.81,Revenue,20002183,EYRE & ELLISTON LTD
Oxford City Council,Direct Services,Materials,D3021   ,04/02/2014,60015487_1,2544.21,Revenue,20002183,EYRE & ELLISTON LTD
Oxford City Council,Direct Services,Materials,D3021   ,04/02/2014,60015488_1,1863.20,Revenue,20002183,EYRE & ELLISTON LTD
Oxford City Council,Direct Services,Materials,D3021   ,04/02/2014,60015513_1,2997.28,Revenue,20002183,EYRE & ELLISTON LTD
Oxford City Council,Direct Services,Materials,D3021   ,04/02/2014,60015516_1,907.50,Revenue,20002183,EYRE & ELLISTON LTD
Oxford City Council,Direct Services,Direct Services Supplies & Services,D3311   ,11/02/2014,60015729_1,2667.75,Revenue,20002183,EYRE & ELLISTON LTD
Oxford City Council,Direct Services,Materials,D3021   ,11/02/2014,60015830_0,3586.37,Revenue,20002183,EYRE & ELLISTON LTD
Oxford City Council,Direct Services,Materials,D3021   ,11/02/2014,60015834_0,686.55,Revenue,20002183,EYRE & ELLISTON LTD
Oxford City Council,Direct Services,Direct Services Supplies & Services,D3311   ,18/02/2014,60016059_2,1869.60,Revenue,20002183,EYRE & ELLISTON LTD
Oxford City Council,Direct Services,Materials,D3021   ,18/02/2014,60016063_2,610.78,Revenue,20002183,EYRE & ELLISTON LTD
Oxford City Council,Direct Services,Materials,D3021   ,18/02/2014,60016130_1,1028.00,Revenue,20002183,EYRE & ELLISTON LTD
Oxford City Council,Direct Services,Direct Services Supplies & Services,D3311   ,25/02/2014,60016238_1,2247.98,Revenue,20002183,EYRE & ELLISTON LTD
Oxford City Council,Direct Services,Materials,D3021   ,25/02/2014,60016274_1,540.25,Revenue,20002183,EYRE & ELLISTON LTD
Oxford City Council,Direct Services,Materials,D3021   ,25/02/2014,60016291_1,824.42,Revenue,20002183,EYRE & ELLISTON LTD
Oxford City Council,Direct Services,Materials,D3021   ,25/02/2014,60016302_1,3765.76,Revenue,20002183,EYRE & ELLISTON LTD
Oxford City Council,Direct Services,Materials,D3021   ,25/02/2014,60016306_1,1393.04,Revenue,20002183,EYRE & ELLISTON LTD
Oxford City Council,Direct Services,Materials,D3021   ,25/02/2014,60016307_1,6945.09,Revenue,20002183,EYRE & ELLISTON LTD
Oxford City Council,Direct Services,Materials,D3021   ,25/02/2014,60016371_2,1664.66,Revenue,20002183,EYRE & ELLISTON LTD
Oxford City Council,Direct Services,Materials,D3021,04/03/2014,60016615_1,1151.41,Revenue,20002183,EYRE & ELLISTON LTD
Oxford City Council,Direct Services,Materials,D3021,04/03/2014,60016618_1,1069.50,Revenue,20002183,EYRE & ELLISTON LTD
Oxford City Council,Direct Services,Materials,D3021,04/03/2014,60016619_1,626.55,Revenue,20002183,EYRE & ELLISTON LTD
Oxford City Council,Direct Services,Materials,D3021,04/03/2014,60016724_0,1879.06,Revenue,20002183,EYRE & ELLISTON LTD
Oxford City Council,Direct Services,Tools,D3023,11/03/2014,60017077_0,799.00,Revenue,20002183,EYRE & ELLISTON LTD
Oxford City Council,Direct Services,Direct Services Supplies & Services,D3311,11/03/2014,60017089_0,552.77,Revenue,20002183,EYRE & ELLISTON LTD
Oxford City Council,Direct Services,Materials,D3021,11/03/2014,60017099_0,9645.82,Revenue,20002183,EYRE & ELLISTON LTD
Oxford City Council,Direct Services,Materials,D3021,11/03/2014,60017209_2,718.88,Revenue,20002183,EYRE & ELLISTON LTD
Oxford City Council,Direct Services,Materials,D3021,11/03/2014,60017247_2,688.12,Revenue,20002183,EYRE & ELLISTON LTD
Oxford City Council,Direct Services,Materials,D3021,11/03/2014,60017252_0,1434.27,Revenue,20002183,EYRE & ELLISTON LTD
Oxford City Council,Direct Services,Materials,D3021,11/03/2014,60017255_2,910.16,Revenue,20002183,EYRE & ELLISTON LTD
Oxford City Council,Direct Services,Materials,D3021   ,18/03/2014,60017445_1,538.53,Revenue,20002183,EYRE & ELLISTON LTD
Oxford City Council,Direct Services,Materials,D3021   ,18/03/2014,60017446_1,590.80,Revenue,20002183,EYRE & ELLISTON LTD
Oxford City Council,Direct Services,Materials,D3021   ,18/03/2014,60017447_1,1125.78,Revenue,20002183,EYRE & ELLISTON LTD
Oxford City Council,Direct Services,Materials,D3021   ,25/03/2014,60017912_2,2632.53,Revenue,20002183,EYRE & ELLISTON LTD
Oxford City Council,Direct Services,Materials,D3021   ,25/03/2014,60017914_2,1963.50,Revenue,20002183,EYRE & ELLISTON LTD
Oxford City Council,Direct Services,Materials,D3021   ,25/03/2014,60017918_2,3544.26,Revenue,20002183,EYRE & ELLISTON LTD
Oxford City Council,Direct Services,Materials,D3021   ,25/03/2014,60017941_1,2879.68,Revenue,20002183,EYRE & ELLISTON LTD
Oxford City Council,Direct Services,Materials,D3021   ,25/03/2014,60017943_1,2378.20,Revenue,20002183,EYRE & ELLISTON LTD
Oxford City Council,Suspense,Materials,D3021   ,28/01/2014,47973758_1,550.00,Revenue,20002198,FRENCO SERVICE REPLACMNTS LTD
Oxford City Council,Suspense,Materials,D3021   ,04/02/2014,47973910_2,1550.00,Revenue,20002198,FRENCO SERVICE REPLACMNTS LTD
Oxford City Council,Suspense,Materials,D3021   ,04/02/2014,47973910_3,320.00,Revenue,20002198,FRENCO SERVICE REPLACMNTS LTD
Oxford City Council,Direct Services,Veh.maint direct purchase,D3031   ,04/02/2014,47973910_4,392.00,Revenue,20002198,FRENCO SERVICE REPLACMNTS LTD
Oxford City Council,Suspense,Materials,D3021   ,04/02/2014,47973910_5,968.62,Revenue,20002198,FRENCO SERVICE REPLACMNTS LTD
Oxford City Council,Suspense,Materials,D3021   ,04/02/2014,47973910_6,984.00,Revenue,20002198,FRENCO SERVICE REPLACMNTS LTD
Oxford City Council,Suspense,Materials,D3021   ,18/02/2014,47974111_2,457.70,Revenue,20002198,FRENCO SERVICE REPLACMNTS LTD
Oxford City Council,Suspense,Materials,D3021   ,18/02/2014,47974111_3,348.25,Revenue,20002198,FRENCO SERVICE REPLACMNTS LTD
Oxford City Council,Suspense,Materials,D3021   ,25/03/2014,47974660_0,522.75,Revenue,20002198,FRENCO SERVICE REPLACMNTS LTD
Oxford City Council,"Leisure, Parks & Communities",Waste Disposal & Skip Hire,D3420,04/03/2014,1003860_1,769.52,Revenue,20002222,GRUNDON WASTE MANAGEMENT LTD
Oxford City Council,Suspense,Materials,D3021,07/01/2014,60014322_2,818.48,Revenue,20002249,INSTARMAC LTD
Oxford City Council,Suspense,Materials,D3021,04/03/2014,60016950_1,1952.44,Revenue,20002249,INSTARMAC LTD
Oxford City Council,Suspense,Materials,D3021,04/03/2014,60016952_1,1928.08,Revenue,20002249,INSTARMAC LTD
Oxford City Council,Direct Services,Materials,D3021,11/02/2014,46280205_1,2147.72,Revenue,20002254,GRAFTON MERCHANTING GB LTD
Oxford City Council,Direct Services,Materials,D3021,07/01/2014,60014220_2,1089.27,Revenue,20002254,GRAFTON MERCHANTING GB LTD
Oxford City Council,Direct Services,Direct Services Supplies & Services,D3311,07/01/2014,60014229_0,529.75,Revenue,20002254,GRAFTON MERCHANTING GB LTD
Oxford City Council,Direct Services,Direct Services Supplies & Services,D3311,07/01/2014,60014233_0,910.41,Revenue,20002254,GRAFTON MERCHANTING GB LTD
Oxford City Council,Direct Services,Direct Services Supplies & Services,D3311,07/01/2014,60014235_0,557.55,Revenue,20002254,GRAFTON MERCHANTING GB LTD
Oxford City Council,Direct Services,Direct Services Supplies & Services,D3311,07/01/2014,60014258_2,610.00,Revenue,20002254,GRAFTON MERCHANTING GB LTD
Oxford City Council,Direct Services,Direct Services Supplies & Services,D3311,07/01/2014,60014259_0,597.26,Revenue,20002254,GRAFTON MERCHANTING GB LTD
Oxford City Council,Direct Services,Direct Services Supplies & Services,D3311,07/01/2014,60014263_0,956.54,Revenue,20002254,GRAFTON MERCHANTING GB LTD
Oxford City Council,Direct Services,Direct Services Supplies & Services,D3311,07/01/2014,60014264_2,779.20,Revenue,20002254,GRAFTON MERCHANTING GB LTD
Oxford City Council,Direct Services,Direct Services Supplies & Services,D3311,07/01/2014,60014265_0,1151.43,Revenue,20002254,GRAFTON MERCHANTING GB LTD
Oxford City Council,Direct Services,Direct Services Supplies & Services,D3311,07/01/2014,60014267_0,701.54,Revenue,20002254,GRAFTON MERCHANTING GB LTD
Oxford City Council,Direct Services,Materials,D3021,07/01/2014,60014271_0,2020.91,Revenue,20002254,GRAFTON MERCHANTING GB LTD
Oxford City Council,Direct Services,Direct Services Supplies & Services,D3311,07/01/2014,60014290_2,660.43,Revenue,20002254,GRAFTON MERCHANTING GB LTD
Oxford City Council,Direct Services,Materials,D3021,07/01/2014,60014355_1,1905.99,Revenue,20002254,GRAFTON MERCHANTING GB LTD
Oxford City Council,Direct Services,Direct Services Supplies & Services,D3311,07/01/2014,60014357_1,660.43,Revenue,20002254,GRAFTON MERCHANTING GB LTD
Oxford City Council,Direct Services,Materials,D3021,07/01/2014,60014358_1,894.00,Revenue,20002254,GRAFTON MERCHANTING GB LTD
Oxford City Council,Direct Services,Materials,D3021,07/01/2014,60014451_2,2104.13,Revenue,20002254,GRAFTON MERCHANTING GB LTD
Oxford City Council,Direct Services,Direct Services Supplies & Services,D3311,07/01/2014,60014455_2,564.02,Revenue,20002254,GRAFTON MERCHANTING GB LTD
Oxford City Council,Direct Services,Direct Services Supplies & Services,D3311,07/01/2014,60014458_0,561.28,Revenue,20002254,GRAFTON MERCHANTING GB LTD
Oxford City Council,Direct Services,Direct Services Supplies & Services,D3311,07/01/2014,60014459_2,631.03,Revenue,20002254,GRAFTON MERCHANTING GB LTD
Oxford City Council,Direct Services,Direct Services Supplies & Services,D3311,07/01/2014,60014460_0,560.46,Revenue,20002254,GRAFTON MERCHANTING GB LTD
Oxford City Council,Direct Services,Materials,D3021,07/01/2014,60014462_0,2164.04,Revenue,20002254,GRAFTON MERCHANTING GB LTD
Oxford City Council,Direct Services,Materials,D3021,07/01/2014,60014463_2,681.00,Revenue,20002254,GRAFTON MERCHANTING GB LTD
Oxford City Council,Direct Services,Direct Services Supplies & Services,D3311,07/01/2014,60014464_0,697.71,Revenue,20002254,GRAFTON MERCHANTING GB LTD
Oxford City Council,Direct Services,Direct Services Supplies & Services,D3311,07/01/2014,60014465_2,517.63,Revenue,20002254,GRAFTON MERCHANTING GB LTD
Oxford City Council,Direct Services,Direct Services Supplies & Services,D3311,07/01/2014,60014467_2,619.91,Revenue,20002254,GRAFTON MERCHANTING GB LTD
Oxford City Council,Direct Services,Direct Services Supplies & Services,D3311,07/01/2014,60014468_0,580.68,Revenue,20002254,GRAFTON MERCHANTING GB LTD
Oxford City Council,Direct Services,Direct Services Supplies & Services,D3311,07/01/2014,60014470_0,518.58,Revenue,20002254,GRAFTON MERCHANTING GB LTD
Oxford City Council,Direct Services,Materials,D3021,14/01/2014,60014499_1,528.48,Revenue,20002254,GRAFTON MERCHANTING GB LTD
Oxford City Council,Direct Services,Materials,D3021,14/01/2014,60014500_1,7469.57,Revenue,20002254,GRAFTON MERCHANTING GB LTD
Oxford City Council,Direct Services,Direct Services Supplies & Services,D3311,14/01/2014,60014501_1,760.56,Revenue,20002254,GRAFTON MERCHANTING GB LTD
Oxford City Council,Direct Services,Direct Services Supplies & Services,D3311,14/01/2014,60014520_1,660.43,Revenue,20002254,GRAFTON MERCHANTING GB LTD
Oxford City Council,Direct Services,Direct Services Supplies & Services,D3311,14/01/2014,60014521_1,669.24,Revenue,20002254,GRAFTON MERCHANTING GB LTD
Oxford City Council,Direct Services,Direct Services Supplies & Services,D3311,14/01/2014,60014523_1,1163.08,Revenue,20002254,GRAFTON MERCHANTING GB LTD
Oxford City Council,Direct Services,Materials,D3021,14/01/2014,60014524_1,4013.10,Revenue,20002254,GRAFTON MERCHANTING GB LTD
Oxford City Council,Direct Services,Direct Services Supplies & Services,D3311,14/01/2014,60014552_2,742.27,Revenue,20002254,GRAFTON MERCHANTING GB LTD
Oxford City Council,Direct Services,Direct Services Supplies & Services,D3311,14/01/2014,60014554_1,1433.60,Revenue,20002254,GRAFTON MERCHANTING GB LTD
Oxford City Council,Direct Services,Direct Services Supplies & Services,D3311,14/01/2014,60014563_2,779.20,Revenue,20002254,GRAFTON MERCHANTING GB LTD
Oxford City Council,Direct Services,Direct Services Supplies & Services,D3311,14/01/2014,60014567_1,763.03,Revenue,20002254,GRAFTON MERCHANTING GB LTD
Oxford City Council,Direct Services,Materials,D3021,21/01/2014,60014752_0,630.00,Revenue,20002254,GRAFTON MERCHANTING GB LTD
Oxford City Council,Direct Services,Materials,D3021,21/01/2014,60014758_0,504.00,Revenue,20002254,GRAFTON MERCHANTING GB LTD
Oxford City Council,Direct Services,Materials,D3021,21/01/2014,60014760_0,1151.81,Revenue,20002254,GRAFTON MERCHANTING GB LTD
Oxford City Council,Direct Services,Materials,D3021,21/01/2014,60014761_2,7043.37,Revenue,20002254,GRAFTON MERCHANTING GB LTD
Oxford City Council,Direct Services,Materials,D3021,21/01/2014,60014762_0,1518.13,Revenue,20002254,GRAFTON MERCHANTING GB LTD
Oxford City Council,Direct Services,Direct Services Supplies & Services,D3311,21/01/2014,60014763_2,856.54,Revenue,20002254,GRAFTON MERCHANTING GB LTD
Oxford City Council,Direct Services,Direct Services Supplies & Services,D3311,21/01/2014,60014765_2,671.43,Revenue,20002254,GRAFTON MERCHANTING GB LTD
Oxford City Council,Direct Services,Materials,D3021,21/01/2014,60014781_2,926.91,Revenue,20002254,GRAFTON MERCHANTING GB LTD
Oxford City Council,Direct Services,Direct Services Supplies & Services,D3311,21/01/2014,60014784_0,834.79,Revenue,20002254,GRAFTON MERCHANTING GB LTD
Oxford City Council,Direct Services,Direct Services Supplies & Services,D3311,21/01/2014,60014785_2,1394.38,Revenue,20002254,GRAFTON MERCHANTING GB LTD
Oxford City Council,Direct Services,Direct Services Supplies & Services,D3311,21/01/2014,60014930_1,1030.25,Revenue,20002254,GRAFTON MERCHANTING GB LTD
Oxford City Council,Direct Services,Direct Services Supplies & Services,D3311,21/01/2014,60014931_1,1162.96,Revenue,20002254,GRAFTON MERCHANTING GB LTD
Oxford City Council,Direct Services,Direct Services Supplies & Services,D3311,21/01/2014,60014932_1,1289.20,Revenue,20002254,GRAFTON MERCHANTING GB LTD
Oxford City Council,Direct Services,Direct Services Supplies & Services,D3311,21/01/2014,60014933_1,869.30,Revenue,20002254,GRAFTON MERCHANTING GB LTD
Oxford City Council,Direct Services,Direct Services Supplies & Services,D3311,28/01/2014,60014950_1,511.19,Revenue,20002254,GRAFTON MERCHANTING GB LTD
Oxford City Council,Direct Services,Materials,D3021,28/01/2014,60014952_1,763.14,Revenue,20002254,GRAFTON MERCHANTING GB LTD
Oxford City Council,Direct Services,Materials,D3021,28/01/2014,60014953_1,5237.39,Revenue,20002254,GRAFTON MERCHANTING GB LTD
Oxford City Council,Direct Services,Materials,D3021,28/01/2014,60014978_1,1958.45,Revenue,20002254,GRAFTON MERCHANTING GB LTD
Oxford City Council,Direct Services,Materials,D3021,28/01/2014,60014984_1,4596.27,Revenue,20002254,GRAFTON MERCHANTING GB LTD
Oxford City Council,Direct Services,Direct Services Supplies & Services,D3311,28/01/2014,60014997_1,997.75,Revenue,20002254,GRAFTON MERCHANTING GB LTD
Oxford City Council,Direct Services,Direct Services Supplies & Services,D3311,28/01/2014,60014998_1,771.99,Revenue,20002254,GRAFTON MERCHANTING GB LTD
Oxford City Council,Direct Services,Direct Services Supplies & Services,D3311,28/01/2014,60014999_1,760.56,Revenue,20002254,GRAFTON MERCHANTING GB LTD
Oxford City Council,Direct Services,Direct Services Supplies & Services,D3311,28/01/2014,60015000_1,820.99,Revenue,20002254,GRAFTON MERCHANTING GB LTD
Oxford City Council,Direct Services,Direct Services Supplies & Services,D3311,28/01/2014,60015001_1,743.96,Revenue,20002254,GRAFTON MERCHANTING GB LTD
Oxford City Council,Direct Services,Direct Services Supplies & Services,D3311,28/01/2014,60015003_1,552.99,Revenue,20002254,GRAFTON MERCHANTING GB LTD
Oxford City Council,Direct Services,Direct Services Supplies & Services,D3311,28/01/2014,60015004_1,557.42,Revenue,20002254,GRAFTON MERCHANTING GB LTD
Oxford City Council,Direct Services,Materials,D3021,28/01/2014,60015010_1,516.97,Revenue,20002254,GRAFTON MERCHANTING GB LTD
Oxford City Council,Direct Services,Materials,D3021,28/01/2014,60015014_1,994.20,Revenue,20002254,GRAFTON MERCHANTING GB LTD
Oxford City Council,Direct Services,Direct Services Supplies & Services,D3311,28/01/2014,60015015_1,513.17,Revenue,20002254,GRAFTON MERCHANTING GB LTD
Oxford City Council,Direct Services,Materials,D3021,28/01/2014,60015037_1,2476.57,Revenue,20002254,GRAFTON MERCHANTING GB LTD
Oxford City Council,Direct Services,Direct Services Supplies & Services,D3311,28/01/2014,60015038_1,1041.19,Revenue,20002254,GRAFTON MERCHANTING GB LTD
Oxford City Council,Direct Services,Direct Services Supplies & Services,D3311,28/01/2014,60015039_1,1208.18,Revenue,20002254,GRAFTON MERCHANTING GB LTD
Oxford City Council,Direct Services,Direct Services Supplies & Services,D3311,28/01/2014,60015040_1,1296.47,Revenue,20002254,GRAFTON MERCHANTING GB LTD
Oxford City Council,Direct Services,Direct Services Supplies & Services,D3311,28/01/2014,60015041_1,1108.56,Revenue,20002254,GRAFTON MERCHANTING GB LTD
Oxford City Council,Direct Services,Direct Services Supplies & Services,D3311,28/01/2014,60015042_1,1137.50,Revenue,20002254,GRAFTON MERCHANTING GB LTD
Oxford City Council,Direct Services,Materials,D3021   ,04/02/2014,60015289_0,3137.85,Revenue,20002254,GRAFTON MERCHANTING GB LTD
Oxford City Council,Direct Services,Materials,D3021   ,04/02/2014,60015392_1,1060.74,Revenue,20002254,GRAFTON MERCHANTING GB LTD
Oxford City Council,Direct Services,Direct Services Supplies & Services,D3311   ,04/02/2014,60015394_1,950.33,Revenue,20002254,GRAFTON MERCHANTING GB LTD
Oxford City Council,Direct Services,Materials,D3021   ,04/02/2014,60015454_1,1612.01,Revenue,20002254,GRAFTON MERCHANTING GB LTD
Oxford City Council,Direct Services,Direct Services Supplies & Services,D3311   ,04/02/2014,60015459_1,1365.72,Revenue,20002254,GRAFTON MERCHANTING GB LTD
Oxford City Council,Direct Services,Direct Services Supplies & Services,D3311   ,04/02/2014,60015461_1,672.93,Revenue,20002254,GRAFTON MERCHANTING GB LTD
Oxford City Council,Direct Services,Direct Services Supplies & Services,D3311   ,04/02/2014,60015464_1,736.85,Revenue,20002254,GRAFTON MERCHANTING GB LTD
Oxford City Council,Direct Services,Direct Services Supplies & Services,D3311   ,04/02/2014,60015465_1,562.18,Revenue,20002254,GRAFTON MERCHANTING GB LTD
Oxford City Council,Direct Services,Direct Services Supplies & Services,D3311   ,04/02/2014,60015466_1,547.12,Revenue,20002254,GRAFTON MERCHANTING GB LTD
Oxford City Council,Direct Services,Direct Services Supplies & Services,D3311   ,04/02/2014,60015469_1,619.43,Revenue,20002254,GRAFTON MERCHANTING GB LTD
Oxford City Council,Direct Services,Direct Services Supplies & Services,D3311   ,04/02/2014,60015470_1,606.24,Revenue,20002254,GRAFTON MERCHANTING GB LTD
Oxford City Council,Direct Services,Materials,D3021   ,04/02/2014,60015474_1,707.76,Revenue,20002254,GRAFTON MERCHANTING GB LTD
Oxford City Council,Direct Services,Materials,D3021   ,04/02/2014,60015476_1,1172.53,Revenue,20002254,GRAFTON MERCHANTING GB LTD
Oxford City Council,Direct Services,Direct Services Supplies & Services,D3311   ,04/02/2014,60015477_1,625.33,Revenue,20002254,GRAFTON MERCHANTING GB LTD
Oxford City Council,Direct Services,Direct Services Supplies & Services,D3311   ,04/02/2014,60015478_1,597.56,Revenue,20002254,GRAFTON MERCHANTING GB LTD
Oxford City Council,Direct Services,Direct Services Supplies & Services,D3311   ,04/02/2014,60015482_1,561.55,Revenue,20002254,GRAFTON MERCHANTING GB LTD
Oxford City Council,Direct Services,Direct Services Supplies & Services,D3311   ,04/02/2014,60015483_1,593.63,Revenue,20002254,GRAFTON MERCHANTING GB LTD
Oxford City Council,Direct Services,Direct Services Supplies & Services,D3311   ,04/02/2014,60015530_0,1376.54,Revenue,20002254,GRAFTON MERCHANTING GB LTD
Oxford City Council,Direct Services,Direct Services Supplies & Services,D3311   ,04/02/2014,60015537_1,811.23,Revenue,20002254,GRAFTON MERCHANTING GB LTD
Oxford City Council,Direct Services,Direct Services Supplies & Services,D3311   ,04/02/2014,60015538_1,760.56,Revenue,20002254,GRAFTON MERCHANTING GB LTD
Oxford City Council,Direct Services,Direct Services Supplies & Services,D3311   ,04/02/2014,60015555_0,791.52,Revenue,20002254,GRAFTON MERCHANTING GB LTD
Oxford City Council,Direct Services,Direct Services Supplies & Services,D3311   ,04/02/2014,60015556_2,1671.54,Revenue,20002254,GRAFTON MERCHANTING GB LTD
Oxford City Council,Direct Services,Materials,D3021   ,04/02/2014,60015557_0,2257.50,Revenue,20002254,GRAFTON MERCHANTING GB LTD
Oxford City Council,Direct Services,Direct Services Supplies & Services,D3311   ,04/02/2014,60015561_0,1435.63,Revenue,20002254,GRAFTON MERCHANTING GB LTD
Oxford City Council,Direct Services,Materials,D3021   ,04/02/2014,60015564_2,1292.83,Revenue,20002254,GRAFTON MERCHANTING GB LTD
Oxford City Council,Direct Services,Direct Services Supplies & Services,D3311   ,04/02/2014,60015566_2,760.56,Revenue,20002254,GRAFTON MERCHANTING GB LTD
Oxford City Council,Direct Services,Materials,D3021   ,04/02/2014,60015573_0,2496.10,Revenue,20002254,GRAFTON MERCHANTING GB LTD
Oxford City Council,Direct Services,Materials,D3021   ,11/02/2014,60015731_1,1102.00,Revenue,20002254,GRAFTON MERCHANTING GB LTD
Oxford City Council,Direct Services,Direct Services Supplies & Services,D3311   ,11/02/2014,60015733_1,660.43,Revenue,20002254,GRAFTON MERCHANTING GB LTD
Oxford City Council,Direct Services,Direct Services Supplies & Services,D3311   ,11/02/2014,60015734_1,869.30,Revenue,20002254,GRAFTON MERCHANTING GB LTD
Oxford City Council,Direct Services,Materials,D3021   ,11/02/2014,60015736_1,4633.51,Revenue,20002254,GRAFTON MERCHANTING GB LTD
Oxford City Council,Direct Services,Direct Services Supplies & Services,D3311   ,11/02/2014,60015752_1,551.77,Revenue,20002254,GRAFTON MERCHANTING GB LTD
Oxford City Council,Direct Services,Direct Services Supplies & Services,D3311   ,11/02/2014,60015753_1,924.58,Revenue,20002254,GRAFTON MERCHANTING GB LTD
Oxford City Council,Direct Services,Direct Services Supplies & Services,D3311   ,11/02/2014,60015754_1,503.65,Revenue,20002254,GRAFTON MERCHANTING GB LTD
Oxford City Council,Direct Services,Direct Services Supplies & Services,D3311   ,11/02/2014,60015755_2,718.18,Revenue,20002254,GRAFTON MERCHANTING GB LTD
Oxford City Council,Direct Services,Direct Services Supplies & Services,D3311   ,11/02/2014,60015756_0,567.75,Revenue,20002254,GRAFTON MERCHANTING GB LTD
Oxford City Council,Direct Services,Direct Services Supplies & Services,D3311   ,11/02/2014,60015760_0,575.41,Revenue,20002254,GRAFTON MERCHANTING GB LTD
Oxford City Council,Direct Services,Direct Services Supplies & Services,D3311   ,11/02/2014,60015761_2,667.39,Revenue,20002254,GRAFTON MERCHANTING GB LTD
Oxford City Council,Direct Services,Direct Services Supplies & Services,D3311   ,11/02/2014,60015762_0,660.43,Revenue,20002254,GRAFTON MERCHANTING GB LTD
Oxford City Council,Direct Services,Materials,D3021   ,11/02/2014,60015765_2,994.29,Revenue,20002254,GRAFTON MERCHANTING GB LTD
Oxford City Council,Direct Services,Direct Services Supplies & Services,D3311   ,11/02/2014,60015766_0,504.00,Revenue,20002254,GRAFTON MERCHANTING GB LTD
Oxford City Council,Direct Services,Direct Services Supplies & Services,D3311   ,11/02/2014,60015768_0,557.64,Revenue,20002254,GRAFTON MERCHANTING GB LTD
Oxford City Council,Direct Services,Materials,D3021   ,11/02/2014,60015769_2,1177.45,Revenue,20002254,GRAFTON MERCHANTING GB LTD
Oxford City Council,Direct Services,Direct Services Supplies & Services,D3311   ,11/02/2014,60015770_0,645.56,Revenue,20002254,GRAFTON MERCHANTING GB LTD
Oxford City Council,Direct Services,Direct Services Supplies & Services,D3311   ,11/02/2014,60015778_0,709.92,Revenue,20002254,GRAFTON MERCHANTING GB LTD
Oxford City Council,Direct Services,Direct Services Supplies & Services,D3311   ,11/02/2014,60015779_2,760.56,Revenue,20002254,GRAFTON MERCHANTING GB LTD
Oxford City Council,Direct Services,Direct Services Supplies & Services,D3311   ,11/02/2014,60015780_0,660.43,Revenue,20002254,GRAFTON MERCHANTING GB LTD
Oxford City Council,Direct Services,Materials,D3021   ,11/02/2014,60015797_2,2187.72,Revenue,20002254,GRAFTON MERCHANTING GB LTD
Oxford City Council,Direct Services,Materials,D3021   ,11/02/2014,60015805_2,5718.82,Revenue,20002254,GRAFTON MERCHANTING GB LTD
Oxford City Council,Direct Services,Materials,D3021   ,11/02/2014,60015808_0,4334.80,Revenue,20002254,GRAFTON MERCHANTING GB LTD
Oxford City Council,Direct Services,Materials,D3021   ,11/02/2014,60015809_2,6964.89,Revenue,20002254,GRAFTON MERCHANTING GB LTD
Oxford City Council,Direct Services,Materials,D3021   ,11/02/2014,60015810_0,2702.88,Revenue,20002254,GRAFTON MERCHANTING GB LTD
Oxford City Council,Direct Services,Materials,D3021   ,11/02/2014,60015811_2,2014.07,Revenue,20002254,GRAFTON MERCHANTING GB LTD
Oxford City Council,Direct Services,Materials,D3021   ,11/02/2014,60015812_0,3197.57,Revenue,20002254,GRAFTON MERCHANTING GB LTD
Oxford City Council,Direct Services,Materials,D3021   ,11/02/2014,60015813_2,8606.28,Revenue,20002254,GRAFTON MERCHANTING GB LTD
Oxford City Council,Direct Services,Direct Services Supplies & Services,D3311   ,11/02/2014,60015815_2,1226.20,Revenue,20002254,GRAFTON MERCHANTING GB LTD
Oxford City Council,Direct Services,Materials,D3021   ,11/02/2014,60015817_2,1462.40,Revenue,20002254,GRAFTON MERCHANTING GB LTD
Oxford City Council,Direct Services,Materials,D3021   ,11/02/2014,60015831_2,3128.85,Revenue,20002254,GRAFTON MERCHANTING GB LTD
Oxford City Council,Direct Services,Direct Services Supplies & Services,D3311   ,11/02/2014,60015840_0,1242.47,Revenue,20002254,GRAFTON MERCHANTING GB LTD
Oxford City Council,Direct Services,Direct Services Supplies & Services,D3311   ,11/02/2014,60015851_2,760.56,Revenue,20002254,GRAFTON MERCHANTING GB LTD
Oxford City Council,Direct Services,Direct Services Supplies & Services,D3311   ,11/02/2014,60015857_2,911.09,Revenue,20002254,GRAFTON MERCHANTING GB LTD
Oxford City Council,Direct Services,Direct Services Supplies & Services,D3311   ,11/02/2014,60015864_0,1333.33,Revenue,20002254,GRAFTON MERCHANTING GB LTD
Oxford City Council,Direct Services,Direct Services Supplies & Services,D3311   ,11/02/2014,60015872_0,755.72,Revenue,20002254,GRAFTON MERCHANTING GB LTD
Oxford City Council,Direct Services,Direct Services Supplies & Services,D3311   ,11/02/2014,60015877_2,1614.42,Revenue,20002254,GRAFTON MERCHANTING GB LTD
Oxford City Council,Direct Services,Direct Services Supplies & Services,D3311   ,11/02/2014,60015890_0,1151.12,Revenue,20002254,GRAFTON MERCHANTING GB LTD
Oxford City Council,Direct Services,Direct Services Supplies & Services,D3311   ,11/02/2014,60015913_1,1190.94,Revenue,20002254,GRAFTON MERCHANTING GB LTD
Oxford City Council,Direct Services,Materials,D3021   ,11/02/2014,60016001_2,1100.00,Revenue,20002254,GRAFTON MERCHANTING GB LTD
Oxford City Council,Direct Services,Direct Services Supplies & Services,D3311   ,18/02/2014,60016020_0,1477.88,Revenue,20002254,GRAFTON MERCHANTING GB LTD
Oxford City Council,Direct Services,Materials,D3021   ,18/02/2014,60016024_0,1682.38,Revenue,20002254,GRAFTON MERCHANTING GB LTD
Oxford City Council,Direct Services,Materials,D3021   ,18/02/2014,60016025_2,3605.97,Revenue,20002254,GRAFTON MERCHANTING GB LTD
Oxford City Council,Direct Services,Direct Services Supplies & Services,D3311   ,18/02/2014,60016044_0,1493.43,Revenue,20002254,GRAFTON MERCHANTING GB LTD
Oxford City Council,Direct Services,Direct Services Supplies & Services,D3311   ,18/02/2014,60016047_2,1443.71,Revenue,20002254,GRAFTON MERCHANTING GB LTD
Oxford City Council,Direct Services,Direct Services Supplies & Services,D3311   ,18/02/2014,60016163_1,958.05,Revenue,20002254,GRAFTON MERCHANTING GB LTD
Oxford City Council,Direct Services,Direct Services Supplies & Services,D3311   ,18/02/2014,60016164_1,550.93,Revenue,20002254,GRAFTON MERCHANTING GB LTD
Oxford City Council,Direct Services,Direct Services Supplies & Services,D3311   ,18/02/2014,60016172_1,660.43,Revenue,20002254,GRAFTON MERCHANTING GB LTD
Oxford City Council,Direct Services,Direct Services Supplies & Services,D3311   ,18/02/2014,60016181_1,760.56,Revenue,20002254,GRAFTON MERCHANTING GB LTD
Oxford City Council,Direct Services,Direct Services Supplies & Services,D3311   ,18/02/2014,60016197_1,668.02,Revenue,20002254,GRAFTON MERCHANTING GB LTD
Oxford City Council,Direct Services,Direct Services Supplies & Services,D3311   ,25/02/2014,60016209_1,636.75,Revenue,20002254,GRAFTON MERCHANTING GB LTD
Oxford City Council,Direct Services,Materials,D3021   ,25/02/2014,60016210_1,509.80,Revenue,20002254,GRAFTON MERCHANTING GB LTD
Oxford City Council,Direct Services,Materials,D3021   ,25/02/2014,60016211_1,675.16,Revenue,20002254,GRAFTON MERCHANTING GB LTD
Oxford City Council,Direct Services,Direct Services Supplies & Services,D3311   ,25/02/2014,60016216_1,1087.04,Revenue,20002254,GRAFTON MERCHANTING GB LTD
Oxford City Council,Direct Services,Direct Services Supplies & Services,D3311   ,25/02/2014,60016217_1,895.40,Revenue,20002254,GRAFTON MERCHANTING GB LTD
Oxford City Council,Direct Services,Direct Services Supplies & Services,D3311   ,25/02/2014,60016218_1,786.53,Revenue,20002254,GRAFTON MERCHANTING GB LTD
Oxford City Council,Direct Services,Direct Services Supplies & Services,D3311   ,25/02/2014,60016278_1,546.25,Revenue,20002254,GRAFTON MERCHANTING GB LTD
Oxford City Council,Direct Services,Direct Services Supplies & Services,D3311   ,25/02/2014,60016279_1,577.33,Revenue,20002254,GRAFTON MERCHANTING GB LTD
Oxford City Council,Direct Services,Materials,D3021   ,25/02/2014,60016280_1,952.02,Revenue,20002254,GRAFTON MERCHANTING GB LTD
Oxford City Council,Direct Services,Materials,D3021   ,25/02/2014,60016281_1,711.79,Revenue,20002254,GRAFTON MERCHANTING GB LTD
Oxford City Council,Direct Services,Direct Services Supplies & Services,D3311   ,25/02/2014,60016282_1,523.96,Revenue,20002254,GRAFTON MERCHANTING GB LTD
Oxford City Council,Direct Services,Materials,D3021   ,25/02/2014,60016283_1,6042.37,Revenue,20002254,GRAFTON MERCHANTING GB LTD
Oxford City Council,Direct Services,Direct Services Supplies & Services,D3311   ,25/02/2014,60016311_1,892.50,Revenue,20002254,GRAFTON MERCHANTING GB LTD
Oxford City Council,Direct Services,Materials,D3021   ,25/02/2014,60016312_1,1587.83,Revenue,20002254,GRAFTON MERCHANTING GB LTD
Oxford City Council,Direct Services,Materials,D3021   ,25/02/2014,60016320_1,1106.99,Revenue,20002254,GRAFTON MERCHANTING GB LTD
Oxford City Council,Direct Services,Direct Services Supplies & Services,D3311   ,25/02/2014,60016323_1,565.51,Revenue,20002254,GRAFTON MERCHANTING GB LTD
Oxford City Council,Direct Services,Direct Services Supplies & Services,D3311   ,25/02/2014,60016325_1,701.54,Revenue,20002254,GRAFTON MERCHANTING GB LTD
Oxford City Council,Direct Services,Direct Services Supplies & Services,D3311   ,25/02/2014,60016326_1,779.20,Revenue,20002254,GRAFTON MERCHANTING GB LTD
Oxford City Council,Direct Services,Direct Services Supplies & Services,D3311   ,25/02/2014,60016327_1,660.43,Revenue,20002254,GRAFTON MERCHANTING GB LTD
Oxford City Council,Direct Services,Direct Services Supplies & Services,D3311   ,25/02/2014,60016328_1,660.43,Revenue,20002254,GRAFTON MERCHANTING GB LTD
Oxford City Council,Direct Services,Direct Services Supplies & Services,D3311   ,25/02/2014,60016329_1,660.43,Revenue,20002254,GRAFTON MERCHANTING GB LTD
Oxford City Council,Direct Services,Direct Services Supplies & Services,D3311   ,25/02/2014,60016330_1,760.56,Revenue,20002254,GRAFTON MERCHANTING GB LTD
Oxford City Council,Direct Services,Direct Services Supplies & Services,D3311   ,25/02/2014,60016331_1,660.43,Revenue,20002254,GRAFTON MERCHANTING GB LTD
Oxford City Council,Direct Services,Direct Services Supplies & Services,D3311   ,25/02/2014,60016332_1,660.43,Revenue,20002254,GRAFTON MERCHANTING GB LTD
Oxford City Council,Direct Services,Direct Services Supplies & Services,D3311   ,25/02/2014,60016344_1,750.53,Revenue,20002254,GRAFTON MERCHANTING GB LTD
Oxford City Council,Direct Services,Direct Services Supplies & Services,D3311   ,25/02/2014,60016381_1,701.54,Revenue,20002254,GRAFTON MERCHANTING GB LTD
Oxford City Council,Direct Services,Direct Services Supplies & Services,D3311   ,25/02/2014,60016443_0,1106.00,Revenue,20002254,GRAFTON MERCHANTING GB LTD
Oxford City Council,Direct Services,Direct Services Supplies & Services,D3311   ,25/02/2014,60016444_2,1198.34,Revenue,20002254,GRAFTON MERCHANTING GB LTD
Oxford City Council,Direct Services,Materials,D3021,04/03/2014,60016594_1,1571.33,Revenue,20002254,GRAFTON MERCHANTING GB LTD
Oxford City Council,Direct Services,Materials,D3021,04/03/2014,60016596_1,2266.05,Revenue,20002254,GRAFTON MERCHANTING GB LTD
Oxford City Council,Direct Services,Materials,D3021,04/03/2014,60016636_1,961.87,Revenue,20002254,GRAFTON MERCHANTING GB LTD
Oxford City Council,Direct Services,Materials,D3021,04/03/2014,60016637_1,548.50,Revenue,20002254,GRAFTON MERCHANTING GB LTD
Oxford City Council,Direct Services,Direct Services Supplies & Services,D3311,04/03/2014,60016638_1,660.43,Revenue,20002254,GRAFTON MERCHANTING GB LTD
Oxford City Council,Direct Services,Direct Services Supplies & Services,D3311,04/03/2014,60016639_1,660.43,Revenue,20002254,GRAFTON MERCHANTING GB LTD
Oxford City Council,Direct Services,Direct Services Supplies & Services,D3311,04/03/2014,60016640_1,1301.03,Revenue,20002254,GRAFTON MERCHANTING GB LTD
Oxford City Council,Direct Services,Direct Services Supplies & Services,D3311,04/03/2014,60016641_1,675.95,Revenue,20002254,GRAFTON MERCHANTING GB LTD
Oxford City Council,Direct Services,Direct Services Supplies & Services,D3311,04/03/2014,60016642_1,750.53,Revenue,20002254,GRAFTON MERCHANTING GB LTD
Oxford City Council,Direct Services,Direct Services Supplies & Services,D3311,04/03/2014,60016644_1,764.02,Revenue,20002254,GRAFTON MERCHANTING GB LTD
Oxford City Council,Direct Services,Materials,D3021,04/03/2014,60016645_1,1212.12,Revenue,20002254,GRAFTON MERCHANTING GB LTD
Oxford City Council,Direct Services,Direct Services Supplies & Services,D3311,04/03/2014,60016665_2,842.32,Revenue,20002254,GRAFTON MERCHANTING GB LTD
Oxford City Council,Direct Services,Direct Services Supplies & Services,D3311,04/03/2014,60016666_0,660.43,Revenue,20002254,GRAFTON MERCHANTING GB LTD
Oxford City Council,Direct Services,Direct Services Supplies & Services,D3311,04/03/2014,60016670_0,760.56,Revenue,20002254,GRAFTON MERCHANTING GB LTD
Oxford City Council,Direct Services,Direct Services Supplies & Services,D3311,04/03/2014,60016673_2,575.82,Revenue,20002254,GRAFTON MERCHANTING GB LTD
Oxford City Council,Direct Services,Direct Services Supplies & Services,D3311,04/03/2014,60016681_2,760.56,Revenue,20002254,GRAFTON MERCHANTING GB LTD
Oxford City Council,Direct Services,Direct Services Supplies & Services,D3311,04/03/2014,60016682_0,660.43,Revenue,20002254,GRAFTON MERCHANTING GB LTD
Oxford City Council,Direct Services,Materials,D3021,04/03/2014,60016690_2,1188.54,Revenue,20002254,GRAFTON MERCHANTING GB LTD
Oxford City Council,Direct Services,Materials,D3021,04/03/2014,60016693_0,1692.08,Revenue,20002254,GRAFTON MERCHANTING GB LTD
Oxford City Council,Direct Services,Materials,D3021,04/03/2014,60016696_2,4377.29,Revenue,20002254,GRAFTON MERCHANTING GB LTD
Oxford City Council,Direct Services,Materials,D3021,04/03/2014,60016697_0,792.46,Revenue,20002254,GRAFTON MERCHANTING GB LTD
Oxford City Council,Direct Services,Direct Services Supplies & Services,D3311,04/03/2014,60016702_0,764.02,Revenue,20002254,GRAFTON MERCHANTING GB LTD
Oxford City Council,Direct Services,Direct Services Supplies & Services,D3311,04/03/2014,60016703_2,820.99,Revenue,20002254,GRAFTON MERCHANTING GB LTD
Oxford City Council,Direct Services,Direct Services Supplies & Services,D3311,04/03/2014,60016704_0,701.54,Revenue,20002254,GRAFTON MERCHANTING GB LTD
Oxford City Council,Direct Services,Direct Services Supplies & Services,D3311,04/03/2014,60016705_2,673.92,Revenue,20002254,GRAFTON MERCHANTING GB LTD
Oxford City Council,Direct Services,Direct Services Supplies & Services,D3311,04/03/2014,60016706_0,660.43,Revenue,20002254,GRAFTON MERCHANTING GB LTD
Oxford City Council,Direct Services,Direct Services Supplies & Services,D3311,04/03/2014,60016707_2,660.43,Revenue,20002254,GRAFTON MERCHANTING GB LTD
Oxford City Council,Direct Services,Materials,D3021,04/03/2014,60016714_0,875.97,Revenue,20002254,GRAFTON MERCHANTING GB LTD
Oxford City Council,Direct Services,Direct Services Supplies & Services,D3311,04/03/2014,60016733_2,660.43,Revenue,20002254,GRAFTON MERCHANTING GB LTD
Oxford City Council,Direct Services,Direct Services Supplies & Services,D3311,04/03/2014,60016735_2,701.54,Revenue,20002254,GRAFTON MERCHANTING GB LTD
Oxford City Council,Direct Services,Direct Services Supplies & Services,D3311,04/03/2014,60016736_0,660.43,Revenue,20002254,GRAFTON MERCHANTING GB LTD
Oxford City Council,Direct Services,Direct Services Supplies & Services,D3311,04/03/2014,60016740_0,628.93,Revenue,20002254,GRAFTON MERCHANTING GB LTD
Oxford City Council,Direct Services,Direct Services Supplies & Services,D3311,04/03/2014,60016742_0,525.57,Revenue,20002254,GRAFTON MERCHANTING GB LTD
Oxford City Council,Direct Services,Materials,D3021,04/03/2014,60016747_2,1090.54,Revenue,20002254,GRAFTON MERCHANTING GB LTD
Oxford City Council,Direct Services,Materials,D3021,04/03/2014,60016763_2,1030.50,Revenue,20002254,GRAFTON MERCHANTING GB LTD
Oxford City Council,Direct Services,Direct Services Supplies & Services,D3311,04/03/2014,60016765_2,587.00,Revenue,20002254,GRAFTON MERCHANTING GB LTD
Oxford City Council,Direct Services,Direct Services Supplies & Services,D3311,04/03/2014,60016769_2,779.20,Revenue,20002254,GRAFTON MERCHANTING GB LTD
Oxford City Council,Direct Services,Materials,D3021,04/03/2014,60016923_2,1039.38,Revenue,20002254,GRAFTON MERCHANTING GB LTD
Oxford City Council,Direct Services,Direct Services Supplies & Services,D3311,04/03/2014,60016956_1,1243.64,Revenue,20002254,GRAFTON MERCHANTING GB LTD
Oxford City Council,Direct Services,Direct Services Supplies & Services,D3311,04/03/2014,60016961_1,630.38,Revenue,20002254,GRAFTON MERCHANTING GB LTD
Oxford City Council,Direct Services,Direct Services Supplies & Services,D3311,04/03/2014,60016962_1,608.19,Revenue,20002254,GRAFTON MERCHANTING GB LTD
Oxford City Council,Direct Services,Direct Services Supplies & Services,D3311,04/03/2014,60016963_1,1714.60,Revenue,20002254,GRAFTON MERCHANTING GB LTD
Oxford City Council,Direct Services,Materials,D3021,11/03/2014,60017100_2,808.03,Revenue,20002254,GRAFTON MERCHANTING GB LTD
Oxford City Council,Direct Services,Direct Services Supplies & Services,D3311,11/03/2014,60017101_0,779.20,Revenue,20002254,GRAFTON MERCHANTING GB LTD
Oxford City Council,Direct Services,Direct Services Supplies & Services,D3311,11/03/2014,60017102_2,660.43,Revenue,20002254,GRAFTON MERCHANTING GB LTD
Oxford City Council,Direct Services,Direct Services Supplies & Services,D3311,11/03/2014,60017104_1,701.54,Revenue,20002254,GRAFTON MERCHANTING GB LTD
Oxford City Council,Direct Services,Direct Services Supplies & Services,D3311,11/03/2014,60017105_1,660.43,Revenue,20002254,GRAFTON MERCHANTING GB LTD
Oxford City Council,Direct Services,Direct Services Supplies & Services,D3311,11/03/2014,60017106_1,753.17,Revenue,20002254,GRAFTON MERCHANTING GB LTD
Oxford City Council,Direct Services,Direct Services Supplies & Services,D3311,11/03/2014,60017107_1,764.02,Revenue,20002254,GRAFTON MERCHANTING GB LTD
Oxford City Council,Direct Services,Direct Services Supplies & Services,D3311,11/03/2014,60017108_1,745.98,Revenue,20002254,GRAFTON MERCHANTING GB LTD
Oxford City Council,Direct Services,Direct Services Supplies & Services,D3311,11/03/2014,60017114_1,1494.85,Revenue,20002254,GRAFTON MERCHANTING GB LTD
Oxford City Council,Direct Services,Materials,D3021,11/03/2014,60017147_2,2475.08,Revenue,20002254,GRAFTON MERCHANTING GB LTD
Oxford City Council,Direct Services,Direct Services Supplies & Services,D3311,11/03/2014,60017219_2,660.43,Revenue,20002254,GRAFTON MERCHANTING GB LTD
Oxford City Council,Direct Services,Direct Services Supplies & Services,D3311,11/03/2014,60017220_0,660.43,Revenue,20002254,GRAFTON MERCHANTING GB LTD
Oxford City Council,Direct Services,Direct Services Supplies & Services,D3311,11/03/2014,60017221_2,660.43,Revenue,20002254,GRAFTON MERCHANTING GB LTD
Oxford City Council,Direct Services,Direct Services Supplies & Services,D3311,11/03/2014,60017222_0,701.54,Revenue,20002254,GRAFTON MERCHANTING GB LTD
Oxford City Council,Direct Services,Direct Services Supplies & Services,D3311,11/03/2014,60017223_2,681.64,Revenue,20002254,GRAFTON MERCHANTING GB LTD
Oxford City Council,Direct Services,Direct Services Supplies & Services,D3311,11/03/2014,60017224_0,820.99,Revenue,20002254,GRAFTON MERCHANTING GB LTD
Oxford City Council,Direct Services,Direct Services Supplies & Services,D3311,11/03/2014,60017225_2,862.10,Revenue,20002254,GRAFTON MERCHANTING GB LTD
Oxford City Council,Direct Services,Direct Services Supplies & Services,D3311,11/03/2014,60017226_0,778.02,Revenue,20002254,GRAFTON MERCHANTING GB LTD
Oxford City Council,Direct Services,Direct Services Supplies & Services,D3311,11/03/2014,60017227_2,709.92,Revenue,20002254,GRAFTON MERCHANTING GB LTD
Oxford City Council,Direct Services,Direct Services Supplies & Services,D3311,11/03/2014,60017261_2,660.43,Revenue,20002254,GRAFTON MERCHANTING GB LTD
Oxford City Council,Direct Services,Direct Services Supplies & Services,D3311,11/03/2014,60017262_0,908.69,Revenue,20002254,GRAFTON MERCHANTING GB LTD
Oxford City Council,Direct Services,Materials,D3021,11/03/2014,60017264_0,560.31,Revenue,20002254,GRAFTON MERCHANTING GB LTD
Oxford City Council,Direct Services,Direct Services Supplies & Services,D3311,11/03/2014,60017268_0,617.90,Revenue,20002254,GRAFTON MERCHANTING GB LTD
Oxford City Council,Direct Services,Direct Services Supplies & Services,D3311,11/03/2014,60017269_2,532.92,Revenue,20002254,GRAFTON MERCHANTING GB LTD
Oxford City Council,Direct Services,Direct Services Supplies & Services,D3311,11/03/2014,60017270_0,674.32,Revenue,20002254,GRAFTON MERCHANTING GB LTD
Oxford City Council,Direct Services,Direct Services Supplies & Services,D3311,11/03/2014,60017272_0,512.98,Revenue,20002254,GRAFTON MERCHANTING GB LTD
Oxford City Council,Direct Services,Direct Services Supplies & Services,D3311,11/03/2014,60017274_0,624.87,Revenue,20002254,GRAFTON MERCHANTING GB LTD
Oxford City Council,Direct Services,Direct Services Supplies & Services,D3311,11/03/2014,60017276_0,641.55,Revenue,20002254,GRAFTON MERCHANTING GB LTD
Oxford City Council,Direct Services,Direct Services Supplies & Services,D3311,11/03/2014,60017277_2,530.79,Revenue,20002254,GRAFTON MERCHANTING GB LTD
Oxford City Council,Direct Services,Direct Services Supplies & Services,D3311,11/03/2014,60017278_0,541.67,Revenue,20002254,GRAFTON MERCHANTING GB LTD
Oxford City Council,Direct Services,Direct Services Supplies & Services,D3311   ,18/03/2014,60017395_2,660.43,Revenue,20002254,GRAFTON MERCHANTING GB LTD
Oxford City Council,Direct Services,Direct Services Supplies & Services,D3311   ,18/03/2014,60017449_1,834.48,Revenue,20002254,GRAFTON MERCHANTING GB LTD
Oxford City Council,Direct Services,Direct Services Supplies & Services,D3311   ,25/03/2014,60017566_2,750.53,Revenue,20002254,GRAFTON MERCHANTING GB LTD
Oxford City Council,Direct Services,Materials,D3021   ,25/03/2014,60017583_0,536.60,Revenue,20002254,GRAFTON MERCHANTING GB LTD
Oxford City Council,Direct Services,Direct Services Supplies & Services,D3311   ,25/03/2014,60017585_0,726.00,Revenue,20002254,GRAFTON MERCHANTING GB LTD
Oxford City Council,Direct Services,Materials,D3021   ,25/03/2014,60017587_0,824.49,Revenue,20002254,GRAFTON MERCHANTING GB LTD
Oxford City Council,Direct Services,Materials,D3021   ,25/03/2014,60017589_0,2135.66,Revenue,20002254,GRAFTON MERCHANTING GB LTD
Oxford City Council,Direct Services,Direct Services Supplies & Services,D3311   ,25/03/2014,60017594_2,823.68,Revenue,20002254,GRAFTON MERCHANTING GB LTD
Oxford City Council,Direct Services,Materials,D3021   ,25/03/2014,60017595_0,1313.24,Revenue,20002254,GRAFTON MERCHANTING GB LTD
Oxford City Council,Direct Services,Direct Services Supplies & Services,D3311   ,25/03/2014,60017596_2,660.43,Revenue,20002254,GRAFTON MERCHANTING GB LTD
Oxford City Council,Direct Services,Direct Services Supplies & Services,D3311   ,25/03/2014,60017597_0,660.43,Revenue,20002254,GRAFTON MERCHANTING GB LTD
Oxford City Council,Direct Services,Direct Services Supplies & Services,D3311   ,25/03/2014,60017598_2,660.43,Revenue,20002254,GRAFTON MERCHANTING GB LTD
Oxford City Council,Direct Services,Direct Services Supplies & Services,D3311   ,25/03/2014,60017599_0,779.20,Revenue,20002254,GRAFTON MERCHANTING GB LTD
Oxford City Council,Direct Services,Direct Services Supplies & Services,D3311   ,25/03/2014,60017600_2,660.43,Revenue,20002254,GRAFTON MERCHANTING GB LTD
Oxford City Council,Direct Services,Direct Services Supplies & Services,D3311   ,25/03/2014,60017601_0,788.43,Revenue,20002254,GRAFTON MERCHANTING GB LTD
Oxford City Council,Direct Services,Direct Services Supplies & Services,D3311   ,25/03/2014,60017602_2,755.93,Revenue,20002254,GRAFTON MERCHANTING GB LTD
Oxford City Council,Direct Services,Materials,D3021   ,25/03/2014,60017604_2,914.20,Revenue,20002254,GRAFTON MERCHANTING GB LTD
Oxford City Council,Direct Services,Direct Services Supplies & Services,D3311   ,25/03/2014,60017610_2,660.43,Revenue,20002254,GRAFTON MERCHANTING GB LTD
Oxford City Council,Direct Services,Direct Services Supplies & Services,D3311   ,25/03/2014,60017611_0,660.43,Revenue,20002254,GRAFTON MERCHANTING GB LTD
Oxford City Council,Direct Services,Direct Services Supplies & Services,D3311   ,25/03/2014,60017617_0,600.00,Revenue,20002254,GRAFTON MERCHANTING GB LTD
Oxford City Council,Direct Services,Materials,D3021   ,25/03/2014,60017630_2,1663.55,Revenue,20002254,GRAFTON MERCHANTING GB LTD
Oxford City Council,Direct Services,Direct Services Supplies & Services,D3311   ,25/03/2014,60017631_0,546.37,Revenue,20002254,GRAFTON MERCHANTING GB LTD
Oxford City Council,Direct Services,Direct Services Supplies & Services,D3311   ,25/03/2014,60017633_0,687.66,Revenue,20002254,GRAFTON MERCHANTING GB LTD
Oxford City Council,Direct Services,Direct Services Supplies & Services,D3311   ,25/03/2014,60017667_0,1087.03,Revenue,20002254,GRAFTON MERCHANTING GB LTD
Oxford City Council,Direct Services,Direct Services Supplies & Services,D3311   ,25/03/2014,60017669_0,605.00,Revenue,20002254,GRAFTON MERCHANTING GB LTD
Oxford City Council,Direct Services,Materials,D3021   ,25/03/2014,60017671_0,1831.15,Revenue,20002254,GRAFTON MERCHANTING GB LTD
Oxford City Council,Direct Services,Materials,D3021   ,25/03/2014,60017673_0,1114.81,Revenue,20002254,GRAFTON MERCHANTING GB LTD
Oxford City Council,Direct Services,Materials,D3021   ,25/03/2014,60017674_2,5991.22,Revenue,20002254,GRAFTON MERCHANTING GB LTD
Oxford City Council,Direct Services,Materials,D3021   ,25/03/2014,60017675_0,3430.45,Revenue,20002254,GRAFTON MERCHANTING GB LTD
Oxford City Council,Direct Services,Materials,D3021   ,25/03/2014,60017676_2,694.46,Revenue,20002254,GRAFTON MERCHANTING GB LTD
Oxford City Council,Direct Services,Materials,D3021   ,25/03/2014,60017678_1,1448.68,Revenue,20002254,GRAFTON MERCHANTING GB LTD
Oxford City Council,Direct Services,Materials,D3021   ,25/03/2014,60017679_1,555.00,Revenue,20002254,GRAFTON MERCHANTING GB LTD
Oxford City Council,Direct Services,Direct Services Supplies & Services,D3311   ,25/03/2014,60017684_1,1215.42,Revenue,20002254,GRAFTON MERCHANTING GB LTD
Oxford City Council,Direct Services,Direct Services Supplies & Services,D3311   ,25/03/2014,60017685_1,660.43,Revenue,20002254,GRAFTON MERCHANTING GB LTD
Oxford City Council,Direct Services,Direct Services Supplies & Services,D3311   ,25/03/2014,60017686_1,660.43,Revenue,20002254,GRAFTON MERCHANTING GB LTD
Oxford City Council,Direct Services,Direct Services Supplies & Services,D3311   ,25/03/2014,60017687_1,862.10,Revenue,20002254,GRAFTON MERCHANTING GB LTD
Oxford City Council,Direct Services,Direct Services Supplies & Services,D3311   ,25/03/2014,60017688_1,701.54,Revenue,20002254,GRAFTON MERCHANTING GB LTD
Oxford City Council,Direct Services,Direct Services Supplies & Services,D3311   ,25/03/2014,60017689_1,660.43,Revenue,20002254,GRAFTON MERCHANTING GB LTD
Oxford City Council,Direct Services,Direct Services Supplies & Services,D3311   ,25/03/2014,60017690_2,701.54,Revenue,20002254,GRAFTON MERCHANTING GB LTD
Oxford City Council,Direct Services,Direct Services Supplies & Services,D3311   ,25/03/2014,60017691_0,660.43,Revenue,20002254,GRAFTON MERCHANTING GB LTD
Oxford City Council,Direct Services,Direct Services Supplies & Services,D3311   ,25/03/2014,60017692_2,858.98,Revenue,20002254,GRAFTON MERCHANTING GB LTD
Oxford City Council,Direct Services,Direct Services Supplies & Services,D3311   ,25/03/2014,60017693_0,660.43,Revenue,20002254,GRAFTON MERCHANTING GB LTD
Oxford City Council,Direct Services,Direct Services Supplies & Services,D3311   ,25/03/2014,60017694_2,800.41,Revenue,20002254,GRAFTON MERCHANTING GB LTD
Oxford City Council,Direct Services,Direct Services Supplies & Services,D3311   ,25/03/2014,60017695_0,701.54,Revenue,20002254,GRAFTON MERCHANTING GB LTD
Oxford City Council,Direct Services,Direct Services Supplies & Services,D3311   ,25/03/2014,60017696_2,1034.91,Revenue,20002254,GRAFTON MERCHANTING GB LTD
Oxford City Council,Direct Services,Direct Services Supplies & Services,D3311   ,25/03/2014,60017697_0,1124.37,Revenue,20002254,GRAFTON MERCHANTING GB LTD
Oxford City Council,Direct Services,Direct Services Supplies & Services,D3311   ,25/03/2014,60017701_0,526.49,Revenue,20002254,GRAFTON MERCHANTING GB LTD
Oxford City Council,Direct Services,Direct Services Supplies & Services,D3311   ,25/03/2014,60017704_2,820.99,Revenue,20002254,GRAFTON MERCHANTING GB LTD
Oxford City Council,Direct Services,Direct Services Supplies & Services,D3311   ,25/03/2014,60017705_0,917.61,Revenue,20002254,GRAFTON MERCHANTING GB LTD
Oxford City Council,Direct Services,Direct Services Supplies & Services,D3311   ,25/03/2014,60017707_0,590.81,Revenue,20002254,GRAFTON MERCHANTING GB LTD
Oxford City Council,Direct Services,Direct Services Supplies & Services,D3311   ,25/03/2014,60017714_1,660.43,Revenue,20002254,GRAFTON MERCHANTING GB LTD
Oxford City Council,Direct Services,Direct Services Supplies & Services,D3311   ,25/03/2014,60017720_1,743.92,Revenue,20002254,GRAFTON MERCHANTING GB LTD
Oxford City Council,Direct Services,Direct Services Supplies & Services,D3311   ,25/03/2014,60017722_1,660.43,Revenue,20002254,GRAFTON MERCHANTING GB LTD
Oxford City Council,Direct Services,Direct Services Supplies & Services,D3311   ,25/03/2014,60017723_1,820.99,Revenue,20002254,GRAFTON MERCHANTING GB LTD
Oxford City Council,Direct Services,Direct Services Supplies & Services,D3311   ,25/03/2014,60017724_1,743.76,Revenue,20002254,GRAFTON MERCHANTING GB LTD
Oxford City Council,Direct Services,Direct Services Supplies & Services,D3311   ,25/03/2014,60017725_1,1196.23,Revenue,20002254,GRAFTON MERCHANTING GB LTD
Oxford City Council,Direct Services,Direct Services Supplies & Services,D3311   ,25/03/2014,60017726_1,1318.92,Revenue,20002254,GRAFTON MERCHANTING GB LTD
Oxford City Council,Direct Services,Direct Services Supplies & Services,D3311   ,25/03/2014,60017727_1,937.90,Revenue,20002254,GRAFTON MERCHANTING GB LTD
Oxford City Council,Direct Services,Direct Services Supplies & Services,D3311   ,25/03/2014,60017923_0,1353.95,Revenue,20002254,GRAFTON MERCHANTING GB LTD
Oxford City Council,Direct Services,Direct Services Supplies & Services,D3311   ,25/03/2014,60017924_2,1478.07,Revenue,20002254,GRAFTON MERCHANTING GB LTD
Oxford City Council,Direct Services,Materials,D3021   ,25/03/2014,60017960_0,4239.41,Revenue,20002254,GRAFTON MERCHANTING GB LTD
Oxford City Council,Direct Services,Materials,D3021   ,25/03/2014,60017963_2,2188.94,Revenue,20002254,GRAFTON MERCHANTING GB LTD
Oxford City Council,Direct Services,Materials,D3021   ,25/03/2014,60017967_2,2549.93,Revenue,20002254,GRAFTON MERCHANTING GB LTD
Oxford City Council,Direct Services,Direct Services Supplies & Services,D3311   ,25/03/2014,60017976_0,1263.06,Revenue,20002254,GRAFTON MERCHANTING GB LTD
Oxford City Council,Direct Services,Direct Services Supplies & Services,D3311   ,25/03/2014,60017978_0,835.71,Revenue,20002254,GRAFTON MERCHANTING GB LTD
Oxford City Council,Direct Services,Direct Services Supplies & Services,D3311   ,25/03/2014,60018019_2,517.41,Revenue,20002254,GRAFTON MERCHANTING GB LTD
Oxford City Council,Direct Services,Materials,D3021   ,25/03/2014,60018022_0,9044.26,Revenue,20002254,GRAFTON MERCHANTING GB LTD
Oxford City Council,Direct Services,Materials,D3021   ,25/03/2014,60018024_0,1660.01,Revenue,20002254,GRAFTON MERCHANTING GB LTD
Oxford City Council,Direct Services,Plant Purchase,C2002   ,21/01/2014,47973693_0,1600.00,Revenue,20002278,MF HYDRAULICS LTD
Oxford City Council,Direct Services,Plant Purchase,C2002   ,21/01/2014,47973693_1,300.00,Revenue,20002278,MF HYDRAULICS LTD
Oxford City Council,Direct Services,Plant Purchase,C2002   ,21/01/2014,47973693_2,259.00,Revenue,20002278,MF HYDRAULICS LTD
Oxford City Council,Direct Services,Plant Purchase,C2002   ,21/01/2014,47973693_3,19.20,Revenue,20002278,MF HYDRAULICS LTD
Oxford City Council,Direct Services,Plant Purchase,C2002   ,21/01/2014,47973693_4,19.20,Revenue,20002278,MF HYDRAULICS LTD
Oxford City Council,Direct Services,Plant Purchase,C2002,25/02/2014,47974189_1,1800.00,Revenue,20002278,MF HYDRAULICS LTD
Oxford City Council,Direct Services,Plant Purchase,C2002,25/02/2014,47974189_2,410.40,Revenue,20002278,MF HYDRAULICS LTD
Oxford City Council,Direct Services,Plant Purchase,C2002,04/03/2014,47974367_0,800.00,Revenue,20002278,MF HYDRAULICS LTD
Oxford City Council,Direct Services,Plant Purchase,C2002,04/03/2014,47974367_1,1020.00,Revenue,20002278,MF HYDRAULICS LTD
Oxford City Council,Direct Services,Plant Purchase,C2002,04/03/2014,47974367_2,450.00,Revenue,20002278,MF HYDRAULICS LTD
Oxford City Council,Direct Services,Contract Plant Hire,C2402,28/01/2014,60014934_1,750.00,Revenue,20002282,M&J ENGINEERS LTD
Oxford City Council,Direct Services,General Contracted Services,D3401,11/03/2014,60017160_0,840.00,Revenue,20002282,M&J ENGINEERS LTD
Oxford City Council,Direct Services,Contract Plant Hire,C2402   ,25/03/2014,60018041_1,900.00,Revenue,20002282,M&J ENGINEERS LTD
Oxford City Council,Direct Services,Contract Plant Hire,C2402   ,25/03/2014,60018042_1,600.00,Revenue,20002282,M&J ENGINEERS LTD
Oxford City Council,Direct Services,Reactive Maintenance & Minor Repairs,B1101,14/01/2014,1002633_1,1871.64,Revenue,20002296,METRIC GROUP LIMITED
Oxford City Council,Direct Services,Reactive Maintenance & Minor Repairs,B1101,14/01/2014,1002633_2,369.00,Revenue,20002296,METRIC GROUP LIMITED
Oxford City Council,Direct Services,Furniture & Equipment Maintenance & Repairs,D3002,11/02/2014,1003158_1,600.86,Revenue,20002296,METRIC GROUP LIMITED
Oxford City Council,Direct Services,Reactive Maintenance & Minor Repairs,B1101,18/02/2014,1003213_1,646.80,Revenue,20002296,METRIC GROUP LIMITED
Oxford City Council,Direct Services,Reactive Maintenance & Minor Repairs,B1101,25/02/2014,1003358_1,1518.05,Revenue,20002296,METRIC GROUP LIMITED
Oxford City Council,Direct Services,Materials,D3021,07/01/2014,60014475_2,644.85,Revenue,20002299,C BREWER & SONS LTD
Oxford City Council,Direct Services,Materials,D3021,21/01/2014,60014771_2,783.10,Revenue,20002299,C BREWER & SONS LTD
Oxford City Council,Direct Services,Materials,D3021,28/01/2014,60014977_1,1198.80,Revenue,20002299,C BREWER & SONS LTD
Oxford City Council,Direct Services,Materials,D3021   ,04/02/2014,60015524_0,1007.38,Revenue,20002299,C BREWER & SONS LTD
Oxford City Council,Direct Services,Materials,D3021   ,25/02/2014,60016228_1,958.17,Revenue,20002299,C BREWER & SONS LTD
Oxford City Council,Direct Services,Materials,D3021   ,25/02/2014,60016353_1,691.20,Revenue,20002299,C BREWER & SONS LTD
Oxford City Council,Direct Services,Materials,D3021   ,25/02/2014,60016355_1,671.53,Revenue,20002299,C BREWER & SONS LTD
Oxford City Council,Direct Services,Materials,D3021,11/03/2014,60017054_1,971.66,Revenue,20002299,C BREWER & SONS LTD
Oxford City Council,Direct Services,Materials,D3021   ,25/03/2014,60017890_2,1172.21,Revenue,20002299,C BREWER & SONS LTD
Oxford City Council,Direct Services,Materials,D3021   ,25/03/2014,60017932_1,518.43,Revenue,20002299,C BREWER & SONS LTD
Oxford City Council,Direct Services,Materials,D3021,07/01/2014,60014273_0,644.40,Revenue,20002335,OXFORD FENCING SUPPLIES
Oxford City Council,Direct Services,Materials,D3021,14/01/2014,60014578_0,1198.00,Revenue,20002335,OXFORD FENCING SUPPLIES
Oxford City Council,Direct Services,Materials,D3021   ,11/02/2014,60015951_0,666.45,Revenue,20002347,REXEL UK LIMITED
Oxford City Council,Direct Services,Materials,D3021   ,11/02/2014,60015951_1,650.42,Revenue,20002347,REXEL UK LIMITED
Oxford City Council,Direct Services,Tools,D3023   ,11/02/2014,60015999_2,33.91,Revenue,20002347,REXEL UK LIMITED
Oxford City Council,Direct Services,Tools,D3023   ,11/02/2014,60015999_3,469.25,Revenue,20002347,REXEL UK LIMITED
Oxford City Council,Direct Services,Tools,D3023,04/03/2014,60016827_2,981.78,Revenue,20002347,REXEL UK LIMITED
Oxford City Council,Suspense,Materials,D3021,04/03/2014,60016948_1,1140.00,Revenue,20002347,REXEL UK LIMITED
Oxford City Council,Direct Services,Materials,D3021   ,18/03/2014,60017316_1,515.46,Revenue,20002347,REXEL UK LIMITED
Oxford City Council,Direct Services,Tools,D3023   ,25/03/2014,60017840_2,771.20,Revenue,20002347,REXEL UK LIMITED
Oxford City Council,Direct Services,Cleaning Materials,B1601,25/03/2014,1004461_1,2164.65,Revenue,20002351,PHS GROUP PLC
Oxford City Council,Direct Services,Services Maintenance (Planned),B1103,28/01/2014,60015251_1,7620.13,Revenue,20002351,PHS GROUP PLC
Oxford City Council,Direct Services,Short Courses,A0622,11/02/2014,46280208_1,1362.00,Revenue,20002387,AEBI SCHMIDT UK LTD
Oxford City Council,Direct Services,Veh.maint direct purchase,D3031   ,21/01/2014,47973666_1,299.47,Revenue,20002387,AEBI SCHMIDT UK LTD
Oxford City Council,Direct Services,Veh.maint direct purchase,D3031   ,21/01/2014,47973666_2,299.47,Revenue,20002387,AEBI SCHMIDT UK LTD
Oxford City Council,Suspense,Materials,D3021   ,21/01/2014,47973666_3,297.48,Revenue,20002387,AEBI SCHMIDT UK LTD
Oxford City Council,Suspense,Materials,D3021   ,21/01/2014,47973666_4,93.06,Revenue,20002387,AEBI SCHMIDT UK LTD
Oxford City Council,Direct Services,Veh.maint direct purchase,D3031,25/02/2014,47974176_1,253.86,Revenue,20002387,AEBI SCHMIDT UK LTD
Oxford City Council,Direct Services,Veh.maint direct purchase,D3031,25/02/2014,47974176_10,3.12,Revenue,20002387,AEBI SCHMIDT UK LTD
Oxford City Council,Direct Services,Veh.maint direct purchase,D3031,25/02/2014,47974176_11,0.39,Revenue,20002387,AEBI SCHMIDT UK LTD
Oxford City Council,Direct Services,Veh.maint direct purchase,D3031,25/02/2014,47974176_2,253.86,Revenue,20002387,AEBI SCHMIDT UK LTD
Oxford City Council,Direct Services,Veh.maint direct purchase,D3031,25/02/2014,47974176_3,482.95,Revenue,20002387,AEBI SCHMIDT UK LTD
Oxford City Council,Direct Services,Veh.maint direct purchase,D3031,25/02/2014,47974176_4,11.04,Revenue,20002387,AEBI SCHMIDT UK LTD
Oxford City Council,Direct Services,Veh.maint direct purchase,D3031,25/02/2014,47974176_5,6.24,Revenue,20002387,AEBI SCHMIDT UK LTD
Oxford City Council,Direct Services,Veh.maint direct purchase,D3031,25/02/2014,47974176_6,11.12,Revenue,20002387,AEBI SCHMIDT UK LTD
Oxford City Council,Direct Services,Veh.maint direct purchase,D3031,25/02/2014,47974176_7,5.49,Revenue,20002387,AEBI SCHMIDT UK LTD
Oxford City Council,Direct Services,Veh.maint direct purchase,D3031,25/02/2014,47974176_8,6.33,Revenue,20002387,AEBI SCHMIDT UK LTD
Oxford City Council,Direct Services,Veh.maint direct purchase,D3031,25/02/2014,47974176_9,29.39,Revenue,20002387,AEBI SCHMIDT UK LTD
Oxford City Council,Direct Services,Veh.maint direct purchase,D3031,25/02/2014,47974246_0,123.45,Revenue,20002387,AEBI SCHMIDT UK LTD
Oxford City Council,Direct Services,Veh.maint direct purchase,D3031,25/02/2014,47974246_1,387.08,Revenue,20002387,AEBI SCHMIDT UK LTD
Oxford City Council,Direct Services,Veh.maint direct purchase,D3031,25/02/2014,47974246_2,236.51,Revenue,20002387,AEBI SCHMIDT UK LTD
Oxford City Council,Direct Services,Veh.maint direct purchase,D3031   ,18/03/2014,47974475_0,306.13,Revenue,20002387,AEBI SCHMIDT UK LTD
Oxford City Council,Direct Services,Veh.maint direct purchase,D3031   ,18/03/2014,47974475_1,317.53,Revenue,20002387,AEBI SCHMIDT UK LTD
Oxford City Council,Direct Services,Veh.maint direct purchase,D3031   ,18/03/2014,47974516_2,542.18,Revenue,20002387,AEBI SCHMIDT UK LTD
Oxford City Council,Direct Services,Veh.maint direct purchase,D3031   ,18/03/2014,47974516_3,105.47,Revenue,20002387,AEBI SCHMIDT UK LTD
Oxford City Council,Direct Services,Veh.maint direct purchase,D3031   ,18/03/2014,47974516_4,554.28,Revenue,20002387,AEBI SCHMIDT UK LTD
Oxford City Council,Direct Services,Veh.maint direct purchase,D3031   ,18/03/2014,47974516_5,1.77,Revenue,20002387,AEBI SCHMIDT UK LTD
Oxford City Council,Suspense,Materials,D3021   ,18/03/2014,47974527_0,38.36,Revenue,20002387,AEBI SCHMIDT UK LTD
Oxford City Council,Suspense,Materials,D3021   ,18/03/2014,47974527_1,42.86,Revenue,20002387,AEBI SCHMIDT UK LTD
Oxford City Council,Suspense,Materials,D3021   ,18/03/2014,47974527_2,88.54,Revenue,20002387,AEBI SCHMIDT UK LTD
Oxford City Council,Suspense,Materials,D3021   ,18/03/2014,47974527_3,283.92,Revenue,20002387,AEBI SCHMIDT UK LTD
Oxford City Council,Direct Services,Veh.maint direct purchase,D3031   ,18/03/2014,47974527_4,59.07,Revenue,20002387,AEBI SCHMIDT UK LTD
Oxford City Council,Direct Services,Veh.maint direct purchase,D3031   ,25/03/2014,47974649_2,153.67,Revenue,20002387,AEBI SCHMIDT UK LTD
Oxford City Council,Direct Services,Veh.maint direct purchase,D3031   ,25/03/2014,47974649_3,358.82,Revenue,20002387,AEBI SCHMIDT UK LTD
Oxford City Council,Direct Services,Veh.maint direct purchase,D3031   ,25/03/2014,47974649_4,80.00,Revenue,20002387,AEBI SCHMIDT UK LTD
Oxford City Council,Direct Services,Business Rates/Council Tax,B1702,25/03/2014,46280951_1,6358.50,Revenue,20002401,SOUTH OXFORDSHIRE DISTRICT COUNCIL
Oxford City Council,Direct Services,Electricity,B1501,21/01/2014,1002892_1,1330.77,Revenue,20002402,SOUTHERN ELECTRIC PLC
Oxford City Council,"Leisure, Parks & Communities",Electricity,B1501,21/01/2014,1002901_1,539.99,Revenue,20002402,SOUTHERN ELECTRIC PLC
Oxford City Council,Direct Services,Electricity,B1501,28/01/2014,1002956_1,1652.88,Revenue,20002402,SOUTHERN ELECTRIC PLC
Oxford City Council,Regeneration and Major Projects Team,Electricity,B1501,04/03/2014,1003391_1,1268.18,Revenue,20002402,SOUTHERN ELECTRIC PLC
Oxford City Council,Direct Services,Electricity,B1501,04/03/2014,1003609_1,3029.40,Revenue,20002402,SOUTHERN ELECTRIC PLC
Oxford City Council,Direct Services,Electricity,B1501,18/02/2014,1003610_1,2246.98,Revenue,20002402,SOUTHERN ELECTRIC PLC
Oxford City Council,Regeneration and Major Projects Team,Electricity,B1501,18/02/2014,1003616_1,1026.37,Revenue,20002402,SOUTHERN ELECTRIC PLC
Oxford City Council,Regeneration and Major Projects Team,Electricity,B1501,18/02/2014,1003619_1,1124.84,Revenue,20002402,SOUTHERN ELECTRIC PLC
Oxford City Council,"Leisure, Parks & Communities",Electricity,B1501,18/02/2014,1003632_1,527.95,Revenue,20002402,SOUTHERN ELECTRIC PLC
Oxford City Council,"Leisure, Parks & Communities",Electricity,B1501,18/02/2014,1003633_1,845.78,Revenue,20002402,SOUTHERN ELECTRIC PLC
Oxford City Council,"Leisure, Parks & Communities",Electricity,B1501,18/02/2014,1003637_1,630.78,Revenue,20002402,SOUTHERN ELECTRIC PLC
Oxford City Council,"Leisure, Parks & Communities",Electricity,B1501,18/02/2014,1003638_1,711.44,Revenue,20002402,SOUTHERN ELECTRIC PLC
Oxford City Council,Direct Services,Electricity,B1501,04/03/2014,1003715_1,1756.90,Revenue,20002402,SOUTHERN ELECTRIC PLC
Oxford City Council,"Leisure, Parks & Communities",Electricity,B1501,25/02/2014,1003893_1,2083.71,Revenue,20002402,SOUTHERN ELECTRIC PLC
Oxford City Council,Regeneration and Major Projects Team,Electricity,B1501,04/03/2014,1004002_1,1212.50,Revenue,20002402,SOUTHERN ELECTRIC PLC
Oxford City Council,Direct Services,Electricity,B1501,18/03/2014,1004326_1,847.45,Revenue,20002402,SOUTHERN ELECTRIC PLC
Oxford City Council,Direct Services,Electricity,B1501,18/03/2014,1004330_1,1538.47,Revenue,20002402,SOUTHERN ELECTRIC PLC
Oxford City Council,"Leisure, Parks & Communities",Electricity,B1501,18/03/2014,1004418_1,818.37,Revenue,20002402,SOUTHERN ELECTRIC PLC
Oxford City Council,HRA,Electricity,B1501,21/01/2014,46279972_1,2890.36,Revenue,20002402,SOUTHERN ELECTRIC PLC
Oxford City Council,Environmental Development,Electricity,B1501,28/01/2014,46280056_1,535.87,Revenue,20002402,SOUTHERN ELECTRIC PLC
Oxford City Council,Housing and Property,Electricity,B1501,04/03/2014,46280492_1,5678.80,Revenue,20002402,SOUTHERN ELECTRIC PLC
Oxford City Council,Housing and Property,Electricity,B1501,04/03/2014,46280492_2,961.72,Revenue,20002402,SOUTHERN ELECTRIC PLC
Oxford City Council,HRA,Electricity,B1501,04/03/2014,46280540_1,1378.99,Revenue,20002402,SOUTHERN ELECTRIC PLC
Oxford City Council,HRA,Electricity,B1501,04/03/2014,46280540_2,854.09,Revenue,20002402,SOUTHERN ELECTRIC PLC
Oxford City Council,HRA,Electricity,B1501,04/03/2014,46280540_3,5591.05,Revenue,20002402,SOUTHERN ELECTRIC PLC
Oxford City Council,HRA,Electricity,B1501,04/03/2014,46280540_4,19.30,Revenue,20002402,SOUTHERN ELECTRIC PLC
Oxford City Council,HRA,Electricity,B1501,04/03/2014,46280540_5,2304.67,Revenue,20002402,SOUTHERN ELECTRIC PLC
Oxford City Council,HRA,Electricity,B1501,04/03/2014,46280540_6,2005.89,Revenue,20002402,SOUTHERN ELECTRIC PLC
Oxford City Council,HRA,Electricity,B1501,04/03/2014,46280540_7,160.83,Revenue,20002402,SOUTHERN ELECTRIC PLC
Oxford City Council,HRA,Electricity,B1501,04/03/2014,46280540_8,1.33,Revenue,20002402,SOUTHERN ELECTRIC PLC
Oxford City Council,Housing and Property,Electricity,B1501,25/03/2014,46280960_1,3848.89,Revenue,20002402,SOUTHERN ELECTRIC PLC
Oxford City Council,Direct Services,Protective Clothing,D3201   ,14/01/2014,47973596_0,662.40,Revenue,20002409,BERENDSEN UK LTD
Oxford City Council,Direct Services,Protective Clothing,D3201   ,14/01/2014,47973596_1,64.84,Revenue,20002409,BERENDSEN UK LTD
Oxford City Council,Direct Services,Protective Clothing,D3201   ,14/01/2014,47973596_2,41.40,Revenue,20002409,BERENDSEN UK LTD
Oxford City Council,Direct Services,Protective Clothing,D3201   ,14/01/2014,47973596_3,14.88,Revenue,20002409,BERENDSEN UK LTD
Oxford City Council,Direct Services,Protective Clothing,D3201   ,14/01/2014,47973596_4,21.76,Revenue,20002409,BERENDSEN UK LTD
Oxford City Council,Direct Services,Protective Clothing,D3201   ,14/01/2014,47973613_1,2039.63,Revenue,20002409,BERENDSEN UK LTD
Oxford City Council,Direct Services,Protective Clothing,D3201   ,14/01/2014,47973613_2,202.28,Revenue,20002409,BERENDSEN UK LTD
Oxford City Council,Direct Services,Protective Clothing,D3201   ,14/01/2014,47973613_3,184.86,Revenue,20002409,BERENDSEN UK LTD
Oxford City Council,Direct Services,Protective Clothing,D3201   ,14/01/2014,47973613_4,269.10,Revenue,20002409,BERENDSEN UK LTD
Oxford City Council,HRA,Water & Sewerage Charges,B1830,14/01/2014,1002761_1,1016.95,Revenue,20002423,THAMES WATER UTILITIES LTD
Oxford City Council,HRA,Water & Sewerage Charges,B1830,11/02/2014,1003290_1,550.42,Revenue,20002423,THAMES WATER UTILITIES LTD
Oxford City Council,HRA,Water & Sewerage Charges,B1830,11/02/2014,1003302_1,538.98,Revenue,20002423,THAMES WATER UTILITIES LTD
Oxford City Council,Direct Services,Water & Sewerage Charges,B1830,04/02/2014,1003304_1,882.38,Revenue,20002423,THAMES WATER UTILITIES LTD
Oxford City Council,HRA,Water & Sewerage Charges,B1830,11/02/2014,1003435_1,1310.76,Revenue,20002423,THAMES WATER UTILITIES LTD
Oxford City Council,Regeneration and Major Projects Team,Water & Sewerage Charges,B1830,25/02/2014,1003641_1,918.13,Revenue,20002423,THAMES WATER UTILITIES LTD
Oxford City Council,HRA,Water & Sewerage Charges,B1830,18/02/2014,1003708_1,620.37,Revenue,20002423,THAMES WATER UTILITIES LTD
Oxford City Council,Housing and Property,Water & Sewerage Charges,B1830,18/02/2014,1003711_1,516.89,Revenue,20002423,THAMES WATER UTILITIES LTD
Oxford City Council,HRA,Water & Sewerage Charges,B1830,18/03/2014,1003750_1,530.48,Revenue,20002423,THAMES WATER UTILITIES LTD
Oxford City Council,Housing and Property,Water & Sewerage Charges,B1830,25/02/2014,1003875_1,594.69,Revenue,20002423,THAMES WATER UTILITIES LTD
Oxford City Council,Housing and Property,Water & Sewerage Charges,B1830,25/02/2014,1003878_1,529.95,Revenue,20002423,THAMES WATER UTILITIES LTD
Oxford City Council,Housing and Property,Water & Sewerage Charges,B1830,25/02/2014,1003880_1,529.95,Revenue,20002423,THAMES WATER UTILITIES LTD
Oxford City Council,Housing and Property,Water & Sewerage Charges,B1830,25/02/2014,1003883_1,520.95,Revenue,20002423,THAMES WATER UTILITIES LTD
Oxford City Council,HRA,Water & Sewerage Charges,B1830,04/03/2014,1003889_1,813.71,Revenue,20002423,THAMES WATER UTILITIES LTD
Oxford City Council,Housing and Property,Water & Sewerage Charges,B1830,25/02/2014,1003890_1,950.81,Revenue,20002423,THAMES WATER UTILITIES LTD
Oxford City Council,"Leisure, Parks & Communities",Water & Sewerage Charges,B1830,04/03/2014,1003971_1,806.91,Revenue,20002423,THAMES WATER UTILITIES LTD
Oxford City Council,HRA,Water & Sewerage Charges,B1830,04/03/2014,1004077_1,733.18,Revenue,20002423,THAMES WATER UTILITIES LTD
Oxford City Council,HRA,Water & Sewerage Charges,B1830,18/03/2014,1004108_1,1017.36,Revenue,20002423,THAMES WATER UTILITIES LTD
Oxford City Council,Regeneration and Major Projects Team,Water & Sewerage Charges,B1830,11/03/2014,1004137_1,588.45,Revenue,20002423,THAMES WATER UTILITIES LTD
Oxford City Council,HRA,Water & Sewerage Charges,B1830,25/03/2014,1004305_1,622.89,Revenue,20002423,THAMES WATER UTILITIES LTD
Oxford City Council,"Leisure, Parks & Communities",Water & Sewerage Charges,B1830,25/03/2014,1004417_1,895.61,Revenue,20002423,THAMES WATER UTILITIES LTD
Oxford City Council,Housing and Property,Water & Sewerage Charges,B1830,25/03/2014,1004511_1,1517.01,Revenue,20002423,THAMES WATER UTILITIES LTD
Oxford City Council,Regeneration and Major Projects Team,Water & Sewerage Charges,B1830,14/01/2014,46279741_1,723.68,Revenue,20002423,THAMES WATER UTILITIES LTD
Oxford City Council,Direct Services,Water & Sewerage Charges,B1830,14/01/2014,46279747_1,548.01,Revenue,20002423,THAMES WATER UTILITIES LTD
Oxford City Council,Direct Services,Water & Sewerage Charges,B1830,14/01/2014,46279797_1,1231.61,Revenue,20002423,THAMES WATER UTILITIES LTD
Oxford City Council,Direct Services,Water & Sewerage Charges,B1830,28/01/2014,46279999_1,560.86,Revenue,20002423,THAMES WATER UTILITIES LTD
Oxford City Council,Direct Services,Water & Sewerage Charges,B1830,28/01/2014,46280001_1,1388.44,Revenue,20002423,THAMES WATER UTILITIES LTD
Oxford City Council,Direct Services,Water & Sewerage Charges,B1830,28/01/2014,46280066_1,708.93,Revenue,20002423,THAMES WATER UTILITIES LTD
Oxford City Council,Regeneration and Major Projects Team,Water & Sewerage Charges,B1830,28/01/2014,46280075_1,1409.70,Revenue,20002423,THAMES WATER UTILITIES LTD
Oxford City Council,Direct Services,Water & Sewerage Charges,B1830,04/02/2014,46280111_1,626.18,Revenue,20002423,THAMES WATER UTILITIES LTD
Oxford City Council,Direct Services,Materials,D3021,21/01/2014,60014776_0,674.93,Revenue,20002434,TOOLMASTER (OXFORD) LTD
Oxford City Council,Direct Services,Materials,D3021   ,25/02/2014,60016357_2,605.03,Revenue,20002434,TOOLMASTER (OXFORD) LTD
Oxford City Council,Direct Services,Materials,D3021   ,25/02/2014,60016359_2,911.78,Revenue,20002434,TOOLMASTER (OXFORD) LTD
Oxford City Council,Direct Services,Materials,D3021   ,25/03/2014,60017555_1,1115.86,Revenue,20002434,TOOLMASTER (OXFORD) LTD
Oxford City Council,Direct Services,Veh.maint direct purchase,D3031   ,18/02/2014,47974074_0,610.93,Revenue,20002435,P A TURNEY LTD
Oxford City Council,Direct Services,Vehicle Purchase,C2001,04/03/2014,47974306_2,590.50,Revenue,20002435,P A TURNEY LTD
Oxford City Council,Direct Services,Veh.maint direct purchase,D3031   ,11/03/2014,47974410_0,979.93,Revenue,20002435,P A TURNEY LTD
Oxford City Council,Direct Services,Veh.maint direct purchase,D3031   ,11/03/2014,47974410_1,20.00,Revenue,20002435,P A TURNEY LTD
Oxford City Council,Direct Services,Furniture & Equipment Maintenance & Repairs,D3002   ,11/02/2014,60015747_1,4421.00,Revenue,20002443,UNIVERSAL ACCESS & POWER PLAN
Oxford City Council,Direct Services,Materials,D3021   ,11/02/2014,60015748_1,2749.90,Revenue,20002443,UNIVERSAL ACCESS & POWER PLAN
Oxford City Council,Direct Services,Direct Services Supplies & Services,D3311   ,11/02/2014,60015875_2,3222.20,Revenue,20002443,UNIVERSAL ACCESS & POWER PLAN
Oxford City Council,Direct Services,Tools,D3023   ,25/02/2014,60016457_1,2918.00,Revenue,20002443,UNIVERSAL ACCESS & POWER PLAN
Oxford City Council,Direct Services,Materials,D3021,07/01/2014,60014242_2,1633.57,Revenue,20002464,WOLSELEY UK LIMITED
Oxford City Council,Direct Services,Direct Services Supplies & Services,D3311,07/01/2014,60014383_1,583.46,Revenue,20002464,WOLSELEY UK LIMITED
Oxford City Council,Direct Services,Materials,D3021,14/01/2014,60014612_1,2322.63,Revenue,20002464,WOLSELEY UK LIMITED
Oxford City Council,Direct Services,Materials,D3021,14/01/2014,60014662_0,876.41,Revenue,20002464,WOLSELEY UK LIMITED
Oxford City Council,Direct Services,Materials,D3021   ,04/02/2014,60015500_1,1866.24,Revenue,20002464,WOLSELEY UK LIMITED
Oxford City Council,Direct Services,Materials,D3021   ,11/02/2014,60015716_1,975.00,Revenue,20002464,WOLSELEY UK LIMITED
Oxford City Council,Direct Services,Direct Services Supplies & Services,D3311   ,11/02/2014,60015717_1,619.22,Revenue,20002464,WOLSELEY UK LIMITED
Oxford City Council,Direct Services,Materials,D3021   ,11/02/2014,60015862_0,3128.01,Revenue,20002464,WOLSELEY UK LIMITED
Oxford City Council,Direct Services,Materials,D3021   ,11/02/2014,60015866_0,3093.02,Revenue,20002464,WOLSELEY UK LIMITED
Oxford City Council,Direct Services,Direct Services Supplies & Services,D3311   ,11/02/2014,60015921_1,609.71,Revenue,20002464,WOLSELEY UK LIMITED
Oxford City Council,Direct Services,Direct Services Supplies & Services,D3311,04/03/2014,60016628_1,635.34,Revenue,20002464,WOLSELEY UK LIMITED
Oxford City Council,Direct Services,Direct Services Supplies & Services,D3311,04/03/2014,60016650_1,619.22,Revenue,20002464,WOLSELEY UK LIMITED
Oxford City Council,Direct Services,Materials,D3021,04/03/2014,60016651_1,738.56,Revenue,20002464,WOLSELEY UK LIMITED
Oxford City Council,Direct Services,Materials,D3021,04/03/2014,60016655_1,1574.98,Revenue,20002464,WOLSELEY UK LIMITED
Oxford City Council,Direct Services,Materials,D3021,04/03/2014,60016878_0,779.61,Revenue,20002464,WOLSELEY UK LIMITED
Oxford City Council,Direct Services,Materials,D3021,04/03/2014,60016879_2,649.05,Revenue,20002464,WOLSELEY UK LIMITED
Oxford City Council,Direct Services,Materials,D3021,04/03/2014,60016880_0,2197.12,Revenue,20002464,WOLSELEY UK LIMITED
Oxford City Council,Direct Services,Materials,D3021,04/03/2014,60016882_0,2161.93,Revenue,20002464,WOLSELEY UK LIMITED
Oxford City Council,Direct Services,Direct Services Supplies & Services,D3311,04/03/2014,60016888_0,953.53,Revenue,20002464,WOLSELEY UK LIMITED
Oxford City Council,Direct Services,Materials,D3021,11/03/2014,60017033_0,2124.08,Revenue,20002464,WOLSELEY UK LIMITED
Oxford City Council,Direct Services,Materials,D3021,11/03/2014,60017090_2,781.02,Revenue,20002464,WOLSELEY UK LIMITED
Oxford City Council,Direct Services,Materials,D3021,11/03/2014,60017125_1,1182.21,Revenue,20002464,WOLSELEY UK LIMITED
Oxford City Council,Direct Services,Materials,D3021,11/03/2014,60017126_1,1729.19,Revenue,20002464,WOLSELEY UK LIMITED
Oxford City Council,Direct Services,Supply & Collection Of Litter Bins,B1171   ,18/02/2014,60016128_0,2484.90,Revenue,20002466,WYBONE LTD
Oxford City Council,"Leisure, Parks & Communities",Main Contractor,Y021,14/01/2014,1002837_1,29653.71,Capital,20002494,E W BEARD LTD
Oxford City Council,"Leisure, Parks & Communities",Main Contractor,Y021,21/01/2014,1002950_1,11294.68,Capital,20002494,E W BEARD LTD
Oxford City Council,"Leisure, Parks & Communities",Main Contractor,Y021,04/03/2014,1004107_1,36036.74,Capital,20002494,E W BEARD LTD
Oxford City Council,Environmental Development,Grants-Private Persons,Y005,14/01/2014,48020568_1,2450.00,Capital,20002507,THE CHILTERN LIFT CO LTD
Oxford City Council,HRA,Fire Alarms and Emergency Lighting,B1241,04/02/2014,46280112_1,15235.12,Revenue,20002568,PYROTEC SERVICES LTD
Oxford City Council,HRA,Fire Alarms and Emergency Lighting,B1241,04/02/2014,46280112_2,203.66,Revenue,20002568,PYROTEC SERVICES LTD
Oxford City Council,Direct Services,Fire Alarms and Emergency Lighting,B1241,04/02/2014,46280112_3,449.82,Revenue,20002568,PYROTEC SERVICES LTD
Oxford City Council,HRA,Fire Alarms and Emergency Lighting,B1241,25/02/2014,46280444_1,630.00,Revenue,20002568,PYROTEC SERVICES LTD
Oxford City Council,HRA,Fire Alarms and Emergency Lighting,B1241,25/02/2014,46280446_1,18153.44,Revenue,20002568,PYROTEC SERVICES LTD
Oxford City Council,HRA,Fire Alarms and Emergency Lighting,B1241,25/02/2014,46280446_2,203.66,Revenue,20002568,PYROTEC SERVICES LTD
Oxford City Council,Direct Services,Fire Alarms and Emergency Lighting,B1241,25/02/2014,46280446_3,449.82,Revenue,20002568,PYROTEC SERVICES LTD
Oxford City Council,Direct Services,Services Maintenance (Planned),B1103,04/03/2014,46280527_1,844.00,Revenue,20002568,PYROTEC SERVICES LTD
Oxford City Council,Regeneration and Major Projects Team,Main Contractor,Y021,04/03/2014,48020705_1,17317.67,Capital,20002568,PYROTEC SERVICES LTD
Oxford City Council,Human Resources & Facilities,Organ & Piano Maintenance,D3008,07/01/2014,1002432_1,800.00,Revenue,20002595,WATKINS & WATSON LTD
Oxford City Council,"Leisure, Parks & Communities",Materials,D3021,11/02/2014,1003215_1,802.30,Revenue,20002617,W G POWELL
Oxford City Council,"Leisure, Parks & Communities",Materials,D3021,11/02/2014,1003215_2,18.00,Revenue,20002617,W G POWELL
Oxford City Council,Direct Services,Reactive Maintenance & Minor Repairs,B1101   ,25/03/2014,47974585_2,1042.73,Revenue,20002617,W G POWELL
Oxford City Council,Direct Services,Direct Services Supplies & Services,D3339,11/03/2014,60017122_1,1736.00,Revenue,20002637,SMITH & OSMAN SERVICES
Oxford City Council,"Leisure, Parks & Communities",Materials,D3021,07/01/2014,1002562_1,1480.00,Revenue,20002658,GOOD DIRECTIONS LTD
Oxford City Council,Direct Services,Protective Clothing,D3201,07/01/2014,60014353_0,3817.80,Revenue,20002680,OXFORD SAFETY SUPPLIES
Oxford City Council,Direct Services,Materials,D3021,14/01/2014,60014564_1,1722.30,Revenue,20002680,OXFORD SAFETY SUPPLIES
Oxford City Council,Law and Governance,Flood Prevention,B1318,28/01/2014,60015028_1,698.50,Revenue,20002680,OXFORD SAFETY SUPPLIES
Oxford City Council,Direct Services,Materials,D3021,28/01/2014,60015030_1,781.15,Revenue,20002680,OXFORD SAFETY SUPPLIES
Oxford City Council,Direct Services,Materials,D3021,28/01/2014,60015031_1,1235.85,Revenue,20002680,OXFORD SAFETY SUPPLIES
Oxford City Council,Direct Services,Materials,D3021   ,04/02/2014,60015494_1,920.65,Revenue,20002680,OXFORD SAFETY SUPPLIES
Oxford City Council,Direct Services,Protective Clothing,D3201   ,04/02/2014,60015659_1,3146.80,Revenue,20002680,OXFORD SAFETY SUPPLIES
Oxford City Council,Direct Services,Materials,D3021   ,11/02/2014,60015722_1,636.55,Revenue,20002680,OXFORD SAFETY SUPPLIES
Oxford City Council,Direct Services,Materials,D3021   ,25/02/2014,60016242_1,7356.20,Revenue,20002680,OXFORD SAFETY SUPPLIES
Oxford City Council,Direct Services,Materials,D3021   ,25/02/2014,60016297_1,1585.90,Revenue,20002680,OXFORD SAFETY SUPPLIES
Oxford City Council,Direct Services,Materials,D3021,04/03/2014,60016757_2,1072.05,Revenue,20002680,OXFORD SAFETY SUPPLIES
Oxford City Council,Direct Services,Protective Clothing,D3201,11/03/2014,60017117_1,2428.00,Revenue,20002680,OXFORD SAFETY SUPPLIES
Oxford City Council,Direct Services,Materials,D3021,11/03/2014,60017256_0,1269.70,Revenue,20002680,OXFORD SAFETY SUPPLIES
Oxford City Council,Direct Services,Protective Clothing,D3201   ,25/03/2014,60017836_2,2109.30,Revenue,20002680,OXFORD SAFETY SUPPLIES
Oxford City Council,Direct Services,Materials,D3021,07/01/2014,60014182_2,969.79,Revenue,20002690,SALT UNION LTD
Oxford City Council,Direct Services,Materials,D3021,07/01/2014,60014197_1,2100.74,Revenue,20002690,SALT UNION LTD
Oxford City Council,Direct Services,Materials,D3021,07/01/2014,60014198_1,1028.18,Revenue,20002690,SALT UNION LTD
Oxford City Council,Direct Services,Materials,D3021,07/01/2014,60014199_1,4859.06,Revenue,20002690,SALT UNION LTD
Oxford City Council,Direct Services,Materials,D3021   ,11/02/2014,60015960_1,1052.52,Revenue,20002690,SALT UNION LTD
Oxford City Council,Direct Services,Materials,D3021   ,11/02/2014,60015961_1,4145.63,Revenue,20002690,SALT UNION LTD
Oxford City Council,Direct Services,Materials,D3021,04/03/2014,60016821_2,3950.00,Revenue,20002690,SALT UNION LTD
Oxford City Council,Direct Services,Materials,D3021,11/03/2014,60017168_1,3091.69,Revenue,20002690,SALT UNION LTD
Oxford City Council,Direct Services,Materials,D3021,11/03/2014,60017169_1,1016.72,Revenue,20002690,SALT UNION LTD
Oxford City Council,Direct Services,Materials,D3021,11/03/2014,60017170_1,2059.21,Revenue,20002690,SALT UNION LTD
Oxford City Council,Direct Services,Materials,D3021,11/03/2014,60017171_1,3063.76,Revenue,20002690,SALT UNION LTD
Oxford City Council,Direct Services,Sign Shop Materials,D3018,21/01/2014,60014851_1,920.81,Revenue,20002698,SPANDEX  LTD.  (UK)  COLLECTIONS
Oxford City Council,Direct Services,Sign Shop Materials,D3018   ,18/03/2014,60017318_1,1636.31,Revenue,20002698,SPANDEX  LTD.  (UK)  COLLECTIONS
Oxford City Council,Direct Services,Reactive Maintenance & Minor Repairs,B1101   ,18/02/2014,47974083_2,1425.00,Revenue,20002712,CLEANSING SERVICE GROUP LTD
Oxford City Council,Direct Services,Reactive Maintenance & Minor Repairs,B1101   ,18/02/2014,47974112_0,670.00,Revenue,20002712,CLEANSING SERVICE GROUP LTD
Oxford City Council,Environmental Development,Furniture & Equipment Purchase,D3001,18/02/2014,1003383_1,12475.00,Revenue,20002859,BRUEL & KJAER (UK) LTD
Oxford City Council,Environmental Development,General Contracted Services,D3401,25/03/2014,1004577_1,7500.00,Revenue,20002893,CHERWELL DISTRICT COUNCIL
Oxford City Council,"Leisure, Parks & Communities",Grants,D3701,28/01/2014,46274226_1,3582.66,Revenue,20002930,OXFORDSHIRE COUNTY COUNCIL
Oxford City Council,"Leisure, Parks & Communities",Grants,D3701,25/02/2014,46274227_1,3582.66,Revenue,20002930,OXFORDSHIRE COUNTY COUNCIL
Oxford City Council,"Leisure, Parks & Communities",Grants,D3701,28/01/2014,46274595_1,11119.33,Revenue,20002930,OXFORDSHIRE COUNTY COUNCIL
Oxford City Council,"Leisure, Parks & Communities",Grants,D3701,25/02/2014,46274596_1,11119.33,Revenue,20002930,OXFORDSHIRE COUNTY COUNCIL
Oxford City Council,"Leisure, Parks & Communities",Awards / Prizes,D3705,04/03/2014,46278048_1,3175.00,Revenue,20002930,OXFORDSHIRE COUNTY COUNCIL
Oxford City Council,Business Improvement & Technology,General Contracted Services,D3401,04/02/2014,46280114_1,83456.22,Revenue,20002930,OXFORDSHIRE COUNTY COUNCIL
Oxford City Council,Business Improvement & Technology,General Contracted Services,D3401,04/02/2014,46280115_1,281585.99,Revenue,20002930,OXFORDSHIRE COUNTY COUNCIL
Oxford City Council,Human Resources & Facilities,Copier Unit Recharges,D3304,25/02/2014,46280416_1,1863.00,Revenue,20002930,OXFORDSHIRE COUNTY COUNCIL
Oxford City Council,Business Improvement & Technology,General Contracted Services,D3401,04/03/2014,46280551_1,120375.00,Revenue,20002930,OXFORDSHIRE COUNTY COUNCIL
Oxford City Council,Business Improvement & Technology,General Contracted Services,D3401,04/03/2014,46280551_2,129170.25,Revenue,20002930,OXFORDSHIRE COUNTY COUNCIL
Oxford City Council,Business Improvement & Technology,General Contracted Services,D3401,04/03/2014,46280551_3,1746.82,Revenue,20002930,OXFORDSHIRE COUNTY COUNCIL
Oxford City Council,Business Improvement & Technology,General Contracted Services,D3401,04/03/2014,46280551_4,25000.00,Revenue,20002930,OXFORDSHIRE COUNTY COUNCIL
Oxford City Council,"Leisure, Parks & Communities",General Contracted Services,D3401,18/03/2014,46280843_1,1620.00,Revenue,20002930,OXFORDSHIRE COUNTY COUNCIL
Oxford City Council,ICT,Main Contractor,Y021,25/03/2014,46280918_1,51800.00,Capital,20002930,OXFORDSHIRE COUNTY COUNCIL
Oxford City Council,Business Improvement & Technology,Main Contractor,Y021,25/03/2014,46280918_10,2317.57,Capital,20002930,OXFORDSHIRE COUNTY COUNCIL
Oxford City Council,"Leisure, Parks & Communities",Other Computing Services,D3540,25/03/2014,46280918_11,1312.50,Revenue,20002930,OXFORDSHIRE COUNTY COUNCIL
Oxford City Council,Finance,Other Computing Services,D3540,25/03/2014,46280918_12,8690.88,Revenue,20002930,OXFORDSHIRE COUNTY COUNCIL
Oxford City Council,Business Improvement & Technology,Other Computing Services,D3540,25/03/2014,46280918_13,331.08,Revenue,20002930,OXFORDSHIRE COUNTY COUNCIL
Oxford City Council,Business Improvement & Technology,Other Computing Services,D3540,25/03/2014,46280918_14,350.00,Revenue,20002930,OXFORDSHIRE COUNTY COUNCIL
Oxford City Council,Business Improvement & Technology,Other Computing Services,D3540,25/03/2014,46280918_15,141.89,Revenue,20002930,OXFORDSHIRE COUNTY COUNCIL
Oxford City Council,Business Improvement & Technology,Other Computing Services,D3540,25/03/2014,46280918_16,700.00,Revenue,20002930,OXFORDSHIRE COUNTY COUNCIL
Oxford City Council,Business Improvement & Technology,Other Computing Services,D3540,25/03/2014,46280918_17,350.00,Revenue,20002930,OXFORDSHIRE COUNTY COUNCIL
Oxford City Council,Business Improvement & Technology,Other Computing Services,D3540,25/03/2014,46280918_18,350.00,Revenue,20002930,OXFORDSHIRE COUNTY COUNCIL
Oxford City Council,Human Resources & Facilities,Other Computing Services,D3540,25/03/2014,46280918_19,1714.53,Revenue,20002930,OXFORDSHIRE COUNTY COUNCIL
Oxford City Council,Business Improvement & Technology,Other Computing Services,D3540,25/03/2014,46280918_2,108.26,Revenue,20002930,OXFORDSHIRE COUNTY COUNCIL
Oxford City Council,Finance,Other Computing Services,D3540,25/03/2014,46280918_20,141.89,Revenue,20002930,OXFORDSHIRE COUNTY COUNCIL
Oxford City Council,Transformation,Other Computing Services,D3540,25/03/2014,46280918_21,94.59,Revenue,20002930,OXFORDSHIRE COUNTY COUNCIL
Oxford City Council,Business Improvement & Technology,Other Computing Services,D3540,25/03/2014,46280918_22,106.42,Revenue,20002930,OXFORDSHIRE COUNTY COUNCIL
Oxford City Council,Business Improvement & Technology,Other Computing Services,D3540,25/03/2014,46280918_3,584.19,Revenue,20002930,OXFORDSHIRE COUNTY COUNCIL
Oxford City Council,Business Improvement & Technology,Other Computing Services,D3540,25/03/2014,46280918_4,555.12,Revenue,20002930,OXFORDSHIRE COUNTY COUNCIL
Oxford City Council,Business Improvement & Technology,Other Computing Services,D3540,25/03/2014,46280918_5,3015.20,Revenue,20002930,OXFORDSHIRE COUNTY COUNCIL
Oxford City Council,Business Improvement & Technology,Other Computing Services,D3540,25/03/2014,46280918_6,744.93,Revenue,20002930,OXFORDSHIRE COUNTY COUNCIL
Oxford City Council,Business Improvement & Technology,Other Computing Services,D3540,25/03/2014,46280918_7,6952.70,Revenue,20002930,OXFORDSHIRE COUNTY COUNCIL
Oxford City Council,Housing and Property,Other Computing Services,D3540,25/03/2014,46280918_8,94.59,Revenue,20002930,OXFORDSHIRE COUNTY COUNCIL
Oxford City Council,Suspense,Other Computing Services,D3540,25/03/2014,46280918_9,94.59,Revenue,20002930,OXFORDSHIRE COUNTY COUNCIL
Oxford City Council,Business Improvement & Technology,Main Contractor,Y021,25/03/2014,46280922_1,480.00,Capital,20002930,OXFORDSHIRE COUNTY COUNCIL
Oxford City Council,Direct Services,Other Computing Services,D3540,25/03/2014,46280922_10,2.50,Revenue,20002930,OXFORDSHIRE COUNTY COUNCIL
Oxford City Council,Customer Services,Other Computing Services,D3540,25/03/2014,46280922_11,499.00,Revenue,20002930,OXFORDSHIRE COUNTY COUNCIL
Oxford City Council,Customer Services,Other Computing Services,D3540,25/03/2014,46280922_12,2.50,Revenue,20002930,OXFORDSHIRE COUNTY COUNCIL
Oxford City Council,Regeneration and Major Projects Team,Other Computing Services,D3540,25/03/2014,46280922_13,138.71,Revenue,20002930,OXFORDSHIRE COUNTY COUNCIL
Oxford City Council,Customer Services,Other Computing Services,D3540,25/03/2014,46280922_14,69.00,Revenue,20002930,OXFORDSHIRE COUNTY COUNCIL
Oxford City Council,Customer Services,Other Computing Services,D3540,25/03/2014,46280922_15,7.50,Revenue,20002930,OXFORDSHIRE COUNTY COUNCIL
Oxford City Council,Customer Services,Other Computing Services,D3540,25/03/2014,46280922_16,3.00,Revenue,20002930,OXFORDSHIRE COUNTY COUNCIL
Oxford City Council,Customer Services,Other Computing Services,D3540,25/03/2014,46280922_17,499.00,Revenue,20002930,OXFORDSHIRE COUNTY COUNCIL
Oxford City Council,Customer Services,Other Computing Services,D3540,25/03/2014,46280922_18,12.50,Revenue,20002930,OXFORDSHIRE COUNTY COUNCIL
Oxford City Council,Customer Services,Other Computing Services,D3540,25/03/2014,46280922_19,2.50,Revenue,20002930,OXFORDSHIRE COUNTY COUNCIL
Oxford City Council,Business Improvement & Technology,Other Computing Services,D3540,25/03/2014,46280922_2,8000.00,Revenue,20002930,OXFORDSHIRE COUNTY COUNCIL
Oxford City Council,Housing and Property,Other Computing Services,D3540,25/03/2014,46280922_20,138.71,Revenue,20002930,OXFORDSHIRE COUNTY COUNCIL
Oxford City Council,Finance,Other Computing Services,D3540,25/03/2014,46280922_21,65.75,Revenue,20002930,OXFORDSHIRE COUNTY COUNCIL
Oxford City Council,Housing and Property,Other Computing Services,D3540,25/03/2014,46280922_22,25.00,Revenue,20002930,OXFORDSHIRE COUNTY COUNCIL
Oxford City Council,Housing and Property,Other Computing Services,D3540,25/03/2014,46280922_23,4.50,Revenue,20002930,OXFORDSHIRE COUNTY COUNCIL
Oxford City Council,Direct Services,Other Computing Services,D3540,25/03/2014,46280922_24,23.00,Revenue,20002930,OXFORDSHIRE COUNTY COUNCIL
Oxford City Council,Direct Services,Other Computing Services,D3540,25/03/2014,46280922_25,2.50,Revenue,20002930,OXFORDSHIRE COUNTY COUNCIL
Oxford City Council,Direct Services,Other Computing Services,D3540,25/03/2014,46280922_26,3.00,Revenue,20002930,OXFORDSHIRE COUNTY COUNCIL
Oxford City Council,"Policy, Culture and Communication",Hardware Purchase,D3520,25/03/2014,46280922_27,499.00,Revenue,20002930,OXFORDSHIRE COUNTY COUNCIL
Oxford City Council,"Policy, Culture and Communication",Hardware Purchase,D3520,25/03/2014,46280922_28,2.50,Revenue,20002930,OXFORDSHIRE COUNTY COUNCIL
Oxford City Council,Customer Services,Hardware Purchase,D3520,25/03/2014,46280922_29,23.00,Revenue,20002930,OXFORDSHIRE COUNTY COUNCIL
Oxford City Council,Transformation,Other Computing Services,D3540,25/03/2014,46280922_3,-577.50,Revenue,20002930,OXFORDSHIRE COUNTY COUNCIL
Oxford City Council,Customer Services,Hardware Purchase,D3520,25/03/2014,46280922_30,2.50,Revenue,20002930,OXFORDSHIRE COUNTY COUNCIL
Oxford City Council,Customer Services,Hardware Purchase,D3520,25/03/2014,46280922_31,3.00,Revenue,20002930,OXFORDSHIRE COUNTY COUNCIL
Oxford City Council,"Leisure, Parks & Communities",Hardware Purchase,D3520,25/03/2014,46280922_32,686.00,Revenue,20002930,OXFORDSHIRE COUNTY COUNCIL
Oxford City Council,"Leisure, Parks & Communities",Hardware Purchase,D3520,25/03/2014,46280922_33,2.50,Revenue,20002930,OXFORDSHIRE COUNTY COUNCIL
Oxford City Council,Environmental Development,Hardware Purchase,D3520,25/03/2014,46280922_34,1540.00,Revenue,20002930,OXFORDSHIRE COUNTY COUNCIL
Oxford City Council,Business Improvement & Technology,Hardware Purchase,D3520,25/03/2014,46280922_35,470.58,Revenue,20002930,OXFORDSHIRE COUNTY COUNCIL
Oxford City Council,Business Improvement & Technology,Hardware Purchase,D3520,25/03/2014,46280922_36,528.18,Revenue,20002930,OXFORDSHIRE COUNTY COUNCIL
Oxford City Council,Business Improvement & Technology,Hardware Purchase,D3520,25/03/2014,46280922_37,110.88,Revenue,20002930,OXFORDSHIRE COUNTY COUNCIL
Oxford City Council,Business Improvement & Technology,Hardware Purchase,D3520,25/03/2014,46280922_38,1334.00,Revenue,20002930,OXFORDSHIRE COUNTY COUNCIL
Oxford City Council,Customer Services,Hardware Purchase,D3520,25/03/2014,46280922_39,499.00,Revenue,20002930,OXFORDSHIRE COUNTY COUNCIL
Oxford City Council,Direct Services,Other Computing Services,D3540,25/03/2014,46280922_4,349.00,Revenue,20002930,OXFORDSHIRE COUNTY COUNCIL
Oxford City Council,Customer Services,Hardware Purchase,D3520,25/03/2014,46280922_40,2.50,Revenue,20002930,OXFORDSHIRE COUNTY COUNCIL
Oxford City Council,Customer Services,Hardware Purchase,D3520,25/03/2014,46280922_41,25.00,Revenue,20002930,OXFORDSHIRE COUNTY COUNCIL
Oxford City Council,Direct Services,Hardware Purchase,D3520,25/03/2014,46280922_42,499.00,Revenue,20002930,OXFORDSHIRE COUNTY COUNCIL
Oxford City Council,Direct Services,Hardware Purchase,D3520,25/03/2014,46280922_43,2.50,Revenue,20002930,OXFORDSHIRE COUNTY COUNCIL
Oxford City Council,"Leisure, Parks & Communities",Hardware Purchase,D3520,25/03/2014,46280922_44,686.00,Revenue,20002930,OXFORDSHIRE COUNTY COUNCIL
Oxford City Council,"Leisure, Parks & Communities",Hardware Purchase,D3520,25/03/2014,46280922_45,2.50,Revenue,20002930,OXFORDSHIRE COUNTY COUNCIL
Oxford City Council,Customer Services,Hardware Purchase,D3520,25/03/2014,46280922_46,499.00,Revenue,20002930,OXFORDSHIRE COUNTY COUNCIL
Oxford City Council,Customer Services,Hardware Purchase,D3520,25/03/2014,46280922_47,2.50,Revenue,20002930,OXFORDSHIRE COUNTY COUNCIL
Oxford City Council,Direct Services,Hardware Purchase,D3520,25/03/2014,46280922_48,138.71,Revenue,20002930,OXFORDSHIRE COUNTY COUNCIL
Oxford City Council,Direct Services,Hardware Purchase,D3520,25/03/2014,46280922_49,1372.00,Revenue,20002930,OXFORDSHIRE COUNTY COUNCIL
Oxford City Council,Direct Services,Other Computing Services,D3540,25/03/2014,46280922_5,5.00,Revenue,20002930,OXFORDSHIRE COUNTY COUNCIL
Oxford City Council,Direct Services,Hardware Purchase,D3520,25/03/2014,46280922_50,5.00,Revenue,20002930,OXFORDSHIRE COUNTY COUNCIL
Oxford City Council,Direct Services,Hardware Purchase,D3520,25/03/2014,46280922_51,59.40,Revenue,20002930,OXFORDSHIRE COUNTY COUNCIL
Oxford City Council,Direct Services,Hardware Purchase,D3520,25/03/2014,46280922_52,169.68,Revenue,20002930,OXFORDSHIRE COUNTY COUNCIL
Oxford City Council,Direct Services,Hardware Purchase,D3520,25/03/2014,46280922_53,141.00,Revenue,20002930,OXFORDSHIRE COUNTY COUNCIL
Oxford City Council,Direct Services,Hardware Purchase,D3520,25/03/2014,46280922_54,2.50,Revenue,20002930,OXFORDSHIRE COUNTY COUNCIL
Oxford City Council,Direct Services,Hardware Purchase,D3520,25/03/2014,46280922_55,23.00,Revenue,20002930,OXFORDSHIRE COUNTY COUNCIL
Oxford City Council,Direct Services,Hardware Purchase,D3520,25/03/2014,46280922_56,2.50,Revenue,20002930,OXFORDSHIRE COUNTY COUNCIL
Oxford City Council,Direct Services,Hardware Purchase,D3520,25/03/2014,46280922_57,3.00,Revenue,20002930,OXFORDSHIRE COUNTY COUNCIL
Oxford City Council,Environmental Development,Hardware Purchase,D3520,25/03/2014,46280922_58,253.92,Revenue,20002930,OXFORDSHIRE COUNTY COUNCIL
Oxford City Council,City Development,Hardware Purchase,D3520,25/03/2014,46280922_59,65.50,Revenue,20002930,OXFORDSHIRE COUNTY COUNCIL
Oxford City Council,Direct Services,Other Computing Services,D3540,25/03/2014,46280922_6,141.00,Revenue,20002930,OXFORDSHIRE COUNTY COUNCIL
Oxford City Council,City Development,Hardware Purchase,D3520,25/03/2014,46280922_60,998.00,Revenue,20002930,OXFORDSHIRE COUNTY COUNCIL
Oxford City Council,Housing and Property,Hardware Purchase,D3520,25/03/2014,46280922_61,5.00,Revenue,20002930,OXFORDSHIRE COUNTY COUNCIL
Oxford City Council,Environmental Development,Hardware Purchase,D3520,25/03/2014,46280922_62,238.38,Revenue,20002930,OXFORDSHIRE COUNTY COUNCIL
Oxford City Council,Environmental Development,Hardware Purchase,D3520,25/03/2014,46280922_63,686.00,Revenue,20002930,OXFORDSHIRE COUNTY COUNCIL
Oxford City Council,Environmental Development,Hardware Purchase,D3520,25/03/2014,46280922_64,5.00,Revenue,20002930,OXFORDSHIRE COUNTY COUNCIL
Oxford City Council,Environmental Development,Hardware Purchase,D3520,25/03/2014,46280922_65,25.00,Revenue,20002930,OXFORDSHIRE COUNTY COUNCIL
Oxford City Council,Environmental Development,Hardware Purchase,D3520,25/03/2014,46280922_66,5.75,Revenue,20002930,OXFORDSHIRE COUNTY COUNCIL
Oxford City Council,"Leisure, Parks & Communities",Hardware Purchase,D3520,25/03/2014,46280922_67,141.00,Revenue,20002930,OXFORDSHIRE COUNTY COUNCIL
Oxford City Council,Direct Services,Hardware Purchase,D3520,25/03/2014,46280922_68,131.00,Revenue,20002930,OXFORDSHIRE COUNTY COUNCIL
Oxford City Council,Direct Services,Hardware Purchase,D3520,25/03/2014,46280922_69,499.00,Revenue,20002930,OXFORDSHIRE COUNTY COUNCIL
Oxford City Council,Environmental Development,Other Computing Services,D3540,25/03/2014,46280922_7,1920.00,Revenue,20002930,OXFORDSHIRE COUNTY COUNCIL
Oxford City Council,Direct Services,Hardware Purchase,D3520,25/03/2014,46280922_70,5.00,Revenue,20002930,OXFORDSHIRE COUNTY COUNCIL
Oxford City Council,Direct Services,Hardware Purchase,D3520,25/03/2014,46280922_71,88.00,Revenue,20002930,OXFORDSHIRE COUNTY COUNCIL
Oxford City Council,Direct Services,Hardware Purchase,D3520,25/03/2014,46280922_72,5.75,Revenue,20002930,OXFORDSHIRE COUNTY COUNCIL
Oxford City Council,Customer Services,Hardware Purchase,D3520,25/03/2014,46280922_73,15.36,Revenue,20002930,OXFORDSHIRE COUNTY COUNCIL
Oxford City Council,Housing and Property,Hardware Purchase,D3520,25/03/2014,46280922_74,108.00,Revenue,20002930,OXFORDSHIRE COUNTY COUNCIL
Oxford City Council,Customer Services,Hardware Purchase,D3520,25/03/2014,46280922_75,54.00,Revenue,20002930,OXFORDSHIRE COUNTY COUNCIL
Oxford City Council,HRA,Hardware Purchase,D3520,25/03/2014,46280922_76,36.00,Revenue,20002930,OXFORDSHIRE COUNTY COUNCIL
Oxford City Council,"Leisure, Parks & Communities",Hardware Purchase,D3520,25/03/2014,46280922_77,12.50,Revenue,20002930,OXFORDSHIRE COUNTY COUNCIL
Oxford City Council,Environmental Development,Hardware Purchase,D3520,25/03/2014,46280922_78,18.00,Revenue,20002930,OXFORDSHIRE COUNTY COUNCIL
Oxford City Council,Environmental Development,Hardware Purchase,D3520,25/03/2014,46280922_79,12.50,Revenue,20002930,OXFORDSHIRE COUNTY COUNCIL
Oxford City Council,Housing and Property,Other Computing Services,D3540,25/03/2014,46280922_8,129.00,Revenue,20002930,OXFORDSHIRE COUNTY COUNCIL
Oxford City Council,Environmental Development,Hardware Purchase,D3520,25/03/2014,46280922_80,12.50,Revenue,20002930,OXFORDSHIRE COUNTY COUNCIL
Oxford City Council,Housing and Property,Hardware Purchase,D3520,25/03/2014,46280922_81,18.50,Revenue,20002930,OXFORDSHIRE COUNTY COUNCIL
